{"text_format":"1","workbook":"xlsx","n_sheets":106,"sheets":["Appointment Calendar","Ongoing","Patient Appointment List","Color Key","Template 12 wk","Template 8 wk","Sheet1","Sheet2","Sheet3","Sheet4","Sheet5","Sheet6","Sheet7","Sheet8","Sheet9","Sheet10","Sheet11","Sheet12","Sheet13","Sheet14","Sheet15","Sheet16","Sheet17","Sheet18","Sheet19","Sheet20","Sheet21","Sheet22","Sheet23","Sheet24","Sheet25","Sheet26","Sheet27","Sheet28","Sheet29","Sheet30","Sheet31","Sheet32","Sheet33","Sheet34","Sheet35","Sheet36","Sheet37","Sheet38","Sheet39","Sheet40","Sheet41","Sheet42","Sheet43","Sheet44","Sheet45","Sheet46","Sheet47","Sheet48","Sheet49","Sheet50","Sheet51","Sheet52","Sheet53","Sheet54","Sheet55","Sheet56","Sheet57","Sheet58","Sheet59","Sheet60","Sheet61","Sheet62","Sheet63","Sheet64","Sheet65","Sheet66","Sheet67","Sheet68","Sheet69","Sheet70","Sheet71","Sheet72","Sheet73","Sheet74","Sheet75","Sheet76","Sheet77","Sheet78","Sheet79","Sheet80","Sheet81","Sheet82","Sheet83","Sheet84","Sheet85","Sheet86","Sheet87","Sheet88","Sheet89","Sheet90","Sheet91","Sheet92","Sheet93","Sheet94","Sheet95","Sheet96","Sheet97","Sheet98","Sheet99","Sheet100"],"not_rendered":{"charts":0,"images":1,"macros":0,"external_links":2,"defined_names":39,"comments":0,"pivot_tables":0},"unopened":[],"bounds":{"document_bytes":16777216,"sheet_cells":100000,"rows_first":2000,"rows_last":500,"rows_between":2000,"halvings":0,"cell_chars":16384,"cell_head_chars":4096},"cells_cut":0,"cells_raw":0,"read":"row_number_cap","date_system":"1900"}

{"sheet":"Appointment Calendar","index":0,"n_rows":37,"n_cols":8,"rows_kept":37,"cut":false,"hidden":false,"merged":[[5,6,5,7],[2,7,3,7],[1,1,2,2],[3,1,4,2],[1,3,4,5],[2,6,3,6]]}
[]
[null,{"$f":"UPPER(MonthToDisplay)","v":"MAY"},null,"NOTE:",null,null,"ENTER MONTH:","May"]
[null,null,null,null,null,null,"ENTER YEAR:",2018]
[null,{"$f":"YearToDisplay","v":2018}]
[null,null,null,null,null,null,"ENTER START DAY:","Sunday"]
[null,null,null,null,null,"Link to Ongoing Patients",{"$f":"IF(ISERROR(INDEX(calendar,ndx+0,1)),\"CHECK SPELLING OF MONTH AND DAY\",\"\")","v":""}]
[null,{"$f":"TEXT(B8,\"aaaa\")","v":"Sunday"},"Monday","Tuesday","Wednesday","Thursday","Friday","Saturday"]
[null,{"$f":"IFERROR(INDEX(calendar,ndx+0,1),\"\")","v":"2018-04-29"},{"$f":"IFERROR(INDEX(calendar,ndx+0,2),\"\")","v":"2018-04-30"},{"$f":"IFERROR(INDEX(calendar,ndx+0,3),\"\")","v":"2018-05-01"},{"$f":"IFERROR(INDEX(calendar,ndx+0,4),\"\")","v":"2018-05-02"},{"$f":"IFERROR(INDEX(calendar,ndx+0,5),\"\")","v":"2018-05-03"},{"$f":"IFERROR(INDEX(calendar,ndx+0,6),\"\")","v":"2018-05-04"},{"$f":"IFERROR(INDEX(calendar,ndx+0,7),\"\")","v":"2018-05-05"}]
[null,{"$f":"IFERROR(INDEX(Homework[],SMALL(IF(Dates=B$8,ROW(Dates)),ROW(1:1))-TableRowStart,4),\"\")","v":""},{"$f":"IFERROR(INDEX(Homework[],SMALL(IF(Dates=C$8,ROW(Dates)),ROW(1:1))-TableRowStart,4),\"\")","v":""},{"$f":"IFERROR(INDEX(Homework[],SMALL(IF(Dates=D$8,ROW(Dates)),ROW(1:1))-TableRowStart,4),\"\")","v":""},{"$f":"IFERROR(INDEX(Homework[],SMALL(IF(Dates=E$8,ROW(Dates)),ROW(1:1))-TableRowStart,4),\"\")","v":""},{"$f":"IFERROR(INDEX(Homework[],SMALL(IF(Dates=F$8,ROW(Dates)),ROW(1:1))-TableRowStart,4),\"\")","v":""},{"$f":"IFERROR(INDEX(Homework[],SMALL(IF(Dates=G$8,ROW(Dates)),ROW(1:1))-TableRowStart,4),\"\")","v":""},{"$f":"IFERROR(INDEX(Homework[],SMALL(IF(Dates=H$8,ROW(Dates)),ROW(1:1))-TableRowStart,4),\"\")","v":""}]
[null,{"$f":"IFERROR(INDEX(Homework[],SMALL(IF(Dates=B$8,ROW(Dates)),ROW(2:2))-TableRowStart,4),\"\")","v":""},{"$f":"IFERROR(INDEX(Homework[],SMALL(IF(Dates=C$8,ROW(Dates)),ROW(2:2))-TableRowStart,4),\"\")","v":""},{"$f":"IFERROR(INDEX(Homework[],SMALL(IF(Dates=D$8,ROW(Dates)),ROW(2:2))-TableRowStart,4),\"\")","v":""},{"$f":"IFERROR(INDEX(Homework[],SMALL(IF(Dates=E$8,ROW(Dates)),ROW(2:2))-TableRowStart,4),\"\")","v":""},{"$f":"IFERROR(INDEX(Homework[],SMALL(IF(Dates=F$8,ROW(Dates)),ROW(2:2))-TableRowStart,4),\"\")","v":""},null,{"$f":"IFERROR(INDEX(Homework[],SMALL(IF(Dates=H$8,ROW(Dates)),ROW(2:2))-TableRowStart,4),\"\")","v":""}]
[null,{"$f":"IFERROR(INDEX(Homework[],SMALL(IF(Dates=B$8,ROW(Dates)),ROW(3:3))-TableRowStart,4),\"\")","v":""},{"$f":"IFERROR(INDEX(Homework[],SMALL(IF(Dates=C$8,ROW(Dates)),ROW(3:3))-TableRowStart,4),\"\")","v":""},{"$f":"IFERROR(INDEX(Homework[],SMALL(IF(Dates=D$8,ROW(Dates)),ROW(3:3))-TableRowStart,4),\"\")","v":""},{"$f":"IFERROR(INDEX(Homework[],SMALL(IF(Dates=E$8,ROW(Dates)),ROW(3:3))-TableRowStart,4),\"\")","v":""},{"$f":"IFERROR(INDEX(Homework[],SMALL(IF(Dates=F$8,ROW(Dates)),ROW(3:3))-TableRowStart,4),\"\")","v":""},{"$f":"IFERROR(INDEX(Homework[],SMALL(IF(Dates=G$8,ROW(Dates)),ROW(3:3))-TableRowStart,4),\"\")","v":""},{"$f":"IFERROR(INDEX(Homework[],SMALL(IF(Dates=H$8,ROW(Dates)),ROW(3:3))-TableRowStart,4),\"\")","v":""}]
[null,{"$f":"IFERROR(INDEX(Homework[],SMALL(IF(Dates=B$8,ROW(Dates)),ROW(4:4))-TableRowStart,4),\"\")","v":""},{"$f":"IFERROR(INDEX(Homework[],SMALL(IF(Dates=C$8,ROW(Dates)),ROW(4:4))-TableRowStart,4),\"\")","v":""},{"$f":"IFERROR(INDEX(Homework[],SMALL(IF(Dates=D$8,ROW(Dates)),ROW(4:4))-TableRowStart,4),\"\")","v":""},{"$f":"IFERROR(INDEX(Homework[],SMALL(IF(Dates=E$8,ROW(Dates)),ROW(4:4))-TableRowStart,4),\"\")","v":""},{"$f":"IFERROR(INDEX(Homework[],SMALL(IF(Dates=F$8,ROW(Dates)),ROW(4:4))-TableRowStart,4),\"\")","v":""},{"$f":"IFERROR(INDEX(Homework[],SMALL(IF(Dates=G$8,ROW(Dates)),ROW(4:4))-TableRowStart,4),\"\")","v":""},{"$f":"IFERROR(INDEX(Homework[],SMALL(IF(Dates=H$8,ROW(Dates)),ROW(4:4))-TableRowStart,4),\"\")","v":""}]
[null,{"$f":"IFERROR(INDEX(calendar,ndx+1,1),\"\")","v":"2018-05-06"},{"$f":"IFERROR(INDEX(calendar,ndx+1,2),\"\")","v":"2018-05-07"},{"$f":"IFERROR(INDEX(calendar,ndx+1,3),\"\")","v":"2018-05-08"},{"$f":"IFERROR(INDEX(calendar,ndx+1,4),\"\")","v":"2018-05-09"},{"$f":"IFERROR(INDEX(calendar,ndx+1,5),\"\")","v":"2018-05-10"},{"$f":"IFERROR(INDEX(calendar,ndx+1,6),\"\")","v":"2018-05-11"},{"$f":"IFERROR(INDEX(calendar,ndx+1,7),\"\")","v":"2018-05-12"}]
[null,{"$f":"IFERROR(INDEX(Homework[],SMALL(IF(Dates=B$13,ROW(Dates)),ROW(1:1))-TableRowStart,4),\"\")","v":""},{"$f":"IFERROR(INDEX(Homework[],SMALL(IF(Dates=C$13,ROW(Dates)),ROW(1:1))-TableRowStart,4),\"\")","v":""},{"$f":"IFERROR(INDEX(Homework[],SMALL(IF(Dates=D$13,ROW(Dates)),ROW(1:1))-TableRowStart,4),\"\")","v":""},{"$f":"IFERROR(INDEX(Homework[],SMALL(IF(Dates=E$13,ROW(Dates)),ROW(1:1))-TableRowStart,4),\"\")","v":""},{"$f":"IFERROR(INDEX(Homework[],SMALL(IF(Dates=F$13,ROW(Dates)),ROW(1:1))-TableRowStart,4),\"\")","v":""},{"$f":"IFERROR(INDEX(Homework[],SMALL(IF(Dates=G$13,ROW(Dates)),ROW(1:1))-TableRowStart,4),\"\")","v":""},{"$f":"IFERROR(INDEX(Homework[],SMALL(IF(Dates=H$13,ROW(Dates)),ROW(1:1))-TableRowStart,4),\"\")","v":""}]
[null,{"$f":"IFERROR(INDEX(Homework[],SMALL(IF(Dates=B$13,ROW(Dates)),ROW(2:2))-TableRowStart,4),\"\")","v":""},{"$f":"IFERROR(INDEX(Homework[],SMALL(IF(Dates=C$13,ROW(Dates)),ROW(2:2))-TableRowStart,4),\"\")","v":""},{"$f":"IFERROR(INDEX(Homework[],SMALL(IF(Dates=D$13,ROW(Dates)),ROW(2:2))-TableRowStart,4),\"\")","v":""},{"$f":"IFERROR(INDEX(Homework[],SMALL(IF(Dates=E$13,ROW(Dates)),ROW(2:2))-TableRowStart,4),\"\")","v":""},{"$f":"IFERROR(INDEX(Homework[],SMALL(IF(Dates=F$13,ROW(Dates)),ROW(2:2))-TableRowStart,4),\"\")","v":""},{"$f":"IFERROR(INDEX(Homework[],SMALL(IF(Dates=G$13,ROW(Dates)),ROW(2:2))-TableRowStart,4),\"\")","v":""},{"$f":"IFERROR(INDEX(Homework[],SMALL(IF(Dates=H$13,ROW(Dates)),ROW(2:2))-TableRowStart,4),\"\")","v":""}]
[null,{"$f":"IFERROR(INDEX(Homework[],SMALL(IF(Dates=B$13,ROW(Dates)),ROW(3:3))-TableRowStart,4),\"\")","v":""},{"$f":"IFERROR(INDEX(Homework[],SMALL(IF(Dates=C$13,ROW(Dates)),ROW(3:3))-TableRowStart,4),\"\")","v":""},{"$f":"IFERROR(INDEX(Homework[],SMALL(IF(Dates=D$13,ROW(Dates)),ROW(3:3))-TableRowStart,4),\"\")","v":""},{"$f":"IFERROR(INDEX(Homework[],SMALL(IF(Dates=E$13,ROW(Dates)),ROW(3:3))-TableRowStart,4),\"\")","v":""},{"$f":"IFERROR(INDEX(Homework[],SMALL(IF(Dates=F$13,ROW(Dates)),ROW(3:3))-TableRowStart,4),\"\")","v":""},{"$f":"IFERROR(INDEX(Homework[],SMALL(IF(Dates=G$13,ROW(Dates)),ROW(3:3))-TableRowStart,4),\"\")","v":""},{"$f":"IFERROR(INDEX(Homework[],SMALL(IF(Dates=H$13,ROW(Dates)),ROW(3:3))-TableRowStart,4),\"\")","v":""}]
[null,{"$f":"IFERROR(INDEX(Homework[],SMALL(IF(Dates=B$13,ROW(Dates)),ROW(4:4))-TableRowStart,4),\"\")","v":""},{"$f":"IFERROR(INDEX(Homework[],SMALL(IF(Dates=C$13,ROW(Dates)),ROW(4:4))-TableRowStart,4),\"\")","v":""},{"$f":"IFERROR(INDEX(Homework[],SMALL(IF(Dates=D$13,ROW(Dates)),ROW(4:4))-TableRowStart,4),\"\")","v":""},{"$f":"IFERROR(INDEX(Homework[],SMALL(IF(Dates=E$13,ROW(Dates)),ROW(4:4))-TableRowStart,4),\"\")","v":""},{"$f":"IFERROR(INDEX(Homework[],SMALL(IF(Dates=F$13,ROW(Dates)),ROW(4:4))-TableRowStart,4),\"\")","v":""},{"$f":"IFERROR(INDEX(Homework[],SMALL(IF(Dates=G$13,ROW(Dates)),ROW(4:4))-TableRowStart,4),\"\")","v":""},{"$f":"IFERROR(INDEX(Homework[],SMALL(IF(Dates=H$13,ROW(Dates)),ROW(4:4))-TableRowStart,4),\"\")","v":""}]
[null,{"$f":"IFERROR(INDEX(calendar,ndx+2,1),\"\")","v":"2018-05-13"},{"$f":"IFERROR(INDEX(calendar,ndx+2,2),\"\")","v":"2018-05-14"},{"$f":"IFERROR(INDEX(calendar,ndx+2,3),\"\")","v":"2018-05-15"},{"$f":"IFERROR(INDEX(calendar,ndx+2,4),\"\")","v":"2018-05-16"},{"$f":"IFERROR(INDEX(calendar,ndx+2,5),\"\")","v":"2018-05-17"},{"$f":"IFERROR(INDEX(calendar,ndx+2,6),\"\")","v":"2018-05-18"},{"$f":"IFERROR(INDEX(calendar,ndx+2,7),\"\")","v":"2018-05-19"}]
[null,{"$f":"IFERROR(INDEX(Homework[],SMALL(IF(Dates=B$18,ROW(Dates)),ROW(1:1))-TableRowStart,4),\"\")","v":""},{"$f":"IFERROR(INDEX(Homework[],SMALL(IF(Dates=C$18,ROW(Dates)),ROW(1:1))-TableRowStart,4),\"\")","v":""},{"$f":"IFERROR(INDEX(Homework[],SMALL(IF(Dates=D$18,ROW(Dates)),ROW(1:1))-TableRowStart,4),\"\")","v":""},{"$f":"IFERROR(INDEX(Homework[],SMALL(IF(Dates=E$18,ROW(Dates)),ROW(1:1))-TableRowStart,4),\"\")","v":""},{"$f":"IFERROR(INDEX(Homework[],SMALL(IF(Dates=F$18,ROW(Dates)),ROW(1:1))-TableRowStart,4),\"\")","v":""},{"$f":"IFERROR(INDEX(Homework[],SMALL(IF(Dates=G$18,ROW(Dates)),ROW(1:1))-TableRowStart,4),\"\")","v":""},{"$f":"IFERROR(INDEX(Homework[],SMALL(IF(Dates=H$18,ROW(Dates)),ROW(1:1))-TableRowStart,4),\"\")","v":""}]
[null,{"$f":"IFERROR(INDEX(Homework[],SMALL(IF(Dates=B$18,ROW(Dates)),ROW(2:2))-TableRowStart,4),\"\")","v":""},{"$f":"IFERROR(INDEX(Homework[],SMALL(IF(Dates=C$18,ROW(Dates)),ROW(2:2))-TableRowStart,4),\"\")","v":""},{"$f":"IFERROR(INDEX(Homework[],SMALL(IF(Dates=D$18,ROW(Dates)),ROW(2:2))-TableRowStart,4),\"\")","v":""},{"$f":"IFERROR(INDEX(Homework[],SMALL(IF(Dates=E$18,ROW(Dates)),ROW(2:2))-TableRowStart,4),\"\")","v":""},{"$f":"IFERROR(INDEX(Homework[],SMALL(IF(Dates=F$18,ROW(Dates)),ROW(2:2))-TableRowStart,4),\"\")","v":""},{"$f":"IFERROR(INDEX(Homework[],SMALL(IF(Dates=G$18,ROW(Dates)),ROW(2:2))-TableRowStart,4),\"\")","v":""},{"$f":"IFERROR(INDEX(Homework[],SMALL(IF(Dates=H$18,ROW(Dates)),ROW(2:2))-TableRowStart,4),\"\")","v":""}]
[null,{"$f":"IFERROR(INDEX(Homework[],SMALL(IF(Dates=B$18,ROW(Dates)),ROW(3:3))-TableRowStart,4),\"\")","v":""},{"$f":"IFERROR(INDEX(Homework[],SMALL(IF(Dates=C$18,ROW(Dates)),ROW(3:3))-TableRowStart,4),\"\")","v":""},{"$f":"IFERROR(INDEX(Homework[],SMALL(IF(Dates=D$18,ROW(Dates)),ROW(3:3))-TableRowStart,4),\"\")","v":""},{"$f":"IFERROR(INDEX(Homework[],SMALL(IF(Dates=E$18,ROW(Dates)),ROW(3:3))-TableRowStart,4),\"\")","v":""},{"$f":"IFERROR(INDEX(Homework[],SMALL(IF(Dates=F$18,ROW(Dates)),ROW(3:3))-TableRowStart,4),\"\")","v":""},{"$f":"IFERROR(INDEX(Homework[],SMALL(IF(Dates=G$18,ROW(Dates)),ROW(3:3))-TableRowStart,4),\"\")","v":""},{"$f":"IFERROR(INDEX(Homework[],SMALL(IF(Dates=H$18,ROW(Dates)),ROW(3:3))-TableRowStart,4),\"\")","v":""}]
[null,{"$f":"IFERROR(INDEX(Homework[],SMALL(IF(Dates=B$18,ROW(Dates)),ROW(4:4))-TableRowStart,4),\"\")","v":""},{"$f":"IFERROR(INDEX(Homework[],SMALL(IF(Dates=C$18,ROW(Dates)),ROW(4:4))-TableRowStart,4),\"\")","v":""},{"$f":"IFERROR(INDEX(Homework[],SMALL(IF(Dates=D$18,ROW(Dates)),ROW(4:4))-TableRowStart,4),\"\")","v":""},{"$f":"IFERROR(INDEX(Homework[],SMALL(IF(Dates=E$18,ROW(Dates)),ROW(4:4))-TableRowStart,4),\"\")","v":""},{"$f":"IFERROR(INDEX(Homework[],SMALL(IF(Dates=F$18,ROW(Dates)),ROW(4:4))-TableRowStart,4),\"\")","v":""},{"$f":"IFERROR(INDEX(Homework[],SMALL(IF(Dates=G$18,ROW(Dates)),ROW(4:4))-TableRowStart,4),\"\")","v":""},{"$f":"IFERROR(INDEX(Homework[],SMALL(IF(Dates=H$18,ROW(Dates)),ROW(4:4))-TableRowStart,4),\"\")","v":""}]
[null,{"$f":"IFERROR(INDEX(calendar,ndx+3,1),\"\")","v":"2018-05-20"},{"$f":"IFERROR(INDEX(calendar,ndx+3,2),\"\")","v":"2018-05-21"},{"$f":"IFERROR(INDEX(calendar,ndx+3,3),\"\")","v":"2018-05-22"},{"$f":"IFERROR(INDEX(calendar,ndx+3,4),\"\")","v":"2018-05-23"},{"$f":"IFERROR(INDEX(calendar,ndx+3,5),\"\")","v":"2018-05-24"},{"$f":"IFERROR(INDEX(calendar,ndx+3,6),\"\")","v":"2018-05-25"},{"$f":"IFERROR(INDEX(calendar,ndx+3,7),\"\")","v":"2018-05-26"}]
[null,{"$f":"IFERROR(INDEX(Homework[],SMALL(IF(Dates=B$23,ROW(Dates)),ROW(1:1))-TableRowStart,4),\"\")","v":""},{"$f":"IFERROR(INDEX(Homework[],SMALL(IF(Dates=C$23,ROW(Dates)),ROW(1:1))-TableRowStart,4),\"\")","v":""},{"$f":"IFERROR(INDEX(Homework[],SMALL(IF(Dates=D$23,ROW(Dates)),ROW(1:1))-TableRowStart,4),\"\")","v":""},{"$f":"IFERROR(INDEX(Homework[],SMALL(IF(Dates=E$23,ROW(Dates)),ROW(1:1))-TableRowStart,4),\"\")","v":""},{"$f":"IFERROR(INDEX(Homework[],SMALL(IF(Dates=F$23,ROW(Dates)),ROW(1:1))-TableRowStart,4),\"\")","v":""},{"$f":"IFERROR(INDEX(Homework[],SMALL(IF(Dates=G$23,ROW(Dates)),ROW(1:1))-TableRowStart,4),\"\")","v":""},{"$f":"IFERROR(INDEX(Homework[],SMALL(IF(Dates=H$23,ROW(Dates)),ROW(1:1))-TableRowStart,4),\"\")","v":""}]
[null,{"$f":"IFERROR(INDEX(Homework[],SMALL(IF(Dates=B$23,ROW(Dates)),ROW(2:2))-TableRowStart,4),\"\")","v":""},{"$f":"IFERROR(INDEX(Homework[],SMALL(IF(Dates=C$23,ROW(Dates)),ROW(2:2))-TableRowStart,4),\"\")","v":""},{"$f":"IFERROR(INDEX(Homework[],SMALL(IF(Dates=D$23,ROW(Dates)),ROW(2:2))-TableRowStart,4),\"\")","v":""},{"$f":"IFERROR(INDEX(Homework[],SMALL(IF(Dates=E$23,ROW(Dates)),ROW(2:2))-TableRowStart,4),\"\")","v":""},{"$f":"IFERROR(INDEX(Homework[],SMALL(IF(Dates=F$23,ROW(Dates)),ROW(2:2))-TableRowStart,4),\"\")","v":""},{"$f":"IFERROR(INDEX(Homework[],SMALL(IF(Dates=G$23,ROW(Dates)),ROW(2:2))-TableRowStart,4),\"\")","v":""},{"$f":"IFERROR(INDEX(Homework[],SMALL(IF(Dates=H$23,ROW(Dates)),ROW(2:2))-TableRowStart,4),\"\")","v":""}]
[null,{"$f":"IFERROR(INDEX(Homework[],SMALL(IF(Dates=B$23,ROW(Dates)),ROW(3:3))-TableRowStart,4),\"\")","v":""},{"$f":"IFERROR(INDEX(Homework[],SMALL(IF(Dates=C$23,ROW(Dates)),ROW(3:3))-TableRowStart,4),\"\")","v":""},{"$f":"IFERROR(INDEX(Homework[],SMALL(IF(Dates=D$23,ROW(Dates)),ROW(3:3))-TableRowStart,4),\"\")","v":""},{"$f":"IFERROR(INDEX(Homework[],SMALL(IF(Dates=E$23,ROW(Dates)),ROW(3:3))-TableRowStart,4),\"\")","v":""},{"$f":"IFERROR(INDEX(Homework[],SMALL(IF(Dates=F$23,ROW(Dates)),ROW(3:3))-TableRowStart,4),\"\")","v":""},{"$f":"IFERROR(INDEX(Homework[],SMALL(IF(Dates=G$23,ROW(Dates)),ROW(3:3))-TableRowStart,4),\"\")","v":""},{"$f":"IFERROR(INDEX(Homework[],SMALL(IF(Dates=H$23,ROW(Dates)),ROW(3:3))-TableRowStart,4),\"\")","v":""}]
[null,{"$f":"IFERROR(INDEX(Homework[],SMALL(IF(Dates=B$23,ROW(Dates)),ROW(4:4))-TableRowStart,4),\"\")","v":""},{"$f":"IFERROR(INDEX(Homework[],SMALL(IF(Dates=C$23,ROW(Dates)),ROW(4:4))-TableRowStart,4),\"\")","v":""},{"$f":"IFERROR(INDEX(Homework[],SMALL(IF(Dates=D$23,ROW(Dates)),ROW(4:4))-TableRowStart,4),\"\")","v":""},{"$f":"IFERROR(INDEX(Homework[],SMALL(IF(Dates=E$23,ROW(Dates)),ROW(4:4))-TableRowStart,4),\"\")","v":""},{"$f":"IFERROR(INDEX(Homework[],SMALL(IF(Dates=F$23,ROW(Dates)),ROW(4:4))-TableRowStart,4),\"\")","v":""},{"$f":"IFERROR(INDEX(Homework[],SMALL(IF(Dates=G$23,ROW(Dates)),ROW(4:4))-TableRowStart,4),\"\")","v":""},{"$f":"IFERROR(INDEX(Homework[],SMALL(IF(Dates=H$23,ROW(Dates)),ROW(4:4))-TableRowStart,4),\"\")","v":""}]
[null,{"$f":"IFERROR(INDEX(calendar,ndx+4,1),\"\")","v":"2018-05-27"},{"$f":"IFERROR(INDEX(calendar,ndx+4,2),\"\")","v":"2018-05-28"},{"$f":"IFERROR(INDEX(calendar,ndx+4,3),\"\")","v":"2018-05-29"},{"$f":"IFERROR(INDEX(calendar,ndx+4,4),\"\")","v":"2018-05-30"},{"$f":"IFERROR(INDEX(calendar,ndx+4,5),\"\")","v":"2018-05-31"},{"$f":"IFERROR(INDEX(calendar,ndx+4,6),\"\")","v":"2018-06-01"},{"$f":"IFERROR(INDEX(calendar,ndx+4,7),\"\")","v":"2018-06-02"}]
[null,{"$f":"IFERROR(INDEX(Homework[],SMALL(IF(Dates=B$28,ROW(Dates)),ROW(1:1))-TableRowStart,4),\"\")","v":""},{"$f":"IFERROR(INDEX(Homework[],SMALL(IF(Dates=C$28,ROW(Dates)),ROW(1:1))-TableRowStart,4),\"\")","v":""},{"$f":"IFERROR(INDEX(Homework[],SMALL(IF(Dates=D$28,ROW(Dates)),ROW(1:1))-TableRowStart,4),\"\")","v":""},{"$f":"IFERROR(INDEX(Homework[],SMALL(IF(Dates=E$28,ROW(Dates)),ROW(1:1))-TableRowStart,4),\"\")","v":""},{"$f":"IFERROR(INDEX(Homework[],SMALL(IF(Dates=F$28,ROW(Dates)),ROW(1:1))-TableRowStart,4),\"\")","v":""},{"$f":"IFERROR(INDEX(Homework[],SMALL(IF(Dates=G$28,ROW(Dates)),ROW(1:1))-TableRowStart,4),\"\")","v":""},{"$f":"IFERROR(INDEX(Homework[],SMALL(IF(Dates=H$28,ROW(Dates)),ROW(1:1))-TableRowStart,4),\"\")","v":""}]
[null,{"$f":"IFERROR(INDEX(Homework[],SMALL(IF(Dates=B$28,ROW(Dates)),ROW(2:2))-TableRowStart,4),\"\")","v":""},{"$f":"IFERROR(INDEX(Homework[],SMALL(IF(Dates=C$28,ROW(Dates)),ROW(2:2))-TableRowStart,4),\"\")","v":""},{"$f":"IFERROR(INDEX(Homework[],SMALL(IF(Dates=D$28,ROW(Dates)),ROW(2:2))-TableRowStart,4),\"\")","v":""},{"$f":"IFERROR(INDEX(Homework[],SMALL(IF(Dates=E$28,ROW(Dates)),ROW(2:2))-TableRowStart,4),\"\")","v":""},{"$f":"IFERROR(INDEX(Homework[],SMALL(IF(Dates=F$28,ROW(Dates)),ROW(2:2))-TableRowStart,4),\"\")","v":""},{"$f":"IFERROR(INDEX(Homework[],SMALL(IF(Dates=G$28,ROW(Dates)),ROW(2:2))-TableRowStart,4),\"\")","v":""},{"$f":"IFERROR(INDEX(Homework[],SMALL(IF(Dates=H$28,ROW(Dates)),ROW(2:2))-TableRowStart,4),\"\")","v":""}]
[null,{"$f":"IFERROR(INDEX(Homework[],SMALL(IF(Dates=B$28,ROW(Dates)),ROW(3:3))-TableRowStart,4),\"\")","v":""},{"$f":"IFERROR(INDEX(Homework[],SMALL(IF(Dates=C$28,ROW(Dates)),ROW(3:3))-TableRowStart,4),\"\")","v":""},{"$f":"IFERROR(INDEX(Homework[],SMALL(IF(Dates=D$28,ROW(Dates)),ROW(3:3))-TableRowStart,4),\"\")","v":""},{"$f":"IFERROR(INDEX(Homework[],SMALL(IF(Dates=E$28,ROW(Dates)),ROW(3:3))-TableRowStart,4),\"\")","v":""},{"$f":"IFERROR(INDEX(Homework[],SMALL(IF(Dates=F$28,ROW(Dates)),ROW(3:3))-TableRowStart,4),\"\")","v":""},{"$f":"IFERROR(INDEX(Homework[],SMALL(IF(Dates=G$28,ROW(Dates)),ROW(3:3))-TableRowStart,4),\"\")","v":""},{"$f":"IFERROR(INDEX(Homework[],SMALL(IF(Dates=H$28,ROW(Dates)),ROW(3:3))-TableRowStart,4),\"\")","v":""}]
[null,{"$f":"IFERROR(INDEX(Homework[],SMALL(IF(Dates=B$28,ROW(Dates)),ROW(4:4))-TableRowStart,4),\"\")","v":""},{"$f":"IFERROR(INDEX(Homework[],SMALL(IF(Dates=C$28,ROW(Dates)),ROW(4:4))-TableRowStart,4),\"\")","v":""},{"$f":"IFERROR(INDEX(Homework[],SMALL(IF(Dates=D$28,ROW(Dates)),ROW(4:4))-TableRowStart,4),\"\")","v":""},{"$f":"IFERROR(INDEX(Homework[],SMALL(IF(Dates=E$28,ROW(Dates)),ROW(4:4))-TableRowStart,4),\"\")","v":""},{"$f":"IFERROR(INDEX(Homework[],SMALL(IF(Dates=F$28,ROW(Dates)),ROW(4:4))-TableRowStart,4),\"\")","v":""},{"$f":"IFERROR(INDEX(Homework[],SMALL(IF(Dates=G$28,ROW(Dates)),ROW(4:4))-TableRowStart,4),\"\")","v":""},{"$f":"IFERROR(INDEX(Homework[],SMALL(IF(Dates=H$28,ROW(Dates)),ROW(4:4))-TableRowStart,4),\"\")","v":""}]
[null,{"$f":"IFERROR(INDEX(calendar,ndx+5,1),\"\")","v":"2018-06-03"},{"$f":"IFERROR(INDEX(calendar,ndx+5,2),\"\")","v":"2018-06-04"},{"$f":"IFERROR(INDEX(calendar,ndx+5,3),\"\")","v":"2018-06-05"},{"$f":"IFERROR(INDEX(calendar,ndx+5,4),\"\")","v":"2018-06-06"},{"$f":"IFERROR(INDEX(calendar,ndx+5,5),\"\")","v":"2018-06-07"},{"$f":"IFERROR(INDEX(calendar,ndx+5,6),\"\")","v":"2018-06-08"},{"$f":"IFERROR(INDEX(calendar,ndx+5,7),\"\")","v":"2018-06-09"}]
[null,{"$f":"IFERROR(INDEX(Homework[],SMALL(IF(Dates=B$33,ROW(Dates)),ROW(1:1))-TableRowStart,4),\"\")","v":""},{"$f":"IFERROR(INDEX(Homework[],SMALL(IF(Dates=C$33,ROW(Dates)),ROW(1:1))-TableRowStart,4),\"\")","v":""},{"$f":"IFERROR(INDEX(Homework[],SMALL(IF(Dates=D$33,ROW(Dates)),ROW(1:1))-TableRowStart,4),\"\")","v":""},{"$f":"IFERROR(INDEX(Homework[],SMALL(IF(Dates=E$33,ROW(Dates)),ROW(1:1))-TableRowStart,4),\"\")","v":""},{"$f":"IFERROR(INDEX(Homework[],SMALL(IF(Dates=F$33,ROW(Dates)),ROW(1:1))-TableRowStart,4),\"\")","v":""},{"$f":"IFERROR(INDEX(Homework[],SMALL(IF(Dates=G$33,ROW(Dates)),ROW(1:1))-TableRowStart,4),\"\")","v":""},{"$f":"IFERROR(INDEX(Homework[],SMALL(IF(Dates=H$33,ROW(Dates)),ROW(1:1))-TableRowStart,4),\"\")","v":""}]
[null,{"$f":"IFERROR(INDEX(Homework[],SMALL(IF(Dates=B$33,ROW(Dates)),ROW(2:2))-TableRowStart,4),\"\")","v":""},{"$f":"IFERROR(INDEX(Homework[],SMALL(IF(Dates=C$33,ROW(Dates)),ROW(2:2))-TableRowStart,4),\"\")","v":""},{"$f":"IFERROR(INDEX(Homework[],SMALL(IF(Dates=D$33,ROW(Dates)),ROW(2:2))-TableRowStart,4),\"\")","v":""},{"$f":"IFERROR(INDEX(Homework[],SMALL(IF(Dates=E$33,ROW(Dates)),ROW(2:2))-TableRowStart,4),\"\")","v":""},{"$f":"IFERROR(INDEX(Homework[],SMALL(IF(Dates=F$33,ROW(Dates)),ROW(2:2))-TableRowStart,4),\"\")","v":""},{"$f":"IFERROR(INDEX(Homework[],SMALL(IF(Dates=G$33,ROW(Dates)),ROW(2:2))-TableRowStart,4),\"\")","v":""},{"$f":"IFERROR(INDEX(Homework[],SMALL(IF(Dates=H$33,ROW(Dates)),ROW(2:2))-TableRowStart,4),\"\")","v":""}]
[null,{"$f":"IFERROR(INDEX(Homework[],SMALL(IF(Dates=B$33,ROW(Dates)),ROW(3:3))-TableRowStart,4),\"\")","v":""},{"$f":"IFERROR(INDEX(Homework[],SMALL(IF(Dates=C$33,ROW(Dates)),ROW(3:3))-TableRowStart,4),\"\")","v":""},{"$f":"IFERROR(INDEX(Homework[],SMALL(IF(Dates=D$33,ROW(Dates)),ROW(3:3))-TableRowStart,4),\"\")","v":""},{"$f":"IFERROR(INDEX(Homework[],SMALL(IF(Dates=E$33,ROW(Dates)),ROW(3:3))-TableRowStart,4),\"\")","v":""},{"$f":"IFERROR(INDEX(Homework[],SMALL(IF(Dates=F$33,ROW(Dates)),ROW(3:3))-TableRowStart,4),\"\")","v":""},{"$f":"IFERROR(INDEX(Homework[],SMALL(IF(Dates=G$33,ROW(Dates)),ROW(3:3))-TableRowStart,4),\"\")","v":""},{"$f":"IFERROR(INDEX(Homework[],SMALL(IF(Dates=H$33,ROW(Dates)),ROW(3:3))-TableRowStart,4),\"\")","v":""}]
[null,{"$f":"IFERROR(INDEX(Homework[],SMALL(IF(Dates=B$33,ROW(Dates)),ROW(4:4))-TableRowStart,4),\"\")","v":""},{"$f":"IFERROR(INDEX(Homework[],SMALL(IF(Dates=C$33,ROW(Dates)),ROW(4:4))-TableRowStart,4),\"\")","v":""},{"$f":"IFERROR(INDEX(Homework[],SMALL(IF(Dates=D$33,ROW(Dates)),ROW(4:4))-TableRowStart,4),\"\")","v":""},{"$f":"IFERROR(INDEX(Homework[],SMALL(IF(Dates=E$33,ROW(Dates)),ROW(4:4))-TableRowStart,4),\"\")","v":""},{"$f":"IFERROR(INDEX(Homework[],SMALL(IF(Dates=F$33,ROW(Dates)),ROW(4:4))-TableRowStart,4),\"\")","v":""},{"$f":"IFERROR(INDEX(Homework[],SMALL(IF(Dates=G$33,ROW(Dates)),ROW(4:4))-TableRowStart,4),\"\")","v":""},{"$f":"IFERROR(INDEX(Homework[],SMALL(IF(Dates=H$33,ROW(Dates)),ROW(4:4))-TableRowStart,4),\"\")","v":""}]

{"sheet":"Ongoing","index":1,"n_rows":543,"n_cols":23,"rows_kept":543,"cut":false,"hidden":false,"merged":[[3,2,3,9],[1,2,1,6],[2,2,2,9],[0,2,0,11],[5,9,6,9],[5,11,6,12],[6,5,7,5],[0,12,0,23],[1,12,1,19],[2,12,2,22],[3,12,3,22],[4,2,4,9],[4,12,4,22]]}
[null,null,"NICE Project- Northern Tier Initiative for Hep C Elimination",null,null,null,null,null,null,null,null,null,"NICE Project- Northern Tier Initiative for Hep C Elimination"]
[null,null,"Hepatitis C Patient Panel List",null,null,null,null,null,null,null,null,null,"Hepatitis C Patient Panel List"]
[null,null,"Developed by: LT Neelam 'Nelly' Gazarian, PharmD. QNBMHCF, Belcourt ND",null,null,null,null,null,null,null,null,null,"Developed by: LT Neelam 'Nelly' Gazarian, PharmD. QNBMHCF, Belcourt ND"]
[null,null,"                              with LCDR Jonathan Owen, PharmD.",null,null,null,null,null,null,null,null,null,"                              with LCDR Jonathan Owen, PharmD."]
[null,null,"email: neelam.gazarian@ihs.gov, jonathan.owen@ihs.gov",null,null,null,null,null,null,null,null,null,"email: neelam.gazarian@ihs.gov, jonathan.owen@ihs.gov"]
[null,null,null,null,null,null,null,null,null,">0.7 APRI likely fibrosis or cirrhosis",null,">3.25 likely advanced fibrosis, <1.45 unlikely advanced fibrosis"]
[null,null,null,null,null,"Date for Next Appt"]
["Patient Name","ID","DOB","Patient Status","Age in 2017",null,"AST/SGOT","ALT SGPT","Platelets","APRI","APRI Stage Calc","FIB 4","FIB 4 Stage Calc","Patient Sheet","Viral Load","Genotype","Meds","Duration of Tx","Notes","Contact Info","Medication Acquisition","ETR","SVR"]
[null,null,null,null,{"$f":"DATEDIF(C9,NOW(),\"Y\")","v":118},null,null,null,null,{"$f":"((G9/40)/I9)*100","v":{"$error":"#DIV/0!"}},{"$f":"IF(J9>0.7,3,1)","v":{"$error":"#DIV/0!"}},{"$f":"((E9*G9)/(I9*SQRT(H9)))","v":{"$error":"#DIV/0!"}},{"$f":"IF(L9>1.45,3,1)","v":{"$error":"#DIV/0!"}},"Sheet1!A1",0,"1 a/b","Ledipasvir/Sofosbuvir (Harvoni)","12 weeks","SVR achieved",123456789,"PAP",null,"2018-05-01"]
[null,null,null,null,118,null,null,null,null,{"$error":"#DIV/0!"},{"$f":"IF(J10>0.7,3,1)","v":{"$error":"#DIV/0!"}},{"$error":"#DIV/0!"},{"$error":"#DIV/0!"},"Sheet2!A1"]
[null,null,null,null,118,null,null,null,null,{"$error":"#DIV/0!"},{"$error":"#DIV/0!"},{"$error":"#DIV/0!"},{"$error":"#DIV/0!"},"Sheet3!A1"]
[null,null,null,null,118,null,null,null,null,{"$error":"#DIV/0!"},{"$error":"#DIV/0!"},{"$error":"#DIV/0!"},{"$error":"#DIV/0!"}]
[null,null,null,null,118,null,null,null,null,{"$error":"#DIV/0!"},{"$error":"#DIV/0!"},{"$error":"#DIV/0!"},{"$error":"#DIV/0!"}]
[null,null,null,null,118,null,null,null,null,{"$error":"#DIV/0!"},{"$error":"#DIV/0!"},{"$error":"#DIV/0!"},{"$error":"#DIV/0!"}]
[null,null,null,null,118,null,null,null,null,{"$error":"#DIV/0!"},{"$error":"#DIV/0!"},{"$error":"#DIV/0!"},{"$error":"#DIV/0!"}]
[null,null,null,null,118,null,null,null,null,{"$error":"#DIV/0!"},{"$error":"#DIV/0!"},{"$error":"#DIV/0!"},{"$error":"#DIV/0!"}]
[null,null,null,null,118,null,null,null,null,{"$error":"#DIV/0!"},{"$error":"#DIV/0!"},{"$error":"#DIV/0!"},{"$error":"#DIV/0!"}]
[null,null,null,null,118,null,null,null,null,{"$error":"#DIV/0!"},{"$error":"#DIV/0!"},{"$error":"#DIV/0!"},{"$error":"#DIV/0!"}]
[null,null,null,null,118,null,null,null,null,{"$error":"#DIV/0!"},{"$error":"#DIV/0!"},{"$error":"#DIV/0!"},{"$error":"#DIV/0!"}]
[null,null,null,null,118,null,null,null,null,{"$error":"#DIV/0!"},{"$error":"#DIV/0!"},{"$error":"#DIV/0!"},{"$error":"#DIV/0!"}]
[null,null,null,null,118,null,null,null,null,{"$error":"#DIV/0!"},{"$error":"#DIV/0!"},{"$error":"#DIV/0!"},{"$error":"#DIV/0!"}]
[null,null,null,null,118,null,null,null,null,{"$error":"#DIV/0!"},{"$error":"#DIV/0!"},{"$error":"#DIV/0!"},{"$error":"#DIV/0!"}]
[null,null,null,null,118,null,null,null,null,{"$error":"#DIV/0!"},{"$error":"#DIV/0!"},{"$error":"#DIV/0!"},{"$error":"#DIV/0!"}]
[null,null,null,null,118,null,null,null,null,{"$error":"#DIV/0!"},{"$error":"#DIV/0!"},{"$error":"#DIV/0!"},{"$error":"#DIV/0!"}]
[null,null,null,null,118,null,null,null,null,{"$error":"#DIV/0!"},{"$error":"#DIV/0!"},{"$error":"#DIV/0!"},{"$error":"#DIV/0!"}]
[null,null,null,null,118,null,null,null,null,{"$error":"#DIV/0!"},{"$error":"#DIV/0!"},{"$error":"#DIV/0!"},{"$error":"#DIV/0!"}]
[null,null,null,null,118,null,null,null,null,{"$error":"#DIV/0!"},{"$error":"#DIV/0!"},{"$error":"#DIV/0!"},{"$error":"#DIV/0!"}]
[null,null,null,null,118,null,null,null,null,{"$error":"#DIV/0!"},{"$error":"#DIV/0!"},{"$error":"#DIV/0!"},{"$error":"#DIV/0!"}]
[null,null,null,null,118,null,null,null,null,{"$error":"#DIV/0!"},{"$error":"#DIV/0!"},{"$error":"#DIV/0!"},{"$error":"#DIV/0!"}]
[null,null,null,null,118,null,null,null,null,{"$error":"#DIV/0!"},{"$error":"#DIV/0!"},{"$error":"#DIV/0!"},{"$error":"#DIV/0!"}]
[null,null,null,null,118,null,null,null,null,{"$error":"#DIV/0!"},{"$error":"#DIV/0!"},{"$error":"#DIV/0!"},{"$error":"#DIV/0!"}]
[null,null,null,null,118,null,null,null,null,{"$error":"#DIV/0!"},{"$error":"#DIV/0!"},{"$error":"#DIV/0!"},{"$error":"#DIV/0!"}]
[null,null,null,null,118,null,null,null,null,{"$error":"#DIV/0!"},{"$error":"#DIV/0!"},{"$error":"#DIV/0!"},{"$error":"#DIV/0!"}]
[null,null,null,null,118,null,null,null,null,{"$error":"#DIV/0!"},{"$error":"#DIV/0!"},{"$error":"#DIV/0!"},{"$error":"#DIV/0!"}]
[null,null,null,null,118,null,null,null,null,{"$error":"#DIV/0!"},{"$error":"#DIV/0!"},{"$error":"#DIV/0!"},{"$error":"#DIV/0!"}]
[null,null,null,null,118,null,null,null,null,{"$error":"#DIV/0!"},{"$error":"#DIV/0!"},{"$error":"#DIV/0!"},{"$error":"#DIV/0!"}]
[null,null,null,null,{"$f":"DATEDIF(C37,NOW(),\"Y\")","v":118},null,null,null,null,{"$f":"((G37/40)/I37)*100","v":{"$error":"#DIV/0!"}},{"$f":"IF(J37>0.7,3,1)","v":{"$error":"#DIV/0!"}},{"$f":"((E37*G37)/(I37*SQRT(H37)))","v":{"$error":"#DIV/0!"}},{"$f":"IF(L37>1.45,3,1)","v":{"$error":"#DIV/0!"}}]
[null,null,null,null,{"$f":"DATEDIF(C38,NOW(),\"Y\")","v":118},null,null,null,null,{"$f":"((G38/40)/I38)*100","v":{"$error":"#DIV/0!"}},{"$f":"IF(J38>0.7,3,1)","v":{"$error":"#DIV/0!"}},{"$f":"((E38*G38)/(I38*SQRT(H38)))","v":{"$error":"#DIV/0!"}},{"$f":"IF(L38>1.45,3,1)","v":{"$error":"#DIV/0!"}}]
[null,null,null,null,{"$f":"DATEDIF(C39,NOW(),\"Y\")","v":118},null,null,null,null,{"$f":"((G39/40)/I39)*100","v":{"$error":"#DIV/0!"}},{"$f":"IF(J39>0.7,3,1)","v":{"$error":"#DIV/0!"}},{"$f":"((E39*G39)/(I39*SQRT(H39)))","v":{"$error":"#DIV/0!"}},{"$f":"IF(L39>1.45,3,1)","v":{"$error":"#DIV/0!"}}]
[null,null,null,null,118,null,null,null,null,{"$error":"#DIV/0!"},{"$error":"#DIV/0!"},{"$error":"#DIV/0!"},{"$error":"#DIV/0!"}]
[null,null,null,null,{"$f":"DATEDIF(C41,NOW(),\"Y\")","v":118},null,null,null,null,{"$f":"((G41/40)/I41)*100","v":{"$error":"#DIV/0!"}},{"$f":"IF(J41>0.7,3,1)","v":{"$error":"#DIV/0!"}},{"$f":"((E41*G41)/(I41*SQRT(H41)))","v":{"$error":"#DIV/0!"}},{"$f":"IF(L41>1.45,3,1)","v":{"$error":"#DIV/0!"}}]
[null,null,null,null,{"$f":"DATEDIF(C42,NOW(),\"Y\")","v":118},null,null,null,null,{"$f":"((G42/40)/I42)*100","v":{"$error":"#DIV/0!"}},{"$f":"IF(J42>0.7,3,1)","v":{"$error":"#DIV/0!"}},{"$f":"((E42*G42)/(I42*SQRT(H42)))","v":{"$error":"#DIV/0!"}},{"$f":"IF(L42>1.45,3,1)","v":{"$error":"#DIV/0!"}}]
[null,null,null,null,118,null,null,null,null,{"$error":"#DIV/0!"},{"$error":"#DIV/0!"},{"$error":"#DIV/0!"},{"$error":"#DIV/0!"}]
[null,null,null,null,118,null,null,null,null,{"$error":"#DIV/0!"},{"$error":"#DIV/0!"},{"$error":"#DIV/0!"},{"$error":"#DIV/0!"}]
[null,null,null,null,118,null,null,null,null,{"$error":"#DIV/0!"},{"$error":"#DIV/0!"},{"$error":"#DIV/0!"},{"$error":"#DIV/0!"}]
[null,null,null,null,118,null,null,null,null,{"$error":"#DIV/0!"},{"$error":"#DIV/0!"},{"$error":"#DIV/0!"},{"$error":"#DIV/0!"}]
[null,null,null,null,118,null,null,null,null,{"$error":"#DIV/0!"},{"$error":"#DIV/0!"},{"$error":"#DIV/0!"},{"$error":"#DIV/0!"}]
[null,null,null,null,118,null,null,null,null,{"$error":"#DIV/0!"},{"$error":"#DIV/0!"},{"$error":"#DIV/0!"},{"$error":"#DIV/0!"}]
[null,null,null,null,{"$f":"DATEDIF(C49,NOW(),\"Y\")","v":118},null,null,null,null,{"$f":"((G49/40)/I49)*100","v":{"$error":"#DIV/0!"}},{"$f":"IF(J49>0.7,3,1)","v":{"$error":"#DIV/0!"}},{"$f":"((E49*G49)/(I49*SQRT(H49)))","v":{"$error":"#DIV/0!"}},{"$f":"IF(L49>1.45,3,1)","v":{"$error":"#DIV/0!"}}]
[null,null,null,null,118,null,null,null,null,{"$error":"#DIV/0!"},{"$error":"#DIV/0!"},{"$error":"#DIV/0!"},{"$error":"#DIV/0!"}]
[null,null,null,null,118,null,null,null,null,{"$error":"#DIV/0!"},{"$error":"#DIV/0!"},{"$error":"#DIV/0!"},{"$error":"#DIV/0!"}]
[null,null,null,null,118,null,null,null,null,{"$error":"#DIV/0!"},{"$error":"#DIV/0!"},{"$error":"#DIV/0!"},{"$error":"#DIV/0!"}]
[null,null,null,null,118,null,null,null,null,{"$error":"#DIV/0!"},{"$error":"#DIV/0!"},{"$error":"#DIV/0!"},{"$error":"#DIV/0!"}]
[null,null,null,null,118,null,null,null,null,{"$error":"#DIV/0!"},{"$error":"#DIV/0!"},{"$error":"#DIV/0!"},{"$error":"#DIV/0!"}]
[null,null,null,null,118,null,null,null,null,{"$error":"#DIV/0!"},{"$error":"#DIV/0!"},{"$error":"#DIV/0!"},{"$error":"#DIV/0!"}]
[null,null,null,null,118,null,null,null,null,{"$error":"#DIV/0!"},{"$error":"#DIV/0!"},{"$error":"#DIV/0!"},{"$error":"#DIV/0!"}]
[null,null,null,null,118,null,null,null,null,{"$error":"#DIV/0!"},{"$error":"#DIV/0!"},{"$error":"#DIV/0!"},{"$error":"#DIV/0!"}]
[null,null,null,null,118,null,null,null,null,{"$f":"((G58/40)/I58)*100","v":{"$error":"#DIV/0!"}},{"$f":"IF(J58>0.7,3,1)","v":{"$error":"#DIV/0!"}},{"$f":"((E58*G58)/(I58*SQRT(H58)))","v":{"$error":"#DIV/0!"}},{"$f":"IF(L58>1.45,3,1)","v":{"$error":"#DIV/0!"}}]
[null,null,null,null,118,null,null,null,null,{"$error":"#DIV/0!"},{"$error":"#DIV/0!"},{"$error":"#DIV/0!"},{"$error":"#DIV/0!"}]
[null,null,null,null,118,null,null,null,null,{"$error":"#DIV/0!"},{"$error":"#DIV/0!"},{"$error":"#DIV/0!"},{"$error":"#DIV/0!"}]
[null,null,null,null,118,null,null,null,null,{"$error":"#DIV/0!"},{"$error":"#DIV/0!"},{"$error":"#DIV/0!"},{"$error":"#DIV/0!"}]
[null,null,null,null,{"$f":"DATEDIF(C62,NOW(),\"Y\")","v":118},null,null,null,null,{"$f":"((G62/40)/I62)*100","v":{"$error":"#DIV/0!"}},{"$f":"IF(J62>0.7,3,1)","v":{"$error":"#DIV/0!"}},{"$f":"((E62*G62)/(I62*SQRT(H62)))","v":{"$error":"#DIV/0!"}},{"$f":"IF(L62>1.45,3,1)","v":{"$error":"#DIV/0!"}}]
[null,null,null,null,118,null,null,null,null,{"$error":"#DIV/0!"},{"$error":"#DIV/0!"},{"$error":"#DIV/0!"},{"$error":"#DIV/0!"}]
[null,null,null,null,118,null,null,null,null,{"$error":"#DIV/0!"},{"$error":"#DIV/0!"},{"$error":"#DIV/0!"},{"$error":"#DIV/0!"}]
[null,null,null,null,118,null,null,null,null,{"$error":"#DIV/0!"},{"$error":"#DIV/0!"},{"$error":"#DIV/0!"},{"$error":"#DIV/0!"}]
[null,null,null,null,118,null,null,null,null,{"$error":"#DIV/0!"},{"$error":"#DIV/0!"},{"$error":"#DIV/0!"},{"$error":"#DIV/0!"}]
[null,null,null,null,{"$f":"DATEDIF(C67,NOW(),\"Y\")","v":118},null,null,null,null,{"$f":"((G67/40)/I67)*100","v":{"$error":"#DIV/0!"}},{"$f":"IF(J67>0.7,3,1)","v":{"$error":"#DIV/0!"}},{"$f":"((E67*G67)/(I67*SQRT(H67)))","v":{"$error":"#DIV/0!"}},{"$f":"IF(L67>1.45,3,1)","v":{"$error":"#DIV/0!"}}]
[null,null,null,null,118,null,null,null,null,{"$error":"#DIV/0!"},{"$error":"#DIV/0!"},{"$error":"#DIV/0!"},{"$error":"#DIV/0!"}]
[null,null,null,null,{"$f":"DATEDIF(C69,NOW(),\"Y\")","v":118},null,null,null,null,{"$f":"((G69/40)/I69)*100","v":{"$error":"#DIV/0!"}},{"$f":"IF(J69>0.7,3,1)","v":{"$error":"#DIV/0!"}},{"$f":"((E69*G69)/(I69*SQRT(H69)))","v":{"$error":"#DIV/0!"}},{"$f":"IF(L69>1.45,3,1)","v":{"$error":"#DIV/0!"}}]
[null,null,null,null,118,null,null,null,null,{"$error":"#DIV/0!"},{"$error":"#DIV/0!"},{"$error":"#DIV/0!"},{"$error":"#DIV/0!"}]
[null,null,null,null,118,null,null,null,null,{"$error":"#DIV/0!"},{"$error":"#DIV/0!"},{"$error":"#DIV/0!"},{"$error":"#DIV/0!"}]
[null,null,null,null,118,null,null,null,null,{"$error":"#DIV/0!"},{"$error":"#DIV/0!"},{"$error":"#DIV/0!"},{"$error":"#DIV/0!"}]
[null,null,null,null,118,null,null,null,null,{"$error":"#DIV/0!"},{"$error":"#DIV/0!"},{"$error":"#DIV/0!"},{"$error":"#DIV/0!"}]
[null,null,null,null,118,null,null,null,null,{"$error":"#DIV/0!"},{"$error":"#DIV/0!"},{"$error":"#DIV/0!"},{"$error":"#DIV/0!"}]
[null,null,null,null,118,null,null,null,null,{"$error":"#DIV/0!"},{"$error":"#DIV/0!"},{"$error":"#DIV/0!"},{"$error":"#DIV/0!"}]
[null,null,null,null,118,null,null,null,null,{"$error":"#DIV/0!"},{"$error":"#DIV/0!"},{"$error":"#DIV/0!"},{"$error":"#DIV/0!"}]
[null,null,null,null,118,null,null,null,null,{"$error":"#DIV/0!"},{"$error":"#DIV/0!"},{"$error":"#DIV/0!"},{"$error":"#DIV/0!"}]
[null,null,null,null,118,null,null,null,null,{"$error":"#DIV/0!"},{"$error":"#DIV/0!"},{"$error":"#DIV/0!"},{"$error":"#DIV/0!"}]
[null,null,null,null,{"$f":"DATEDIF(C79,NOW(),\"Y\")","v":118},null,null,null,null,{"$f":"((G79/40)/I79)*100","v":{"$error":"#DIV/0!"}},{"$f":"IF(J79>0.7,3,1)","v":{"$error":"#DIV/0!"}},{"$f":"((E79*G79)/(I79*SQRT(H79)))","v":{"$error":"#DIV/0!"}},{"$f":"IF(L79>1.45,3,1)","v":{"$error":"#DIV/0!"}}]
[null,null,null,null,118,null,null,null,null,{"$error":"#DIV/0!"},{"$error":"#DIV/0!"},{"$error":"#DIV/0!"},{"$error":"#DIV/0!"}]
[null,null,null,null,118,null,null,null,null,{"$error":"#DIV/0!"},{"$error":"#DIV/0!"},{"$error":"#DIV/0!"},{"$error":"#DIV/0!"}]
[null,null,null,null,118,null,null,null,null,{"$error":"#DIV/0!"},{"$error":"#DIV/0!"},{"$error":"#DIV/0!"},{"$error":"#DIV/0!"}]
[null,null,null,null,118,null,null,null,null,{"$error":"#DIV/0!"},{"$error":"#DIV/0!"},{"$error":"#DIV/0!"},{"$error":"#DIV/0!"}]
[null,null,null,null,118,null,null,null,null,{"$error":"#DIV/0!"},{"$error":"#DIV/0!"},{"$error":"#DIV/0!"},{"$error":"#DIV/0!"}]
[null,null,null,null,118,null,null,null,null,{"$error":"#DIV/0!"},{"$f":"IF(J85>0.7,3,1)","v":{"$error":"#DIV/0!"}},{"$f":"((E85*G85)/(I85*SQRT(H85)))","v":{"$error":"#DIV/0!"}},{"$f":"IF(L85>1.45,3,1)","v":{"$error":"#DIV/0!"}}]
[null,null,null,null,118,null,null,null,null,{"$error":"#DIV/0!"},{"$error":"#DIV/0!"},{"$error":"#DIV/0!"},{"$error":"#DIV/0!"}]
[null,null,null,null,118,null,null,null,null,{"$error":"#DIV/0!"},{"$error":"#DIV/0!"},{"$error":"#DIV/0!"},{"$error":"#DIV/0!"}]
[null,null,null,null,118,null,null,null,null,{"$error":"#DIV/0!"},{"$error":"#DIV/0!"},{"$error":"#DIV/0!"},{"$error":"#DIV/0!"}]
[null,null,null,null,118,null,null,null,null,{"$error":"#DIV/0!"},{"$error":"#DIV/0!"},{"$error":"#DIV/0!"},{"$error":"#DIV/0!"}]
[null,null,null,null,118,null,null,null,null,{"$error":"#DIV/0!"},{"$error":"#DIV/0!"},{"$error":"#DIV/0!"},{"$error":"#DIV/0!"}]
[null,null,null,null,118,null,null,null,null,{"$error":"#DIV/0!"},{"$error":"#DIV/0!"},{"$error":"#DIV/0!"},{"$error":"#DIV/0!"}]
[null,null,null,null,118,null,null,null,null,{"$error":"#DIV/0!"},{"$error":"#DIV/0!"},{"$error":"#DIV/0!"},{"$error":"#DIV/0!"}]
[null,null,null,null,118,null,null,null,null,{"$error":"#DIV/0!"},{"$error":"#DIV/0!"},{"$error":"#DIV/0!"},{"$error":"#DIV/0!"}]
[null,null,null,null,118,null,null,null,null,{"$error":"#DIV/0!"},{"$error":"#DIV/0!"},{"$error":"#DIV/0!"},{"$error":"#DIV/0!"}]
[null,null,null,null,118,null,null,null,null,{"$error":"#DIV/0!"},{"$error":"#DIV/0!"},{"$error":"#DIV/0!"},{"$error":"#DIV/0!"}]
[null,null,null,null,118,null,null,null,null,{"$error":"#DIV/0!"},{"$error":"#DIV/0!"},{"$error":"#DIV/0!"},{"$error":"#DIV/0!"}]
[null,null,null,null,118,null,null,null,null,{"$error":"#DIV/0!"},{"$error":"#DIV/0!"},{"$error":"#DIV/0!"},{"$error":"#DIV/0!"}]
[null,null,null,null,118,null,null,null,null,{"$error":"#DIV/0!"},{"$error":"#DIV/0!"},{"$error":"#DIV/0!"},{"$error":"#DIV/0!"}]
[null,null,null,null,118,null,null,null,null,{"$error":"#DIV/0!"},{"$error":"#DIV/0!"},{"$error":"#DIV/0!"},{"$error":"#DIV/0!"}]
[null,null,null,null,118,null,null,null,null,{"$error":"#DIV/0!"},{"$error":"#DIV/0!"},{"$error":"#DIV/0!"},{"$error":"#DIV/0!"}]
[null,null,null,null,118,null,null,null,null,{"$error":"#DIV/0!"},{"$error":"#DIV/0!"},{"$error":"#DIV/0!"},{"$error":"#DIV/0!"}]
[null,null,null,null,118,null,null,null,null,{"$error":"#DIV/0!"},{"$error":"#DIV/0!"},{"$error":"#DIV/0!"},{"$error":"#DIV/0!"}]
[null,null,null,null,118,null,null,null,null,{"$error":"#DIV/0!"},{"$error":"#DIV/0!"},{"$error":"#DIV/0!"},{"$error":"#DIV/0!"}]
[null,null,null,null,118,null,null,null,null,{"$error":"#DIV/0!"},{"$error":"#DIV/0!"},{"$error":"#DIV/0!"},{"$error":"#DIV/0!"}]
[null,null,null,null,118,null,null,null,null,{"$error":"#DIV/0!"},{"$error":"#DIV/0!"},{"$error":"#DIV/0!"},{"$error":"#DIV/0!"}]
[null,null,null,null,118,null,null,null,null,{"$error":"#DIV/0!"},{"$error":"#DIV/0!"},{"$error":"#DIV/0!"},{"$error":"#DIV/0!"}]
[null,null,null,null,{"$f":"DATEDIF(C107,NOW(),\"Y\")","v":118},null,null,null,null,{"$error":"#DIV/0!"},{"$error":"#DIV/0!"},{"$error":"#DIV/0!"},{"$error":"#DIV/0!"}]
[null,null,null,null,118,null,null,null,null,{"$error":"#DIV/0!"},{"$error":"#DIV/0!"},{"$error":"#DIV/0!"},{"$error":"#DIV/0!"}]
[null,null,null,null,118,null,null,null,null,{"$error":"#DIV/0!"},{"$error":"#DIV/0!"},{"$error":"#DIV/0!"},{"$error":"#DIV/0!"}]
[null,null,null,null,118,null,null,null,null,{"$error":"#DIV/0!"},{"$error":"#DIV/0!"},{"$error":"#DIV/0!"},{"$error":"#DIV/0!"}]
[null,null,null,null,118,null,null,null,null,{"$error":"#DIV/0!"},{"$error":"#DIV/0!"},{"$error":"#DIV/0!"},{"$error":"#DIV/0!"}]
[null,null,null,null,118,null,null,null,null,{"$error":"#DIV/0!"},{"$error":"#DIV/0!"},{"$error":"#DIV/0!"},{"$error":"#DIV/0!"}]
[null,null,null,null,118,null,null,null,null,{"$error":"#DIV/0!"},{"$error":"#DIV/0!"},{"$error":"#DIV/0!"},{"$error":"#DIV/0!"}]
[null,null,null,null,118,null,null,null,null,{"$error":"#DIV/0!"},{"$error":"#DIV/0!"},{"$error":"#DIV/0!"},{"$error":"#DIV/0!"}]
[null,null,null,null,118,null,null,null,null,{"$error":"#DIV/0!"},{"$error":"#DIV/0!"},{"$error":"#DIV/0!"},{"$error":"#DIV/0!"}]
[null,null,null,null,118,null,null,null,null,{"$error":"#DIV/0!"},{"$error":"#DIV/0!"},{"$error":"#DIV/0!"},{"$error":"#DIV/0!"}]
[null,null,null,null,118,null,null,null,null,{"$error":"#DIV/0!"},{"$error":"#DIV/0!"},{"$error":"#DIV/0!"},{"$error":"#DIV/0!"}]
[null,null,null,null,118,null,null,null,null,{"$error":"#DIV/0!"},{"$error":"#DIV/0!"},{"$error":"#DIV/0!"},{"$error":"#DIV/0!"}]
[null,null,null,null,118,null,null,null,null,{"$error":"#DIV/0!"},{"$error":"#DIV/0!"},{"$error":"#DIV/0!"},{"$error":"#DIV/0!"}]
[null,null,null,null,118,null,null,null,null,{"$error":"#DIV/0!"},{"$error":"#DIV/0!"},{"$error":"#DIV/0!"},{"$error":"#DIV/0!"}]
[null,null,null,null,118,null,null,null,null,{"$error":"#DIV/0!"},{"$error":"#DIV/0!"},{"$error":"#DIV/0!"},{"$error":"#DIV/0!"}]
[null,null,null,null,118,null,null,null,null,{"$error":"#DIV/0!"},{"$error":"#DIV/0!"},{"$error":"#DIV/0!"},{"$error":"#DIV/0!"}]
[null,null,null,null,118,null,null,null,null,{"$error":"#DIV/0!"},{"$error":"#DIV/0!"},{"$error":"#DIV/0!"},{"$error":"#DIV/0!"}]
[null,null,null,null,118,null,null,null,null,{"$error":"#DIV/0!"},{"$error":"#DIV/0!"},{"$error":"#DIV/0!"},{"$error":"#DIV/0!"}]
[null,null,null,null,118,null,null,null,null,{"$error":"#DIV/0!"},{"$error":"#DIV/0!"},{"$error":"#DIV/0!"},{"$error":"#DIV/0!"}]
[null,null,null,null,118,null,null,null,null,{"$error":"#DIV/0!"},{"$error":"#DIV/0!"},{"$error":"#DIV/0!"},{"$error":"#DIV/0!"}]
[null,null,null,null,118,null,null,null,null,{"$error":"#DIV/0!"},{"$error":"#DIV/0!"},{"$error":"#DIV/0!"},{"$error":"#DIV/0!"}]
[null,null,null,null,118,null,null,null,null,{"$error":"#DIV/0!"},{"$error":"#DIV/0!"},{"$error":"#DIV/0!"},{"$error":"#DIV/0!"}]
[null,null,null,null,118,null,null,null,null,{"$error":"#DIV/0!"},{"$error":"#DIV/0!"},{"$error":"#DIV/0!"},{"$error":"#DIV/0!"}]
[null,null,null,null,118,null,null,null,null,{"$error":"#DIV/0!"},{"$error":"#DIV/0!"},{"$error":"#DIV/0!"},{"$error":"#DIV/0!"}]
[null,null,null,null,118,null,null,null,null,{"$f":"((G131/40)/I131)*100","v":{"$error":"#DIV/0!"}},{"$error":"#DIV/0!"},{"$error":"#DIV/0!"},{"$error":"#DIV/0!"}]
[null,null,null,null,118,null,null,null,null,{"$error":"#DIV/0!"},{"$error":"#DIV/0!"},{"$error":"#DIV/0!"},{"$error":"#DIV/0!"}]
[null,null,null,null,118,null,null,null,null,{"$error":"#DIV/0!"},{"$f":"IF(J133>0.7,3,1)","v":{"$error":"#DIV/0!"}},{"$f":"((E133*G133)/(I133*SQRT(H133)))","v":{"$error":"#DIV/0!"}},{"$f":"IF(L133>1.45,3,1)","v":{"$error":"#DIV/0!"}}]
[null,null,null,null,118,null,null,null,null,{"$error":"#DIV/0!"},{"$error":"#DIV/0!"},{"$error":"#DIV/0!"},{"$error":"#DIV/0!"}]
[null,null,null,null,118,null,null,null,null,{"$error":"#DIV/0!"},{"$error":"#DIV/0!"},{"$error":"#DIV/0!"},{"$error":"#DIV/0!"}]
[null,null,null,null,118,null,null,null,null,{"$error":"#DIV/0!"},{"$error":"#DIV/0!"},{"$error":"#DIV/0!"},{"$error":"#DIV/0!"}]
[null,null,null,null,118,null,null,null,null,{"$error":"#DIV/0!"},{"$error":"#DIV/0!"},{"$error":"#DIV/0!"},{"$error":"#DIV/0!"}]
[null,null,null,null,118,null,null,null,null,{"$error":"#DIV/0!"},{"$error":"#DIV/0!"},{"$error":"#DIV/0!"},{"$error":"#DIV/0!"}]
[null,null,null,null,118,null,null,null,null,{"$error":"#DIV/0!"},{"$error":"#DIV/0!"},{"$error":"#DIV/0!"},{"$error":"#DIV/0!"}]
[null,null,null,null,118,null,null,null,null,{"$error":"#DIV/0!"},{"$error":"#DIV/0!"},{"$error":"#DIV/0!"},{"$error":"#DIV/0!"}]
[null,null,null,null,118,null,null,null,null,{"$error":"#DIV/0!"},{"$error":"#DIV/0!"},{"$error":"#DIV/0!"},{"$error":"#DIV/0!"}]
[null,null,null,null,118,null,null,null,null,{"$error":"#DIV/0!"},{"$error":"#DIV/0!"},{"$error":"#DIV/0!"},{"$error":"#DIV/0!"}]
[null,null,null,null,118,null,null,null,null,{"$error":"#DIV/0!"},{"$error":"#DIV/0!"},{"$error":"#DIV/0!"},{"$error":"#DIV/0!"}]
[null,null,null,null,118,null,null,null,null,{"$error":"#DIV/0!"},{"$error":"#DIV/0!"},{"$error":"#DIV/0!"},{"$error":"#DIV/0!"}]
[null,null,null,null,118,null,null,null,null,{"$error":"#DIV/0!"},{"$error":"#DIV/0!"},{"$error":"#DIV/0!"},{"$error":"#DIV/0!"}]
[null,null,null,null,118,null,null,null,null,{"$error":"#DIV/0!"},{"$error":"#DIV/0!"},{"$error":"#DIV/0!"},{"$error":"#DIV/0!"}]
[null,null,null,null,118,null,null,null,null,{"$error":"#DIV/0!"},{"$error":"#DIV/0!"},{"$error":"#DIV/0!"},{"$error":"#DIV/0!"}]
[null,null,null,null,118,null,null,null,null,{"$error":"#DIV/0!"},{"$error":"#DIV/0!"},{"$error":"#DIV/0!"},{"$error":"#DIV/0!"}]
[null,null,null,null,118,null,null,null,null,{"$error":"#DIV/0!"},{"$error":"#DIV/0!"},{"$error":"#DIV/0!"},{"$error":"#DIV/0!"}]
[null,null,null,null,118,null,null,null,null,{"$error":"#DIV/0!"},{"$error":"#DIV/0!"},{"$error":"#DIV/0!"},{"$error":"#DIV/0!"}]
[null,null,null,null,118,null,null,null,null,{"$error":"#DIV/0!"},{"$error":"#DIV/0!"},{"$error":"#DIV/0!"},{"$error":"#DIV/0!"}]
[null,null,null,null,118,null,null,null,null,{"$error":"#DIV/0!"},{"$error":"#DIV/0!"},{"$error":"#DIV/0!"},{"$error":"#DIV/0!"}]
[null,null,null,null,118,null,null,null,null,{"$error":"#DIV/0!"},{"$error":"#DIV/0!"},{"$error":"#DIV/0!"},{"$error":"#DIV/0!"}]
[null,null,null,null,118,null,null,null,null,{"$error":"#DIV/0!"},{"$error":"#DIV/0!"},{"$error":"#DIV/0!"},{"$error":"#DIV/0!"}]
[null,null,null,null,118,null,null,null,null,{"$error":"#DIV/0!"},{"$error":"#DIV/0!"},{"$error":"#DIV/0!"},{"$error":"#DIV/0!"}]
[null,null,null,null,118,null,null,null,null,{"$error":"#DIV/0!"},{"$error":"#DIV/0!"},{"$error":"#DIV/0!"},{"$error":"#DIV/0!"}]
[null,null,null,null,118,null,null,null,null,{"$error":"#DIV/0!"},{"$error":"#DIV/0!"},{"$error":"#DIV/0!"},{"$error":"#DIV/0!"}]
[null,null,null,null,118,null,null,null,null,{"$error":"#DIV/0!"},{"$error":"#DIV/0!"},{"$error":"#DIV/0!"},{"$error":"#DIV/0!"}]
[null,null,null,null,118,null,null,null,null,{"$error":"#DIV/0!"},{"$error":"#DIV/0!"},{"$error":"#DIV/0!"},{"$error":"#DIV/0!"}]
[null,null,null,null,118,null,null,null,null,{"$error":"#DIV/0!"},{"$error":"#DIV/0!"},{"$error":"#DIV/0!"},{"$error":"#DIV/0!"}]
[null,null,null,null,118,null,null,null,null,{"$error":"#DIV/0!"},{"$error":"#DIV/0!"},{"$error":"#DIV/0!"},{"$error":"#DIV/0!"}]
[null,null,null,null,118,null,null,null,null,{"$error":"#DIV/0!"},{"$error":"#DIV/0!"},{"$error":"#DIV/0!"},{"$error":"#DIV/0!"}]
[null,null,null,null,118,null,null,null,null,{"$error":"#DIV/0!"},{"$error":"#DIV/0!"},{"$error":"#DIV/0!"},{"$error":"#DIV/0!"}]
[null,null,null,null,118,null,null,null,null,{"$error":"#DIV/0!"},{"$error":"#DIV/0!"},{"$error":"#DIV/0!"},{"$error":"#DIV/0!"}]
[null,null,null,null,118,null,null,null,null,{"$error":"#DIV/0!"},{"$error":"#DIV/0!"},{"$error":"#DIV/0!"},{"$error":"#DIV/0!"}]
[null,null,null,null,118,null,null,null,null,{"$error":"#DIV/0!"},{"$error":"#DIV/0!"},{"$error":"#DIV/0!"},{"$error":"#DIV/0!"}]
[null,null,null,null,118,null,null,null,null,{"$error":"#DIV/0!"},{"$error":"#DIV/0!"},{"$error":"#DIV/0!"},{"$error":"#DIV/0!"}]
[null,null,null,null,118,null,null,null,null,{"$error":"#DIV/0!"},{"$error":"#DIV/0!"},{"$error":"#DIV/0!"},{"$error":"#DIV/0!"}]
[null,null,null,null,118,null,null,null,null,{"$error":"#DIV/0!"},{"$error":"#DIV/0!"},{"$error":"#DIV/0!"},{"$error":"#DIV/0!"}]
[null,null,null,null,118,null,null,null,null,{"$error":"#DIV/0!"},{"$error":"#DIV/0!"},{"$error":"#DIV/0!"},{"$error":"#DIV/0!"}]
[null,null,null,null,{"$f":"DATEDIF(C171,NOW(),\"Y\")","v":118},null,null,null,null,{"$error":"#DIV/0!"},{"$error":"#DIV/0!"},{"$error":"#DIV/0!"},{"$error":"#DIV/0!"}]
[null,null,null,null,118,null,null,null,null,{"$error":"#DIV/0!"},{"$error":"#DIV/0!"},{"$error":"#DIV/0!"},{"$error":"#DIV/0!"}]
[null,null,null,null,118,null,null,null,null,{"$error":"#DIV/0!"},{"$error":"#DIV/0!"},{"$error":"#DIV/0!"},{"$error":"#DIV/0!"}]
[null,null,null,null,118,null,null,null,null,{"$error":"#DIV/0!"},{"$error":"#DIV/0!"},{"$error":"#DIV/0!"},{"$error":"#DIV/0!"}]
[null,null,null,null,118,null,null,null,null,{"$error":"#DIV/0!"},{"$error":"#DIV/0!"},{"$error":"#DIV/0!"},{"$error":"#DIV/0!"}]
[null,null,null,null,118,null,null,null,null,{"$error":"#DIV/0!"},{"$error":"#DIV/0!"},{"$error":"#DIV/0!"},{"$error":"#DIV/0!"}]
[null,null,null,null,118,null,null,null,null,{"$error":"#DIV/0!"},{"$error":"#DIV/0!"},{"$error":"#DIV/0!"},{"$error":"#DIV/0!"}]
[null,null,null,null,118,null,null,null,null,{"$error":"#DIV/0!"},{"$error":"#DIV/0!"},{"$error":"#DIV/0!"},{"$error":"#DIV/0!"}]
[null,null,null,null,118,null,null,null,null,{"$error":"#DIV/0!"},{"$error":"#DIV/0!"},{"$error":"#DIV/0!"},{"$error":"#DIV/0!"}]
[null,null,null,null,118,null,null,null,null,{"$error":"#DIV/0!"},{"$error":"#DIV/0!"},{"$error":"#DIV/0!"},{"$error":"#DIV/0!"}]
[null,null,null,null,118,null,null,null,null,{"$error":"#DIV/0!"},{"$error":"#DIV/0!"},{"$error":"#DIV/0!"},{"$error":"#DIV/0!"}]
[null,null,null,null,118,null,null,null,null,{"$error":"#DIV/0!"},{"$error":"#DIV/0!"},{"$error":"#DIV/0!"},{"$error":"#DIV/0!"}]
[null,null,null,null,118,null,null,null,null,{"$error":"#DIV/0!"},{"$error":"#DIV/0!"},{"$error":"#DIV/0!"},{"$error":"#DIV/0!"}]
[null,null,null,null,118,null,null,null,null,{"$error":"#DIV/0!"},{"$error":"#DIV/0!"},{"$error":"#DIV/0!"},{"$error":"#DIV/0!"}]
[null,null,null,null,118,null,null,null,null,{"$error":"#DIV/0!"},{"$error":"#DIV/0!"},{"$error":"#DIV/0!"},{"$error":"#DIV/0!"}]
[null,null,null,null,118,null,null,null,null,{"$error":"#DIV/0!"},{"$error":"#DIV/0!"},{"$error":"#DIV/0!"},{"$error":"#DIV/0!"}]
[null,null,null,null,118,null,null,null,null,{"$error":"#DIV/0!"},{"$error":"#DIV/0!"},{"$error":"#DIV/0!"},{"$error":"#DIV/0!"}]
[null,null,null,null,118,null,null,null,null,{"$error":"#DIV/0!"},{"$error":"#DIV/0!"},{"$error":"#DIV/0!"},{"$error":"#DIV/0!"}]
[null,null,null,null,118,null,null,null,null,{"$error":"#DIV/0!"},{"$error":"#DIV/0!"},{"$error":"#DIV/0!"},{"$error":"#DIV/0!"}]
[null,null,null,null,118,null,null,null,null,{"$error":"#DIV/0!"},{"$error":"#DIV/0!"},{"$error":"#DIV/0!"},{"$error":"#DIV/0!"}]
[null,null,null,null,118,null,null,null,null,{"$error":"#DIV/0!"},{"$error":"#DIV/0!"},{"$error":"#DIV/0!"},{"$error":"#DIV/0!"}]
[null,null,null,null,118,null,null,null,null,{"$error":"#DIV/0!"},{"$error":"#DIV/0!"},{"$error":"#DIV/0!"},{"$error":"#DIV/0!"}]
[null,null,null,null,118,null,null,null,null,{"$error":"#DIV/0!"},{"$error":"#DIV/0!"},{"$error":"#DIV/0!"},{"$error":"#DIV/0!"}]
[null,null,null,null,118,null,null,null,null,{"$error":"#DIV/0!"},{"$error":"#DIV/0!"},{"$error":"#DIV/0!"},{"$error":"#DIV/0!"}]
[null,null,null,null,118,null,null,null,null,{"$f":"((G195/40)/I195)*100","v":{"$error":"#DIV/0!"}},{"$error":"#DIV/0!"},{"$error":"#DIV/0!"},{"$error":"#DIV/0!"}]
[null,null,null,null,118,null,null,null,null,{"$error":"#DIV/0!"},{"$error":"#DIV/0!"},{"$error":"#DIV/0!"},{"$error":"#DIV/0!"}]
[null,null,null,null,118,null,null,null,null,{"$error":"#DIV/0!"},{"$f":"IF(J197>0.7,3,1)","v":{"$error":"#DIV/0!"}},{"$f":"((E197*G197)/(I197*SQRT(H197)))","v":{"$error":"#DIV/0!"}},{"$f":"IF(L197>1.45,3,1)","v":{"$error":"#DIV/0!"}}]
[null,null,null,null,118,null,null,null,null,{"$error":"#DIV/0!"},{"$error":"#DIV/0!"},{"$error":"#DIV/0!"},{"$error":"#DIV/0!"}]
[null,null,null,null,118,null,null,null,null,{"$error":"#DIV/0!"},{"$error":"#DIV/0!"},{"$error":"#DIV/0!"},{"$error":"#DIV/0!"}]
[null,null,null,null,118,null,null,null,null,{"$error":"#DIV/0!"},{"$error":"#DIV/0!"},{"$error":"#DIV/0!"},{"$error":"#DIV/0!"}]
[null,null,null,null,118,null,null,null,null,{"$error":"#DIV/0!"},{"$error":"#DIV/0!"},{"$error":"#DIV/0!"},{"$error":"#DIV/0!"}]
[null,null,null,null,118,null,null,null,null,{"$error":"#DIV/0!"},{"$error":"#DIV/0!"},{"$error":"#DIV/0!"},{"$error":"#DIV/0!"}]
[null,null,null,null,118,null,null,null,null,{"$error":"#DIV/0!"},{"$error":"#DIV/0!"},{"$error":"#DIV/0!"},{"$error":"#DIV/0!"}]
[null,null,null,null,118,null,null,null,null,{"$error":"#DIV/0!"},{"$error":"#DIV/0!"},{"$error":"#DIV/0!"},{"$error":"#DIV/0!"}]
[null,null,null,null,118,null,null,null,null,{"$error":"#DIV/0!"},{"$error":"#DIV/0!"},{"$error":"#DIV/0!"},{"$error":"#DIV/0!"}]
[null,null,null,null,118,null,null,null,null,{"$error":"#DIV/0!"},{"$error":"#DIV/0!"},{"$error":"#DIV/0!"},{"$error":"#DIV/0!"}]
[null,null,null,null,118,null,null,null,null,{"$error":"#DIV/0!"},{"$error":"#DIV/0!"},{"$error":"#DIV/0!"},{"$error":"#DIV/0!"}]
[null,null,null,null,118,null,null,null,null,{"$error":"#DIV/0!"},{"$error":"#DIV/0!"},{"$error":"#DIV/0!"},{"$error":"#DIV/0!"}]
[null,null,null,null,118,null,null,null,null,{"$error":"#DIV/0!"},{"$error":"#DIV/0!"},{"$error":"#DIV/0!"},{"$error":"#DIV/0!"}]
[null,null,null,null,118,null,null,null,null,{"$error":"#DIV/0!"},{"$error":"#DIV/0!"},{"$error":"#DIV/0!"},{"$error":"#DIV/0!"}]
[null,null,null,null,118,null,null,null,null,{"$error":"#DIV/0!"},{"$error":"#DIV/0!"},{"$error":"#DIV/0!"},{"$error":"#DIV/0!"}]
[null,null,null,null,118,null,null,null,null,{"$error":"#DIV/0!"},{"$error":"#DIV/0!"},{"$error":"#DIV/0!"},{"$error":"#DIV/0!"}]
[null,null,null,null,118,null,null,null,null,{"$error":"#DIV/0!"},{"$error":"#DIV/0!"},{"$error":"#DIV/0!"},{"$error":"#DIV/0!"}]
[null,null,null,null,118,null,null,null,null,{"$error":"#DIV/0!"},{"$error":"#DIV/0!"},{"$error":"#DIV/0!"},{"$error":"#DIV/0!"}]
[null,null,null,null,118,null,null,null,null,{"$error":"#DIV/0!"},{"$error":"#DIV/0!"},{"$error":"#DIV/0!"},{"$error":"#DIV/0!"}]
[null,null,null,null,118,null,null,null,null,{"$error":"#DIV/0!"},{"$error":"#DIV/0!"},{"$error":"#DIV/0!"},{"$error":"#DIV/0!"}]
[null,null,null,null,118,null,null,null,null,{"$error":"#DIV/0!"},{"$error":"#DIV/0!"},{"$error":"#DIV/0!"},{"$error":"#DIV/0!"}]
[null,null,null,null,118,null,null,null,null,{"$error":"#DIV/0!"},{"$error":"#DIV/0!"},{"$error":"#DIV/0!"},{"$error":"#DIV/0!"}]
[null,null,null,null,118,null,null,null,null,{"$error":"#DIV/0!"},{"$error":"#DIV/0!"},{"$error":"#DIV/0!"},{"$error":"#DIV/0!"}]
[null,null,null,null,118,null,null,null,null,{"$error":"#DIV/0!"},{"$error":"#DIV/0!"},{"$error":"#DIV/0!"},{"$error":"#DIV/0!"}]
[null,null,null,null,118,null,null,null,null,{"$error":"#DIV/0!"},{"$error":"#DIV/0!"},{"$error":"#DIV/0!"},{"$error":"#DIV/0!"}]
[null,null,null,null,118,null,null,null,null,{"$error":"#DIV/0!"},{"$error":"#DIV/0!"},{"$error":"#DIV/0!"},{"$error":"#DIV/0!"}]
[null,null,null,null,118,null,null,null,null,{"$error":"#DIV/0!"},{"$error":"#DIV/0!"},{"$error":"#DIV/0!"},{"$error":"#DIV/0!"}]
[null,null,null,null,118,null,null,null,null,{"$error":"#DIV/0!"},{"$error":"#DIV/0!"},{"$error":"#DIV/0!"},{"$error":"#DIV/0!"}]
[null,null,null,null,118,null,null,null,null,{"$error":"#DIV/0!"},{"$error":"#DIV/0!"},{"$error":"#DIV/0!"},{"$error":"#DIV/0!"}]
[null,null,null,null,118,null,null,null,null,{"$error":"#DIV/0!"},{"$error":"#DIV/0!"},{"$error":"#DIV/0!"},{"$error":"#DIV/0!"}]
[null,null,null,null,118,null,null,null,null,{"$error":"#DIV/0!"},{"$error":"#DIV/0!"},{"$error":"#DIV/0!"},{"$error":"#DIV/0!"}]
[null,null,null,null,118,null,null,null,null,{"$error":"#DIV/0!"},{"$error":"#DIV/0!"},{"$error":"#DIV/0!"},{"$error":"#DIV/0!"}]
[null,null,null,null,118,null,null,null,null,{"$error":"#DIV/0!"},{"$error":"#DIV/0!"},{"$error":"#DIV/0!"},{"$error":"#DIV/0!"}]
[null,null,null,null,118,null,null,null,null,{"$error":"#DIV/0!"},{"$error":"#DIV/0!"},{"$error":"#DIV/0!"},{"$error":"#DIV/0!"}]
[null,null,null,null,118,null,null,null,null,{"$error":"#DIV/0!"},{"$error":"#DIV/0!"},{"$error":"#DIV/0!"},{"$error":"#DIV/0!"}]
[null,null,null,null,118,null,null,null,null,{"$error":"#DIV/0!"},{"$error":"#DIV/0!"},{"$error":"#DIV/0!"},{"$error":"#DIV/0!"}]
[null,null,null,null,118,null,null,null,null,{"$error":"#DIV/0!"},{"$error":"#DIV/0!"},{"$error":"#DIV/0!"},{"$error":"#DIV/0!"}]
[null,null,null,null,118,null,null,null,null,{"$error":"#DIV/0!"},{"$error":"#DIV/0!"},{"$error":"#DIV/0!"},{"$error":"#DIV/0!"}]
[null,null,null,null,{"$f":"DATEDIF(C235,NOW(),\"Y\")","v":118},null,null,null,null,{"$error":"#DIV/0!"},{"$error":"#DIV/0!"},{"$error":"#DIV/0!"},{"$error":"#DIV/0!"}]
[null,null,null,null,118,null,null,null,null,{"$error":"#DIV/0!"},{"$error":"#DIV/0!"},{"$error":"#DIV/0!"},{"$error":"#DIV/0!"}]
[null,null,null,null,118,null,null,null,null,{"$error":"#DIV/0!"},{"$error":"#DIV/0!"},{"$error":"#DIV/0!"},{"$error":"#DIV/0!"}]
[null,null,null,null,118,null,null,null,null,{"$error":"#DIV/0!"},{"$error":"#DIV/0!"},{"$error":"#DIV/0!"},{"$error":"#DIV/0!"}]
[null,null,null,null,118,null,null,null,null,{"$error":"#DIV/0!"},{"$error":"#DIV/0!"},{"$error":"#DIV/0!"},{"$error":"#DIV/0!"}]
[null,null,null,null,118,null,null,null,null,{"$error":"#DIV/0!"},{"$error":"#DIV/0!"},{"$error":"#DIV/0!"},{"$error":"#DIV/0!"}]
[null,null,null,null,118,null,null,null,null,{"$error":"#DIV/0!"},{"$error":"#DIV/0!"},{"$error":"#DIV/0!"},{"$error":"#DIV/0!"}]
[null,null,null,null,118,null,null,null,null,{"$error":"#DIV/0!"},{"$error":"#DIV/0!"},{"$error":"#DIV/0!"},{"$error":"#DIV/0!"}]
[null,null,null,null,118,null,null,null,null,{"$error":"#DIV/0!"},{"$error":"#DIV/0!"},{"$error":"#DIV/0!"},{"$error":"#DIV/0!"}]
[null,null,null,null,118,null,null,null,null,{"$error":"#DIV/0!"},{"$error":"#DIV/0!"},{"$error":"#DIV/0!"},{"$error":"#DIV/0!"}]
[null,null,null,null,118,null,null,null,null,{"$error":"#DIV/0!"},{"$error":"#DIV/0!"},{"$error":"#DIV/0!"},{"$error":"#DIV/0!"}]
[null,null,null,null,118,null,null,null,null,{"$error":"#DIV/0!"},{"$error":"#DIV/0!"},{"$error":"#DIV/0!"},{"$error":"#DIV/0!"}]
[null,null,null,null,118,null,null,null,null,{"$error":"#DIV/0!"},{"$error":"#DIV/0!"},{"$error":"#DIV/0!"},{"$error":"#DIV/0!"}]
[null,null,null,null,118,null,null,null,null,{"$error":"#DIV/0!"},{"$error":"#DIV/0!"},{"$error":"#DIV/0!"},{"$error":"#DIV/0!"}]
[null,null,null,null,118,null,null,null,null,{"$error":"#DIV/0!"},{"$error":"#DIV/0!"},{"$error":"#DIV/0!"},{"$error":"#DIV/0!"}]
[null,null,null,null,118,null,null,null,null,{"$error":"#DIV/0!"},{"$error":"#DIV/0!"},{"$error":"#DIV/0!"},{"$error":"#DIV/0!"}]
[null,null,null,null,118,null,null,null,null,{"$error":"#DIV/0!"},{"$error":"#DIV/0!"},{"$error":"#DIV/0!"},{"$error":"#DIV/0!"}]
[null,null,null,null,118,null,null,null,null,{"$error":"#DIV/0!"},{"$error":"#DIV/0!"},{"$error":"#DIV/0!"},{"$error":"#DIV/0!"}]
[null,null,null,null,118,null,null,null,null,{"$error":"#DIV/0!"},{"$error":"#DIV/0!"},{"$error":"#DIV/0!"},{"$error":"#DIV/0!"}]
[null,null,null,null,118,null,null,null,null,{"$error":"#DIV/0!"},{"$error":"#DIV/0!"},{"$error":"#DIV/0!"},{"$error":"#DIV/0!"}]
[null,null,null,null,118,null,null,null,null,{"$error":"#DIV/0!"},{"$error":"#DIV/0!"},{"$error":"#DIV/0!"},{"$error":"#DIV/0!"}]
[null,null,null,null,118,null,null,null,null,{"$error":"#DIV/0!"},{"$error":"#DIV/0!"},{"$error":"#DIV/0!"},{"$error":"#DIV/0!"}]
[null,null,null,null,118,null,null,null,null,{"$error":"#DIV/0!"},{"$error":"#DIV/0!"},{"$error":"#DIV/0!"},{"$error":"#DIV/0!"}]
[null,null,null,null,118,null,null,null,null,{"$error":"#DIV/0!"},{"$error":"#DIV/0!"},{"$error":"#DIV/0!"},{"$error":"#DIV/0!"}]
[null,null,null,null,118,null,null,null,null,{"$f":"((G259/40)/I259)*100","v":{"$error":"#DIV/0!"}},{"$error":"#DIV/0!"},{"$error":"#DIV/0!"},{"$error":"#DIV/0!"}]
[null,null,null,null,118,null,null,null,null,{"$error":"#DIV/0!"},{"$error":"#DIV/0!"},{"$error":"#DIV/0!"},{"$error":"#DIV/0!"}]
[null,null,null,null,118,null,null,null,null,{"$error":"#DIV/0!"},{"$f":"IF(J261>0.7,3,1)","v":{"$error":"#DIV/0!"}},{"$f":"((E261*G261)/(I261*SQRT(H261)))","v":{"$error":"#DIV/0!"}},{"$f":"IF(L261>1.45,3,1)","v":{"$error":"#DIV/0!"}}]
[null,null,null,null,118,null,null,null,null,{"$error":"#DIV/0!"},{"$error":"#DIV/0!"},{"$error":"#DIV/0!"},{"$error":"#DIV/0!"}]
[null,null,null,null,118,null,null,null,null,{"$error":"#DIV/0!"},{"$error":"#DIV/0!"},{"$error":"#DIV/0!"},{"$error":"#DIV/0!"}]
[null,null,null,null,118,null,null,null,null,{"$error":"#DIV/0!"},{"$error":"#DIV/0!"},{"$error":"#DIV/0!"},{"$error":"#DIV/0!"}]
[null,null,null,null,118,null,null,null,null,{"$error":"#DIV/0!"},{"$error":"#DIV/0!"},{"$error":"#DIV/0!"},{"$error":"#DIV/0!"}]
[null,null,null,null,118,null,null,null,null,{"$error":"#DIV/0!"},{"$error":"#DIV/0!"},{"$error":"#DIV/0!"},{"$error":"#DIV/0!"}]
[null,null,null,null,118,null,null,null,null,{"$error":"#DIV/0!"},{"$error":"#DIV/0!"},{"$error":"#DIV/0!"},{"$error":"#DIV/0!"}]
[null,null,null,null,118,null,null,null,null,{"$error":"#DIV/0!"},{"$error":"#DIV/0!"},{"$error":"#DIV/0!"},{"$error":"#DIV/0!"}]
[null,null,null,null,118,null,null,null,null,{"$error":"#DIV/0!"},{"$error":"#DIV/0!"},{"$error":"#DIV/0!"},{"$error":"#DIV/0!"}]
[null,null,null,null,118,null,null,null,null,{"$error":"#DIV/0!"},{"$error":"#DIV/0!"},{"$error":"#DIV/0!"},{"$error":"#DIV/0!"}]
[null,null,null,null,118,null,null,null,null,{"$error":"#DIV/0!"},{"$error":"#DIV/0!"},{"$error":"#DIV/0!"},{"$error":"#DIV/0!"}]
[null,null,null,null,118,null,null,null,null,{"$error":"#DIV/0!"},{"$error":"#DIV/0!"},{"$error":"#DIV/0!"},{"$error":"#DIV/0!"}]
[null,null,null,null,118,null,null,null,null,{"$error":"#DIV/0!"},{"$error":"#DIV/0!"},{"$error":"#DIV/0!"},{"$error":"#DIV/0!"}]
[null,null,null,null,118,null,null,null,null,{"$error":"#DIV/0!"},{"$error":"#DIV/0!"},{"$error":"#DIV/0!"},{"$error":"#DIV/0!"}]
[null,null,null,null,118,null,null,null,null,{"$error":"#DIV/0!"},{"$error":"#DIV/0!"},{"$error":"#DIV/0!"},{"$error":"#DIV/0!"}]
[null,null,null,null,118,null,null,null,null,{"$error":"#DIV/0!"},{"$error":"#DIV/0!"},{"$error":"#DIV/0!"},{"$error":"#DIV/0!"}]
[null,null,null,null,118,null,null,null,null,{"$error":"#DIV/0!"},{"$error":"#DIV/0!"},{"$error":"#DIV/0!"},{"$error":"#DIV/0!"}]
[null,null,null,null,118,null,null,null,null,{"$error":"#DIV/0!"},{"$error":"#DIV/0!"},{"$error":"#DIV/0!"},{"$error":"#DIV/0!"}]
[null,null,null,null,118,null,null,null,null,{"$error":"#DIV/0!"},{"$error":"#DIV/0!"},{"$error":"#DIV/0!"},{"$error":"#DIV/0!"}]
[null,null,null,null,118,null,null,null,null,{"$error":"#DIV/0!"},{"$error":"#DIV/0!"},{"$error":"#DIV/0!"},{"$error":"#DIV/0!"}]
[null,null,null,null,118,null,null,null,null,{"$error":"#DIV/0!"},{"$error":"#DIV/0!"},{"$error":"#DIV/0!"},{"$error":"#DIV/0!"}]
[null,null,null,null,118,null,null,null,null,{"$error":"#DIV/0!"},{"$error":"#DIV/0!"},{"$error":"#DIV/0!"},{"$error":"#DIV/0!"}]
[null,null,null,null,118,null,null,null,null,{"$error":"#DIV/0!"},{"$error":"#DIV/0!"},{"$error":"#DIV/0!"},{"$error":"#DIV/0!"}]
[null,null,null,null,118,null,null,null,null,{"$error":"#DIV/0!"},{"$error":"#DIV/0!"},{"$error":"#DIV/0!"},{"$error":"#DIV/0!"}]
[null,null,null,null,118,null,null,null,null,{"$error":"#DIV/0!"},{"$error":"#DIV/0!"},{"$error":"#DIV/0!"},{"$error":"#DIV/0!"}]
[null,null,null,null,118,null,null,null,null,{"$error":"#DIV/0!"},{"$error":"#DIV/0!"},{"$error":"#DIV/0!"},{"$error":"#DIV/0!"}]
[null,null,null,null,118,null,null,null,null,{"$error":"#DIV/0!"},{"$error":"#DIV/0!"},{"$error":"#DIV/0!"},{"$error":"#DIV/0!"}]
[null,null,null,null,118,null,null,null,null,{"$error":"#DIV/0!"},{"$error":"#DIV/0!"},{"$error":"#DIV/0!"},{"$error":"#DIV/0!"}]
[null,null,null,null,118,null,null,null,null,{"$error":"#DIV/0!"},{"$error":"#DIV/0!"},{"$error":"#DIV/0!"},{"$error":"#DIV/0!"}]
[null,null,null,null,118,null,null,null,null,{"$error":"#DIV/0!"},{"$error":"#DIV/0!"},{"$error":"#DIV/0!"},{"$error":"#DIV/0!"}]
[null,null,null,null,118,null,null,null,null,{"$error":"#DIV/0!"},{"$error":"#DIV/0!"},{"$error":"#DIV/0!"},{"$error":"#DIV/0!"}]
[null,null,null,null,118,null,null,null,null,{"$error":"#DIV/0!"},{"$error":"#DIV/0!"},{"$error":"#DIV/0!"},{"$error":"#DIV/0!"}]
[null,null,null,null,118,null,null,null,null,{"$error":"#DIV/0!"},{"$error":"#DIV/0!"},{"$error":"#DIV/0!"},{"$error":"#DIV/0!"}]
[null,null,null,null,118,null,null,null,null,{"$error":"#DIV/0!"},{"$error":"#DIV/0!"},{"$error":"#DIV/0!"},{"$error":"#DIV/0!"}]
[null,null,null,null,118,null,null,null,null,{"$error":"#DIV/0!"},{"$error":"#DIV/0!"},{"$error":"#DIV/0!"},{"$error":"#DIV/0!"}]
[null,null,null,null,118,null,null,null,null,{"$error":"#DIV/0!"},{"$error":"#DIV/0!"},{"$error":"#DIV/0!"},{"$error":"#DIV/0!"}]
[null,null,null,null,118,null,null,null,null,{"$error":"#DIV/0!"},{"$error":"#DIV/0!"},{"$error":"#DIV/0!"},{"$error":"#DIV/0!"}]
[null,null,null,null,118,null,null,null,null,{"$error":"#DIV/0!"},{"$error":"#DIV/0!"},{"$error":"#DIV/0!"},{"$error":"#DIV/0!"}]
[null,null,null,null,{"$f":"DATEDIF(C299,NOW(),\"Y\")","v":118},null,null,null,null,{"$error":"#DIV/0!"},{"$error":"#DIV/0!"},{"$error":"#DIV/0!"},{"$error":"#DIV/0!"}]
[null,null,null,null,118,null,null,null,null,{"$error":"#DIV/0!"},{"$error":"#DIV/0!"},{"$error":"#DIV/0!"},{"$error":"#DIV/0!"}]
[null,null,null,null,118,null,null,null,null,{"$error":"#DIV/0!"},{"$error":"#DIV/0!"},{"$error":"#DIV/0!"},{"$error":"#DIV/0!"}]
[null,null,null,null,118,null,null,null,null,{"$error":"#DIV/0!"},{"$error":"#DIV/0!"},{"$error":"#DIV/0!"},{"$error":"#DIV/0!"}]
[null,null,null,null,118,null,null,null,null,{"$error":"#DIV/0!"},{"$error":"#DIV/0!"},{"$error":"#DIV/0!"},{"$error":"#DIV/0!"}]
[null,null,null,null,118,null,null,null,null,{"$error":"#DIV/0!"},{"$error":"#DIV/0!"},{"$error":"#DIV/0!"},{"$error":"#DIV/0!"}]
[null,null,null,null,118,null,null,null,null,{"$error":"#DIV/0!"},{"$error":"#DIV/0!"},{"$error":"#DIV/0!"},{"$error":"#DIV/0!"}]
[null,null,null,null,118,null,null,null,null,{"$error":"#DIV/0!"},{"$error":"#DIV/0!"},{"$error":"#DIV/0!"},{"$error":"#DIV/0!"}]
[null,null,null,null,118,null,null,null,null,{"$error":"#DIV/0!"},{"$error":"#DIV/0!"},{"$error":"#DIV/0!"},{"$error":"#DIV/0!"}]
[null,null,null,null,118,null,null,null,null,{"$error":"#DIV/0!"},{"$error":"#DIV/0!"},{"$error":"#DIV/0!"},{"$error":"#DIV/0!"}]
[null,null,null,null,118,null,null,null,null,{"$error":"#DIV/0!"},{"$error":"#DIV/0!"},{"$error":"#DIV/0!"},{"$error":"#DIV/0!"}]
[null,null,null,null,118,null,null,null,null,{"$error":"#DIV/0!"},{"$error":"#DIV/0!"},{"$error":"#DIV/0!"},{"$error":"#DIV/0!"}]
[null,null,null,null,118,null,null,null,null,{"$error":"#DIV/0!"},{"$error":"#DIV/0!"},{"$error":"#DIV/0!"},{"$error":"#DIV/0!"}]
[null,null,null,null,118,null,null,null,null,{"$error":"#DIV/0!"}]
[null,null,null,null,118,null,null,null,null,{"$error":"#DIV/0!"}]
[null,null,null,null,118,null,null,null,null,{"$error":"#DIV/0!"}]
[null,null,null,null,118,null,null,null,null,{"$error":"#DIV/0!"}]
[null,null,null,null,118,null,null,null,null,{"$error":"#DIV/0!"}]
[null,null,null,null,118,null,null,null,null,{"$error":"#DIV/0!"}]
[null,null,null,null,118,null,null,null,null,{"$error":"#DIV/0!"}]
[null,null,null,null,118,null,null,null,null,{"$error":"#DIV/0!"}]
[null,null,null,null,118,null,null,null,null,{"$error":"#DIV/0!"}]
[null,null,null,null,118,null,null,null,null,{"$error":"#DIV/0!"}]
[null,null,null,null,118,null,null,null,null,{"$error":"#DIV/0!"}]
[null,null,null,null,118,null,null,null,null,{"$f":"((G323/40)/I323)*100","v":{"$error":"#DIV/0!"}}]
[null,null,null,null,118,null,null,null,null,{"$error":"#DIV/0!"}]
[null,null,null,null,118,null,null,null,null,{"$error":"#DIV/0!"}]
[null,null,null,null,118,null,null,null,null,{"$error":"#DIV/0!"}]
[null,null,null,null,118,null,null,null,null,{"$error":"#DIV/0!"}]
[null,null,null,null,118,null,null,null,null,{"$error":"#DIV/0!"}]
[null,null,null,null,118,null,null,null,null,{"$error":"#DIV/0!"}]
[null,null,null,null,118,null,null,null,null,{"$error":"#DIV/0!"}]
[null,null,null,null,118,null,null,null,null,{"$error":"#DIV/0!"}]
[null,null,null,null,118,null,null,null,null,{"$error":"#DIV/0!"}]
[null,null,null,null,118,null,null,null,null,{"$error":"#DIV/0!"}]
[null,null,null,null,118,null,null,null,null,{"$error":"#DIV/0!"}]
[null,null,null,null,118,null,null,null,null,{"$error":"#DIV/0!"}]
[null,null,null,null,118,null,null,null,null,{"$error":"#DIV/0!"}]
[null,null,null,null,118,null,null,null,null,{"$error":"#DIV/0!"}]
[null,null,null,null,118,null,null,null,null,{"$error":"#DIV/0!"}]
[null,null,null,null,118,null,null,null,null,{"$error":"#DIV/0!"}]
[null,null,null,null,118,null,null,null,null,{"$error":"#DIV/0!"}]
[null,null,null,null,118,null,null,null,null,{"$error":"#DIV/0!"}]
[null,null,null,null,118,null,null,null,null,{"$error":"#DIV/0!"}]
[null,null,null,null,118,null,null,null,null,{"$error":"#DIV/0!"}]
[null,null,null,null,118,null,null,null,null,{"$error":"#DIV/0!"}]
[null,null,null,null,118,null,null,null,null,{"$error":"#DIV/0!"}]
[null,null,null,null,118,null,null,null,null,{"$error":"#DIV/0!"}]
[null,null,null,null,118,null,null,null,null,{"$error":"#DIV/0!"}]
[null,null,null,null,118,null,null,null,null,{"$error":"#DIV/0!"}]
[null,null,null,null,118,null,null,null,null,{"$error":"#DIV/0!"}]
[null,null,null,null,118,null,null,null,null,{"$error":"#DIV/0!"}]
[null,null,null,null,118,null,null,null,null,{"$error":"#DIV/0!"}]
[null,null,null,null,118,null,null,null,null,{"$error":"#DIV/0!"}]
[null,null,null,null,118,null,null,null,null,{"$error":"#DIV/0!"}]
[null,null,null,null,118,null,null,null,null,{"$error":"#DIV/0!"}]
[null,null,null,null,118,null,null,null,null,{"$error":"#DIV/0!"}]
[null,null,null,null,118,null,null,null,null,{"$error":"#DIV/0!"}]
[null,null,null,null,118,null,null,null,null,{"$error":"#DIV/0!"}]
[null,null,null,null,118,null,null,null,null,{"$error":"#DIV/0!"}]
[null,null,null,null,118,null,null,null,null,{"$error":"#DIV/0!"}]
[null,null,null,null,118,null,null,null,null,{"$error":"#DIV/0!"}]
[null,null,null,null,118,null,null,null,null,{"$error":"#DIV/0!"}]
[null,null,null,null,118,null,null,null,null,{"$error":"#DIV/0!"}]
[null,null,null,null,{"$f":"DATEDIF(C363,NOW(),\"Y\")","v":118},null,null,null,null,{"$error":"#DIV/0!"}]
[null,null,null,null,118,null,null,null,null,{"$error":"#DIV/0!"}]
[null,null,null,null,118,null,null,null,null,{"$error":"#DIV/0!"}]
[null,null,null,null,118,null,null,null,null,{"$error":"#DIV/0!"}]
[null,null,null,null,118,null,null,null,null,{"$error":"#DIV/0!"}]
[null,null,null,null,118,null,null,null,null,{"$error":"#DIV/0!"}]
[null,null,null,null,118,null,null,null,null,{"$error":"#DIV/0!"}]
[null,null,null,null,118,null,null,null,null,{"$error":"#DIV/0!"}]
[null,null,null,null,118,null,null,null,null,{"$error":"#DIV/0!"}]
[null,null,null,null,118,null,null,null,null,{"$error":"#DIV/0!"}]
[null,null,null,null,118,null,null,null,null,{"$error":"#DIV/0!"}]
[null,null,null,null,118,null,null,null,null,{"$error":"#DIV/0!"}]
[null,null,null,null,118,null,null,null,null,{"$error":"#DIV/0!"}]
[null,null,null,null,118,null,null,null,null,{"$error":"#DIV/0!"}]
[null,null,null,null,118,null,null,null,null,{"$error":"#DIV/0!"}]
[null,null,null,null,118,null,null,null,null,{"$error":"#DIV/0!"}]
[null,null,null,null,118,null,null,null,null,{"$error":"#DIV/0!"}]
[null,null,null,null,118,null,null,null,null,{"$error":"#DIV/0!"}]
[null,null,null,null,118,null,null,null,null,{"$error":"#DIV/0!"}]
[null,null,null,null,118,null,null,null,null,{"$error":"#DIV/0!"}]
[null,null,null,null,118,null,null,null,null,{"$error":"#DIV/0!"}]
[null,null,null,null,118,null,null,null,null,{"$error":"#DIV/0!"}]
[null,null,null,null,118,null,null,null,null,{"$error":"#DIV/0!"}]
[null,null,null,null,118,null,null,null,null,{"$error":"#DIV/0!"}]
[null,null,null,null,118,null,null,null,null,{"$f":"((G387/40)/I387)*100","v":{"$error":"#DIV/0!"}}]
[null,null,null,null,118,null,null,null,null,{"$error":"#DIV/0!"}]
[null,null,null,null,118,null,null,null,null,{"$error":"#DIV/0!"}]
[null,null,null,null,118,null,null,null,null,{"$error":"#DIV/0!"}]
[null,null,null,null,118,null,null,null,null,{"$error":"#DIV/0!"}]
[null,null,null,null,118,null,null,null,null,{"$error":"#DIV/0!"}]
[null,null,null,null,118,null,null,null,null,{"$error":"#DIV/0!"}]
[null,null,null,null,118,null,null,null,null,{"$error":"#DIV/0!"}]
[null,null,null,null,118,null,null,null,null,{"$error":"#DIV/0!"}]
[null,null,null,null,118,null,null,null,null,{"$error":"#DIV/0!"}]
[null,null,null,null,118,null,null,null,null,{"$error":"#DIV/0!"}]
[null,null,null,null,118,null,null,null,null,{"$error":"#DIV/0!"}]
[null,null,null,null,118,null,null,null,null,{"$error":"#DIV/0!"}]
[null,null,null,null,118,null,null,null,null,{"$error":"#DIV/0!"}]
[null,null,null,null,118,null,null,null,null,{"$error":"#DIV/0!"}]
[null,null,null,null,118,null,null,null,null,{"$error":"#DIV/0!"}]
[null,null,null,null,118,null,null,null,null,{"$error":"#DIV/0!"}]
[null,null,null,null,118,null,null,null,null,{"$error":"#DIV/0!"}]
[null,null,null,null,118,null,null,null,null,{"$error":"#DIV/0!"}]
[null,null,null,null,118,null,null,null,null,{"$error":"#DIV/0!"}]
[null,null,null,null,118,null,null,null,null,{"$error":"#DIV/0!"}]
[null,null,null,null,118,null,null,null,null,{"$error":"#DIV/0!"}]
[null,null,null,null,118,null,null,null,null,{"$error":"#DIV/0!"}]
[null,null,null,null,118,null,null,null,null,{"$error":"#DIV/0!"}]
[null,null,null,null,118,null,null,null,null,{"$error":"#DIV/0!"}]
[null,null,null,null,118,null,null,null,null,{"$error":"#DIV/0!"}]
[null,null,null,null,118,null,null,null,null,{"$error":"#DIV/0!"}]
[null,null,null,null,118,null,null,null,null,{"$error":"#DIV/0!"}]
[null,null,null,null,118,null,null,null,null,{"$error":"#DIV/0!"}]
[null,null,null,null,118,null,null,null,null,{"$error":"#DIV/0!"}]
[null,null,null,null,118,null,null,null,null,{"$error":"#DIV/0!"}]
[null,null,null,null,118,null,null,null,null,{"$error":"#DIV/0!"}]
[null,null,null,null,118,null,null,null,null,{"$error":"#DIV/0!"}]
[null,null,null,null,118,null,null,null,null,{"$error":"#DIV/0!"}]
[null,null,null,null,118,null,null,null,null,{"$error":"#DIV/0!"}]
[null,null,null,null,118,null,null,null,null,{"$error":"#DIV/0!"}]
[null,null,null,null,118,null,null,null,null,{"$error":"#DIV/0!"}]
[null,null,null,null,118,null,null,null,null,{"$error":"#DIV/0!"}]
[null,null,null,null,118,null,null,null,null,{"$error":"#DIV/0!"}]
[null,null,null,null,118,null,null,null,null,{"$error":"#DIV/0!"}]
[null,null,null,null,{"$f":"DATEDIF(C427,NOW(),\"Y\")","v":118},null,null,null,null,{"$error":"#DIV/0!"}]
[null,null,null,null,118,null,null,null,null,{"$error":"#DIV/0!"}]
[null,null,null,null,118,null,null,null,null,{"$error":"#DIV/0!"}]
[null,null,null,null,118,null,null,null,null,{"$error":"#DIV/0!"}]
[null,null,null,null,118,null,null,null,null,{"$error":"#DIV/0!"}]
[null,null,null,null,118,null,null,null,null,{"$error":"#DIV/0!"}]
[null,null,null,null,118,null,null,null,null,{"$error":"#DIV/0!"}]
[null,null,null,null,118,null,null,null,null,{"$error":"#DIV/0!"}]
[null,null,null,null,118,null,null,null,null,{"$error":"#DIV/0!"}]
[null,null,null,null,118,null,null,null,null,{"$error":"#DIV/0!"}]
[null,null,null,null,118,null,null,null,null,{"$error":"#DIV/0!"}]
[null,null,null,null,118,null,null,null,null,{"$error":"#DIV/0!"}]
[null,null,null,null,118,null,null,null,null,{"$error":"#DIV/0!"}]
[null,null,null,null,118,null,null,null,null,{"$error":"#DIV/0!"}]
[null,null,null,null,118,null,null,null,null,{"$error":"#DIV/0!"}]
[null,null,null,null,118,null,null,null,null,{"$error":"#DIV/0!"}]
[null,null,null,null,118,null,null,null,null,{"$error":"#DIV/0!"}]
[null,null,null,null,118,null,null,null,null,{"$error":"#DIV/0!"}]
[null,null,null,null,118,null,null,null,null,{"$error":"#DIV/0!"}]
[null,null,null,null,118,null,null,null,null,{"$error":"#DIV/0!"}]
[null,null,null,null,118,null,null,null,null,{"$error":"#DIV/0!"}]
[null,null,null,null,118,null,null,null,null,{"$error":"#DIV/0!"}]
[null,null,null,null,118,null,null,null,null,{"$error":"#DIV/0!"}]
[null,null,null,null,118,null,null,null,null,{"$error":"#DIV/0!"}]
[null,null,null,null,118,null,null,null,null,{"$f":"((G451/40)/I451)*100","v":{"$error":"#DIV/0!"}}]
[null,null,null,null,118,null,null,null,null,{"$error":"#DIV/0!"}]
[null,null,null,null,118,null,null,null,null,{"$error":"#DIV/0!"}]
[null,null,null,null,118,null,null,null,null,{"$error":"#DIV/0!"}]
[null,null,null,null,118,null,null,null,null,{"$error":"#DIV/0!"}]
[null,null,null,null,118,null,null,null,null,{"$error":"#DIV/0!"}]
[null,null,null,null,118,null,null,null,null,{"$error":"#DIV/0!"}]
[null,null,null,null,118,null,null,null,null,{"$error":"#DIV/0!"}]
[null,null,null,null,118,null,null,null,null,{"$error":"#DIV/0!"}]
[null,null,null,null,118,null,null,null,null,{"$error":"#DIV/0!"}]
[null,null,null,null,118,null,null,null,null,{"$error":"#DIV/0!"}]
[null,null,null,null,118,null,null,null,null,{"$error":"#DIV/0!"}]
[null,null,null,null,118,null,null,null,null,{"$error":"#DIV/0!"}]
[null,null,null,null,118,null,null,null,null,{"$error":"#DIV/0!"}]
[null,null,null,null,118,null,null,null,null,{"$error":"#DIV/0!"}]
[null,null,null,null,118,null,null,null,null,{"$error":"#DIV/0!"}]
[null,null,null,null,118,null,null,null,null,{"$error":"#DIV/0!"}]
[null,null,null,null,118,null,null,null,null,{"$error":"#DIV/0!"}]
[null,null,null,null,118,null,null,null,null,{"$error":"#DIV/0!"}]
[null,null,null,null,118,null,null,null,null,{"$error":"#DIV/0!"}]
[null,null,null,null,118,null,null,null,null,{"$error":"#DIV/0!"}]
[null,null,null,null,118,null,null,null,null,{"$error":"#DIV/0!"}]
[null,null,null,null,118,null,null,null,null,{"$error":"#DIV/0!"}]
[null,null,null,null,118,null,null,null,null,{"$error":"#DIV/0!"}]
[null,null,null,null,118,null,null,null,null,{"$error":"#DIV/0!"}]
[null,null,null,null,118,null,null,null,null,{"$error":"#DIV/0!"}]
[null,null,null,null,118,null,null,null,null,{"$error":"#DIV/0!"}]
[null,null,null,null,118,null,null,null,null,{"$error":"#DIV/0!"}]
[null,null,null,null,118,null,null,null,null,{"$error":"#DIV/0!"}]
[null,null,null,null,118,null,null,null,null,{"$error":"#DIV/0!"}]
[null,null,null,null,118,null,null,null,null,{"$error":"#DIV/0!"}]
[null,null,null,null,118,null,null,null,null,{"$error":"#DIV/0!"}]
[null,null,null,null,118,null,null,null,null,{"$error":"#DIV/0!"}]
[null,null,null,null,118,null,null,null,null,{"$error":"#DIV/0!"}]
[null,null,null,null,118,null,null,null,null,{"$error":"#DIV/0!"}]
[null,null,null,null,118,null,null,null,null,{"$error":"#DIV/0!"}]
[null,null,null,null,118,null,null,null,null,{"$error":"#DIV/0!"}]
[null,null,null,null,118,null,null,null,null,{"$error":"#DIV/0!"}]
[null,null,null,null,118,null,null,null,null,{"$error":"#DIV/0!"}]
[null,null,null,null,118,null,null,null,null,{"$error":"#DIV/0!"}]
[null,null,null,null,{"$f":"DATEDIF(C491,NOW(),\"Y\")","v":118},null,null,null,null,{"$error":"#DIV/0!"}]
[null,null,null,null,118,null,null,null,null,{"$error":"#DIV/0!"}]
[null,null,null,null,118,null,null,null,null,{"$error":"#DIV/0!"}]
[null,null,null,null,118,null,null,null,null,{"$error":"#DIV/0!"}]
[null,null,null,null,118,null,null,null,null,{"$error":"#DIV/0!"}]
[null,null,null,null,118,null,null,null,null,{"$error":"#DIV/0!"}]
[null,null,null,null,118,null,null,null,null,{"$error":"#DIV/0!"}]
[null,null,null,null,118,null,null,null,null,{"$error":"#DIV/0!"}]
[null,null,null,null,118,null,null,null,null,{"$error":"#DIV/0!"}]
[null,null,null,null,118,null,null,null,null,{"$error":"#DIV/0!"}]
[null,null,null,null,118,null,null,null,null,{"$error":"#DIV/0!"}]
[null,null,null,null,118,null,null,null,null,{"$error":"#DIV/0!"}]
[null,null,null,null,118,null,null,null,null,{"$error":"#DIV/0!"}]
[null,null,null,null,118,null,null,null,null,{"$error":"#DIV/0!"}]
[null,null,null,null,118,null,null,null,null,{"$error":"#DIV/0!"}]
[null,null,null,null,118,null,null,null,null,{"$error":"#DIV/0!"}]
[null,null,null,null,118,null,null,null,null,{"$error":"#DIV/0!"}]
[null,null,null,null,118,null,null,null,null,{"$error":"#DIV/0!"}]
[null,null,null,null,118,null,null,null,null,{"$error":"#DIV/0!"}]
[null,null,null,null,118,null,null,null,null,{"$error":"#DIV/0!"}]
[null,null,null,null,118,null,null,null,null,{"$error":"#DIV/0!"}]
[null,null,null,null,118,null,null,null,null,{"$error":"#DIV/0!"}]
[null,null,null,null,118,null,null,null,null,{"$error":"#DIV/0!"}]
[null,null,null,null,118,null,null,null,null,{"$error":"#DIV/0!"}]
[null,null,null,null,118,null,null,null,null,{"$f":"((G515/40)/I515)*100","v":{"$error":"#DIV/0!"}}]
[null,null,null,null,118,null,null,null,null,{"$error":"#DIV/0!"}]
[null,null,null,null,118,null,null,null,null,{"$error":"#DIV/0!"}]
[null,null,null,null,118,null,null,null,null,{"$error":"#DIV/0!"}]
[null,null,null,null,118,null,null,null,null,{"$error":"#DIV/0!"}]
[null,null,null,null,118,null,null,null,null,{"$error":"#DIV/0!"}]
[null,null,null,null,118,null,null,null,null,{"$error":"#DIV/0!"}]
[null,null,null,null,118,null,null,null,null,{"$error":"#DIV/0!"}]
[null,null,null,null,118,null,null,null,null,{"$error":"#DIV/0!"}]
[null,null,null,null,118,null,null,null,null,{"$error":"#DIV/0!"}]
[null,null,null,null,118,null,null,null,null,{"$error":"#DIV/0!"}]
[null,null,null,null,118,null,null,null,null,{"$error":"#DIV/0!"}]
[null,null,null,null,118,null,null,null,null,{"$error":"#DIV/0!"}]
[null,null,null,null,118,null,null,null,null,{"$error":"#DIV/0!"}]
[null,null,null,null,118,null,null,null,null,{"$error":"#DIV/0!"}]
[null,null,null,null,118,null,null,null,null,{"$error":"#DIV/0!"}]
[null,null,null,null,118,null,null,null,null,{"$error":"#DIV/0!"}]
[null,null,null,null,118,null,null,null,null,{"$error":"#DIV/0!"}]
[null,null,null,null,118,null,null,null,null,{"$error":"#DIV/0!"}]
[null,null,null,null,118,null,null,null,null,{"$error":"#DIV/0!"}]
[null,null,null,null,118,null,null,null,null,{"$error":"#DIV/0!"}]
[null,null,null,null,118,null,null,null,null,{"$error":"#DIV/0!"}]
[null,null,null,null,118,null,null,null,null,{"$error":"#DIV/0!"}]
[null,null,null,null,118,null,null,null,null,{"$error":"#DIV/0!"}]
[null,null,null,null,118,null,null,null,null,{"$error":"#DIV/0!"}]
[null,null,null,null,118,null,null,null,null,{"$error":"#DIV/0!"}]
[null,null,null,null,118]
[null,null,null,null,118]
[null,null,null,null,118]

{"sheet":"Patient Appointment List","index":2,"n_rows":301,"n_cols":8,"rows_kept":301,"cut":false,"hidden":true,"merged":[]}
[null,"To Appointment Calendar >>"]
[null,"Anticoagulation Appointments"]
[null,"Date","Patient Name","Chart","Notes2","Notes3","Notes4","Notes/Plan"]
[null,{"$f":"Ongoing!F9","v":"00:00:00"},{"$f":"Ongoing!A9","v":0},{"$f":"Ongoing!B9","v":0},{"$f":"CONCATENATE(Homework[[#This Row],[Patient Name]],\": \",Homework[[#This Row],[Chart]])","v":"0: 0"},{"$f":"IF(ISBLANK(Homework[[#This Row],[Date]]),\"\",UPPER(TEXT(Homework[[#This Row],[Date]],\"ddd\")))","v":"SAT"},{"$f":"IF(ISBLANK(Homework[[#This Row],[Date]]),\"\",UPPER(TEXT(Homework[[#This Row],[Date]],\"mmm\")))","v":"JAN"},"Last seen 3/3"]
[null,{"$f":"Ongoing!F10","v":"00:00:00"},{"$f":"Ongoing!A10","v":0},{"$f":"Ongoing!B10","v":0},{"$f":"CONCATENATE(Homework[[#This Row],[Patient Name]],\": \",Homework[[#This Row],[Chart]])","v":"0: 0"},{"$f":"IF(ISBLANK(Homework[[#This Row],[Date]]),\"\",UPPER(TEXT(Homework[[#This Row],[Date]],\"ddd\")))","v":"SAT"},{"$f":"IF(ISBLANK(Homework[[#This Row],[Date]]),\"\",UPPER(TEXT(Homework[[#This Row],[Date]],\"mmm\")))","v":"JAN"},"Last seen 1/13"]
[null,{"$f":"Ongoing!F11","v":"00:00:00"},{"$f":"Ongoing!A11","v":0},{"$f":"Ongoing!B11","v":0},{"$f":"CONCATENATE(Homework[[#This Row],[Patient Name]],\": \",Homework[[#This Row],[Chart]])","v":"0: 0"},{"$f":"IF(ISBLANK(Homework[[#This Row],[Date]]),\"\",UPPER(TEXT(Homework[[#This Row],[Date]],\"ddd\")))","v":"SAT"},{"$f":"IF(ISBLANK(Homework[[#This Row],[Date]]),\"\",UPPER(TEXT(Homework[[#This Row],[Date]],\"mmm\")))","v":"JAN"},"Last seen 3/10"]
[null,{"$f":"Ongoing!F12","v":"00:00:00"},{"$f":"Ongoing!A12","v":0},{"$f":"Ongoing!B12","v":0},{"$f":"CONCATENATE(Homework[[#This Row],[Patient Name]],\": \",Homework[[#This Row],[Chart]])","v":"0: 0"},{"$f":"IF(ISBLANK(Homework[[#This Row],[Date]]),\"\",UPPER(TEXT(Homework[[#This Row],[Date]],\"ddd\")))","v":"SAT"},{"$f":"IF(ISBLANK(Homework[[#This Row],[Date]]),\"\",UPPER(TEXT(Homework[[#This Row],[Date]],\"mmm\")))","v":"JAN"},"Last seen 1/20"]
[null,{"$f":"Ongoing!F13","v":"00:00:00"},{"$f":"Ongoing!A13","v":0},{"$f":"Ongoing!B13","v":0},{"$f":"CONCATENATE(Homework[[#This Row],[Patient Name]],\": \",Homework[[#This Row],[Chart]])","v":"0: 0"},{"$f":"IF(ISBLANK(Homework[[#This Row],[Date]]),\"\",UPPER(TEXT(Homework[[#This Row],[Date]],\"ddd\")))","v":"SAT"},{"$f":"IF(ISBLANK(Homework[[#This Row],[Date]]),\"\",UPPER(TEXT(Homework[[#This Row],[Date]],\"mmm\")))","v":"JAN"},"Last seen 3/9"]
[null,{"$f":"Ongoing!F14","v":"00:00:00"},{"$f":"Ongoing!A14","v":0},{"$f":"Ongoing!B14","v":0},{"$f":"CONCATENATE(Homework[[#This Row],[Patient Name]],\": \",Homework[[#This Row],[Chart]])","v":"0: 0"},{"$f":"IF(ISBLANK(Homework[[#This Row],[Date]]),\"\",UPPER(TEXT(Homework[[#This Row],[Date]],\"ddd\")))","v":"SAT"},{"$f":"IF(ISBLANK(Homework[[#This Row],[Date]]),\"\",UPPER(TEXT(Homework[[#This Row],[Date]],\"mmm\")))","v":"JAN"},"Last seen 3/6"]
[null,{"$f":"Ongoing!F15","v":"00:00:00"},{"$f":"Ongoing!A15","v":0},{"$f":"Ongoing!B15","v":0},{"$f":"CONCATENATE(Homework[[#This Row],[Patient Name]],\": \",Homework[[#This Row],[Chart]])","v":"0: 0"},{"$f":"IF(ISBLANK(Homework[[#This Row],[Date]]),\"\",UPPER(TEXT(Homework[[#This Row],[Date]],\"ddd\")))","v":"SAT"},{"$f":"IF(ISBLANK(Homework[[#This Row],[Date]]),\"\",UPPER(TEXT(Homework[[#This Row],[Date]],\"mmm\")))","v":"JAN"}]
[null,{"$f":"Ongoing!F16","v":"00:00:00"},{"$f":"Ongoing!A16","v":0},{"$f":"Ongoing!B16","v":0},{"$f":"CONCATENATE(Homework[[#This Row],[Patient Name]],\": \",Homework[[#This Row],[Chart]])","v":"0: 0"},{"$f":"IF(ISBLANK(Homework[[#This Row],[Date]]),\"\",UPPER(TEXT(Homework[[#This Row],[Date]],\"ddd\")))","v":"SAT"},{"$f":"IF(ISBLANK(Homework[[#This Row],[Date]]),\"\",UPPER(TEXT(Homework[[#This Row],[Date]],\"mmm\")))","v":"JAN"},"Last seen 1/18"]
[null,{"$f":"Ongoing!F17","v":"00:00:00"},{"$f":"Ongoing!A17","v":0},{"$f":"Ongoing!B17","v":0},{"$f":"CONCATENATE(Homework[[#This Row],[Patient Name]],\": \",Homework[[#This Row],[Chart]])","v":"0: 0"},{"$f":"IF(ISBLANK(Homework[[#This Row],[Date]]),\"\",UPPER(TEXT(Homework[[#This Row],[Date]],\"ddd\")))","v":"SAT"},{"$f":"IF(ISBLANK(Homework[[#This Row],[Date]]),\"\",UPPER(TEXT(Homework[[#This Row],[Date]],\"mmm\")))","v":"JAN"},"Last seen 2/24"]
[null,{"$f":"Ongoing!F18","v":"00:00:00"},{"$f":"Ongoing!A18","v":0},{"$f":"Ongoing!B18","v":0},{"$f":"CONCATENATE(Homework[[#This Row],[Patient Name]],\": \",Homework[[#This Row],[Chart]])","v":"0: 0"},{"$f":"IF(ISBLANK(Homework[[#This Row],[Date]]),\"\",UPPER(TEXT(Homework[[#This Row],[Date]],\"ddd\")))","v":"SAT"},{"$f":"IF(ISBLANK(Homework[[#This Row],[Date]]),\"\",UPPER(TEXT(Homework[[#This Row],[Date]],\"mmm\")))","v":"JAN"},"Last seen 2/28"]
[null,{"$f":"Ongoing!F19","v":"00:00:00"},{"$f":"Ongoing!A19","v":0},{"$f":"Ongoing!B19","v":0},{"$f":"CONCATENATE(Homework[[#This Row],[Patient Name]],\": \",Homework[[#This Row],[Chart]])","v":"0: 0"},{"$f":"IF(ISBLANK(Homework[[#This Row],[Date]]),\"\",UPPER(TEXT(Homework[[#This Row],[Date]],\"ddd\")))","v":"SAT"},{"$f":"IF(ISBLANK(Homework[[#This Row],[Date]]),\"\",UPPER(TEXT(Homework[[#This Row],[Date]],\"mmm\")))","v":"JAN"},"Last seen 3/24"]
[null,{"$f":"Ongoing!F20","v":"00:00:00"},{"$f":"Ongoing!A20","v":0},{"$f":"Ongoing!B20","v":0},{"$f":"CONCATENATE(Homework[[#This Row],[Patient Name]],\": \",Homework[[#This Row],[Chart]])","v":"0: 0"},{"$f":"IF(ISBLANK(Homework[[#This Row],[Date]]),\"\",UPPER(TEXT(Homework[[#This Row],[Date]],\"ddd\")))","v":"SAT"},{"$f":"IF(ISBLANK(Homework[[#This Row],[Date]]),\"\",UPPER(TEXT(Homework[[#This Row],[Date]],\"mmm\")))","v":"JAN"},"Last seen 2/22"]
[null,{"$f":"Ongoing!F21","v":"00:00:00"},{"$f":"Ongoing!A21","v":0},{"$f":"Ongoing!B21","v":0},{"$f":"CONCATENATE(Homework[[#This Row],[Patient Name]],\": \",Homework[[#This Row],[Chart]])","v":"0: 0"},{"$f":"IF(ISBLANK(Homework[[#This Row],[Date]]),\"\",UPPER(TEXT(Homework[[#This Row],[Date]],\"ddd\")))","v":"SAT"},{"$f":"IF(ISBLANK(Homework[[#This Row],[Date]]),\"\",UPPER(TEXT(Homework[[#This Row],[Date]],\"mmm\")))","v":"JAN"}]
[null,{"$f":"Ongoing!F22","v":"00:00:00"},{"$f":"Ongoing!A22","v":0},{"$f":"Ongoing!B22","v":0},{"$f":"CONCATENATE(Homework[[#This Row],[Patient Name]],\": \",Homework[[#This Row],[Chart]])","v":"0: 0"},{"$f":"IF(ISBLANK(Homework[[#This Row],[Date]]),\"\",UPPER(TEXT(Homework[[#This Row],[Date]],\"ddd\")))","v":"SAT"},{"$f":"IF(ISBLANK(Homework[[#This Row],[Date]]),\"\",UPPER(TEXT(Homework[[#This Row],[Date]],\"mmm\")))","v":"JAN"},"Last seen 3/14; to go to LAB for INR draw"]
[null,{"$f":"Ongoing!F23","v":"00:00:00"},{"$f":"Ongoing!A23","v":0},{"$f":"Ongoing!B23","v":0},{"$f":"CONCATENATE(Homework[[#This Row],[Patient Name]],\": \",Homework[[#This Row],[Chart]])","v":"0: 0"},{"$f":"IF(ISBLANK(Homework[[#This Row],[Date]]),\"\",UPPER(TEXT(Homework[[#This Row],[Date]],\"ddd\")))","v":"SAT"},{"$f":"IF(ISBLANK(Homework[[#This Row],[Date]]),\"\",UPPER(TEXT(Homework[[#This Row],[Date]],\"mmm\")))","v":"JAN"},"Last seen 3/14"]
[null,{"$f":"Ongoing!F24","v":"00:00:00"},{"$f":"Ongoing!A24","v":0},{"$f":"Ongoing!B24","v":0},{"$f":"CONCATENATE(Homework[[#This Row],[Patient Name]],\": \",Homework[[#This Row],[Chart]])","v":"0: 0"},{"$f":"IF(ISBLANK(Homework[[#This Row],[Date]]),\"\",UPPER(TEXT(Homework[[#This Row],[Date]],\"ddd\")))","v":"SAT"},{"$f":"IF(ISBLANK(Homework[[#This Row],[Date]]),\"\",UPPER(TEXT(Homework[[#This Row],[Date]],\"mmm\")))","v":"JAN"}]
[null,{"$f":"Ongoing!F25","v":"00:00:00"},{"$f":"Ongoing!A25","v":0},{"$f":"Ongoing!B25","v":0},{"$f":"CONCATENATE(Homework[[#This Row],[Patient Name]],\": \",Homework[[#This Row],[Chart]])","v":"0: 0"},{"$f":"IF(ISBLANK(Homework[[#This Row],[Date]]),\"\",UPPER(TEXT(Homework[[#This Row],[Date]],\"ddd\")))","v":"SAT"},{"$f":"IF(ISBLANK(Homework[[#This Row],[Date]]),\"\",UPPER(TEXT(Homework[[#This Row],[Date]],\"mmm\")))","v":"JAN"},"Last seen 3/1"]
[null,{"$f":"Ongoing!F26","v":"00:00:00"},{"$f":"Ongoing!A26","v":0},{"$f":"Ongoing!B26","v":0},{"$f":"CONCATENATE(Homework[[#This Row],[Patient Name]],\": \",Homework[[#This Row],[Chart]])","v":"0: 0"},{"$f":"IF(ISBLANK(Homework[[#This Row],[Date]]),\"\",UPPER(TEXT(Homework[[#This Row],[Date]],\"ddd\")))","v":"SAT"},{"$f":"IF(ISBLANK(Homework[[#This Row],[Date]]),\"\",UPPER(TEXT(Homework[[#This Row],[Date]],\"mmm\")))","v":"JAN"},"Last seen 3/14"]
[null,{"$f":"Ongoing!F27","v":"00:00:00"},{"$f":"Ongoing!A27","v":0},{"$f":"Ongoing!B27","v":0},{"$f":"CONCATENATE(Homework[[#This Row],[Patient Name]],\": \",Homework[[#This Row],[Chart]])","v":"0: 0"},{"$f":"IF(ISBLANK(Homework[[#This Row],[Date]]),\"\",UPPER(TEXT(Homework[[#This Row],[Date]],\"ddd\")))","v":"SAT"},{"$f":"IF(ISBLANK(Homework[[#This Row],[Date]]),\"\",UPPER(TEXT(Homework[[#This Row],[Date]],\"mmm\")))","v":"JAN"},"Last seen 3/6"]
[null,{"$f":"Ongoing!F28","v":"00:00:00"},{"$f":"Ongoing!A28","v":0},{"$f":"Ongoing!B28","v":0},{"$f":"CONCATENATE(Homework[[#This Row],[Patient Name]],\": \",Homework[[#This Row],[Chart]])","v":"0: 0"},{"$f":"IF(ISBLANK(Homework[[#This Row],[Date]]),\"\",UPPER(TEXT(Homework[[#This Row],[Date]],\"ddd\")))","v":"SAT"},{"$f":"IF(ISBLANK(Homework[[#This Row],[Date]]),\"\",UPPER(TEXT(Homework[[#This Row],[Date]],\"mmm\")))","v":"JAN"}]
[null,{"$f":"Ongoing!F29","v":"00:00:00"},{"$f":"Ongoing!A29","v":0},{"$f":"Ongoing!B29","v":0},{"$f":"CONCATENATE(Homework[[#This Row],[Patient Name]],\": \",Homework[[#This Row],[Chart]])","v":"0: 0"},{"$f":"IF(ISBLANK(Homework[[#This Row],[Date]]),\"\",UPPER(TEXT(Homework[[#This Row],[Date]],\"ddd\")))","v":"SAT"},{"$f":"IF(ISBLANK(Homework[[#This Row],[Date]]),\"\",UPPER(TEXT(Homework[[#This Row],[Date]],\"mmm\")))","v":"JAN"},"Last seen 3/24"]
[null,{"$f":"Ongoing!F30","v":"00:00:00"},{"$f":"Ongoing!A30","v":0},{"$f":"Ongoing!B30","v":0},{"$f":"CONCATENATE(Homework[[#This Row],[Patient Name]],\": \",Homework[[#This Row],[Chart]])","v":"0: 0"},{"$f":"IF(ISBLANK(Homework[[#This Row],[Date]]),\"\",UPPER(TEXT(Homework[[#This Row],[Date]],\"ddd\")))","v":"SAT"},{"$f":"IF(ISBLANK(Homework[[#This Row],[Date]]),\"\",UPPER(TEXT(Homework[[#This Row],[Date]],\"mmm\")))","v":"JAN"},"Last seen 3/6"]
[null,{"$f":"Ongoing!F31","v":"00:00:00"},{"$f":"Ongoing!A31","v":0},{"$f":"Ongoing!B31","v":0},{"$f":"CONCATENATE(Homework[[#This Row],[Patient Name]],\": \",Homework[[#This Row],[Chart]])","v":"0: 0"},{"$f":"IF(ISBLANK(Homework[[#This Row],[Date]]),\"\",UPPER(TEXT(Homework[[#This Row],[Date]],\"ddd\")))","v":"SAT"},{"$f":"IF(ISBLANK(Homework[[#This Row],[Date]]),\"\",UPPER(TEXT(Homework[[#This Row],[Date]],\"mmm\")))","v":"JAN"},"Last seen 2/21"]
[null,{"$f":"Ongoing!F32","v":"00:00:00"},{"$f":"Ongoing!A32","v":0},{"$f":"Ongoing!B32","v":0},{"$f":"CONCATENATE(Homework[[#This Row],[Patient Name]],\": \",Homework[[#This Row],[Chart]])","v":"0: 0"},{"$f":"IF(ISBLANK(Homework[[#This Row],[Date]]),\"\",UPPER(TEXT(Homework[[#This Row],[Date]],\"ddd\")))","v":"SAT"},{"$f":"IF(ISBLANK(Homework[[#This Row],[Date]]),\"\",UPPER(TEXT(Homework[[#This Row],[Date]],\"mmm\")))","v":"JAN"},"Last seen 3/14"]
[null,{"$f":"Ongoing!F33","v":"00:00:00"},{"$f":"Ongoing!A33","v":0},{"$f":"Ongoing!B33","v":0},{"$f":"CONCATENATE(Homework[[#This Row],[Patient Name]],\": \",Homework[[#This Row],[Chart]])","v":"0: 0"},{"$f":"IF(ISBLANK(Homework[[#This Row],[Date]]),\"\",UPPER(TEXT(Homework[[#This Row],[Date]],\"ddd\")))","v":"SAT"},{"$f":"IF(ISBLANK(Homework[[#This Row],[Date]]),\"\",UPPER(TEXT(Homework[[#This Row],[Date]],\"mmm\")))","v":"JAN"}]
[null,{"$f":"Ongoing!F34","v":"00:00:00"},{"$f":"Ongoing!A34","v":0},{"$f":"Ongoing!B34","v":0},{"$f":"CONCATENATE(Homework[[#This Row],[Patient Name]],\": \",Homework[[#This Row],[Chart]])","v":"0: 0"},{"$f":"IF(ISBLANK(Homework[[#This Row],[Date]]),\"\",UPPER(TEXT(Homework[[#This Row],[Date]],\"ddd\")))","v":"SAT"},{"$f":"IF(ISBLANK(Homework[[#This Row],[Date]]),\"\",UPPER(TEXT(Homework[[#This Row],[Date]],\"mmm\")))","v":"JAN"},"Last seen 3/3"]
[null,{"$f":"Ongoing!F35","v":"00:00:00"},{"$f":"Ongoing!A35","v":0},{"$f":"Ongoing!B35","v":0},{"$f":"CONCATENATE(Homework[[#This Row],[Patient Name]],\": \",Homework[[#This Row],[Chart]])","v":"0: 0"},{"$f":"IF(ISBLANK(Homework[[#This Row],[Date]]),\"\",UPPER(TEXT(Homework[[#This Row],[Date]],\"ddd\")))","v":"SAT"},{"$f":"IF(ISBLANK(Homework[[#This Row],[Date]]),\"\",UPPER(TEXT(Homework[[#This Row],[Date]],\"mmm\")))","v":"JAN"},"Last seen 3/14"]
[null,{"$f":"Ongoing!F36","v":"00:00:00"},{"$f":"Ongoing!A36","v":0},{"$f":"Ongoing!B36","v":0},{"$f":"CONCATENATE(Homework[[#This Row],[Patient Name]],\": \",Homework[[#This Row],[Chart]])","v":"0: 0"},{"$f":"IF(ISBLANK(Homework[[#This Row],[Date]]),\"\",UPPER(TEXT(Homework[[#This Row],[Date]],\"ddd\")))","v":"SAT"},{"$f":"IF(ISBLANK(Homework[[#This Row],[Date]]),\"\",UPPER(TEXT(Homework[[#This Row],[Date]],\"mmm\")))","v":"JAN"},"Last seen 3/13"]
[null,{"$f":"Ongoing!F37","v":"00:00:00"},{"$f":"Ongoing!A37","v":0},{"$f":"Ongoing!B37","v":0},{"$f":"CONCATENATE(Homework[[#This Row],[Patient Name]],\": \",Homework[[#This Row],[Chart]])","v":"0: 0"},{"$f":"IF(ISBLANK(Homework[[#This Row],[Date]]),\"\",UPPER(TEXT(Homework[[#This Row],[Date]],\"ddd\")))","v":"SAT"},{"$f":"IF(ISBLANK(Homework[[#This Row],[Date]]),\"\",UPPER(TEXT(Homework[[#This Row],[Date]],\"mmm\")))","v":"JAN"},"Last seen 3/15"]
[null,{"$f":"Ongoing!F38","v":"00:00:00"},{"$f":"Ongoing!A38","v":0},{"$f":"Ongoing!B38","v":0},{"$f":"CONCATENATE(Homework[[#This Row],[Patient Name]],\": \",Homework[[#This Row],[Chart]])","v":"0: 0"},{"$f":"IF(ISBLANK(Homework[[#This Row],[Date]]),\"\",UPPER(TEXT(Homework[[#This Row],[Date]],\"ddd\")))","v":"SAT"},{"$f":"IF(ISBLANK(Homework[[#This Row],[Date]]),\"\",UPPER(TEXT(Homework[[#This Row],[Date]],\"mmm\")))","v":"JAN"}]
[null,{"$f":"Ongoing!F39","v":"00:00:00"},{"$f":"Ongoing!A39","v":0},{"$f":"Ongoing!B39","v":0},{"$f":"CONCATENATE(Homework[[#This Row],[Patient Name]],\": \",Homework[[#This Row],[Chart]])","v":"0: 0"},{"$f":"IF(ISBLANK(Homework[[#This Row],[Date]]),\"\",UPPER(TEXT(Homework[[#This Row],[Date]],\"ddd\")))","v":"SAT"},{"$f":"IF(ISBLANK(Homework[[#This Row],[Date]]),\"\",UPPER(TEXT(Homework[[#This Row],[Date]],\"mmm\")))","v":"JAN"},"Last seen 3/8"]
[null,{"$f":"Ongoing!F40","v":"00:00:00"},{"$f":"Ongoing!A40","v":0},{"$f":"Ongoing!B40","v":0},{"$f":"CONCATENATE(Homework[[#This Row],[Patient Name]],\": \",Homework[[#This Row],[Chart]])","v":"0: 0"},{"$f":"IF(ISBLANK(Homework[[#This Row],[Date]]),\"\",UPPER(TEXT(Homework[[#This Row],[Date]],\"ddd\")))","v":"SAT"},{"$f":"IF(ISBLANK(Homework[[#This Row],[Date]]),\"\",UPPER(TEXT(Homework[[#This Row],[Date]],\"mmm\")))","v":"JAN"},"Last seen 3/10; received cipro rx 3/13"]
[null,{"$f":"Ongoing!F41","v":"00:00:00"},{"$f":"Ongoing!A41","v":0},{"$f":"Ongoing!B41","v":0},{"$f":"CONCATENATE(Homework[[#This Row],[Patient Name]],\": \",Homework[[#This Row],[Chart]])","v":"0: 0"},{"$f":"IF(ISBLANK(Homework[[#This Row],[Date]]),\"\",UPPER(TEXT(Homework[[#This Row],[Date]],\"ddd\")))","v":"SAT"},{"$f":"IF(ISBLANK(Homework[[#This Row],[Date]]),\"\",UPPER(TEXT(Homework[[#This Row],[Date]],\"mmm\")))","v":"JAN"},"Last seen 2/22"]
[null,{"$f":"Ongoing!F42","v":"00:00:00"},{"$f":"Ongoing!A42","v":0},{"$f":"Ongoing!B42","v":0},{"$f":"CONCATENATE(Homework[[#This Row],[Patient Name]],\": \",Homework[[#This Row],[Chart]])","v":"0: 0"},{"$f":"IF(ISBLANK(Homework[[#This Row],[Date]]),\"\",UPPER(TEXT(Homework[[#This Row],[Date]],\"ddd\")))","v":"SAT"},{"$f":"IF(ISBLANK(Homework[[#This Row],[Date]]),\"\",UPPER(TEXT(Homework[[#This Row],[Date]],\"mmm\")))","v":"JAN"}]
[null,{"$f":"Ongoing!F43","v":"00:00:00"},{"$f":"Ongoing!A43","v":0},{"$f":"Ongoing!B43","v":0},{"$f":"CONCATENATE(Homework[[#This Row],[Patient Name]],\": \",Homework[[#This Row],[Chart]])","v":"0: 0"},{"$f":"IF(ISBLANK(Homework[[#This Row],[Date]]),\"\",UPPER(TEXT(Homework[[#This Row],[Date]],\"ddd\")))","v":"SAT"},{"$f":"IF(ISBLANK(Homework[[#This Row],[Date]]),\"\",UPPER(TEXT(Homework[[#This Row],[Date]],\"mmm\")))","v":"JAN"},"Last seen 1/20"]
[null,{"$f":"Ongoing!F44","v":"00:00:00"},{"$f":"Ongoing!A44","v":0},{"$f":"Ongoing!B44","v":0},{"$f":"CONCATENATE(Homework[[#This Row],[Patient Name]],\": \",Homework[[#This Row],[Chart]])","v":"0: 0"},{"$f":"IF(ISBLANK(Homework[[#This Row],[Date]]),\"\",UPPER(TEXT(Homework[[#This Row],[Date]],\"ddd\")))","v":"SAT"},{"$f":"IF(ISBLANK(Homework[[#This Row],[Date]]),\"\",UPPER(TEXT(Homework[[#This Row],[Date]],\"mmm\")))","v":"JAN"},"Last seen 3/15"]
[null,{"$f":"Ongoing!F45","v":"00:00:00"},{"$f":"Ongoing!A45","v":0},{"$f":"Ongoing!B45","v":0},{"$f":"CONCATENATE(Homework[[#This Row],[Patient Name]],\": \",Homework[[#This Row],[Chart]])","v":"0: 0"},{"$f":"IF(ISBLANK(Homework[[#This Row],[Date]]),\"\",UPPER(TEXT(Homework[[#This Row],[Date]],\"ddd\")))","v":"SAT"},{"$f":"IF(ISBLANK(Homework[[#This Row],[Date]]),\"\",UPPER(TEXT(Homework[[#This Row],[Date]],\"mmm\")))","v":"JAN"},"Last seen 3/15"]
[null,{"$f":"Ongoing!F46","v":"00:00:00"},{"$f":"Ongoing!A46","v":0},{"$f":"Ongoing!B46","v":0},{"$f":"CONCATENATE(Homework[[#This Row],[Patient Name]],\": \",Homework[[#This Row],[Chart]])","v":"0: 0"},{"$f":"IF(ISBLANK(Homework[[#This Row],[Date]]),\"\",UPPER(TEXT(Homework[[#This Row],[Date]],\"ddd\")))","v":"SAT"},{"$f":"IF(ISBLANK(Homework[[#This Row],[Date]]),\"\",UPPER(TEXT(Homework[[#This Row],[Date]],\"mmm\")))","v":"JAN"}]
[null,{"$f":"Ongoing!F47","v":"00:00:00"},{"$f":"Ongoing!A47","v":0},{"$f":"Ongoing!B47","v":0},{"$f":"CONCATENATE(Homework[[#This Row],[Patient Name]],\": \",Homework[[#This Row],[Chart]])","v":"0: 0"},{"$f":"IF(ISBLANK(Homework[[#This Row],[Date]]),\"\",UPPER(TEXT(Homework[[#This Row],[Date]],\"ddd\")))","v":"SAT"},{"$f":"IF(ISBLANK(Homework[[#This Row],[Date]]),\"\",UPPER(TEXT(Homework[[#This Row],[Date]],\"mmm\")))","v":"JAN"},"Last seen 2/21"]
[null,{"$f":"Ongoing!F48","v":"00:00:00"},{"$f":"Ongoing!A48","v":0},{"$f":"Ongoing!B48","v":0},{"$f":"CONCATENATE(Homework[[#This Row],[Patient Name]],\": \",Homework[[#This Row],[Chart]])","v":"0: 0"},{"$f":"IF(ISBLANK(Homework[[#This Row],[Date]]),\"\",UPPER(TEXT(Homework[[#This Row],[Date]],\"ddd\")))","v":"SAT"},{"$f":"IF(ISBLANK(Homework[[#This Row],[Date]]),\"\",UPPER(TEXT(Homework[[#This Row],[Date]],\"mmm\")))","v":"JAN"}]
[null,{"$f":"Ongoing!F49","v":"00:00:00"},{"$f":"Ongoing!A49","v":0},{"$f":"Ongoing!B49","v":0},{"$f":"CONCATENATE(Homework[[#This Row],[Patient Name]],\": \",Homework[[#This Row],[Chart]])","v":"0: 0"},{"$f":"IF(ISBLANK(Homework[[#This Row],[Date]]),\"\",UPPER(TEXT(Homework[[#This Row],[Date]],\"ddd\")))","v":"SAT"},{"$f":"IF(ISBLANK(Homework[[#This Row],[Date]]),\"\",UPPER(TEXT(Homework[[#This Row],[Date]],\"mmm\")))","v":"JAN"},"Last seen 2/17"]
[null,{"$f":"Ongoing!F50","v":"00:00:00"},{"$f":"Ongoing!A50","v":0},{"$f":"Ongoing!B50","v":0},{"$f":"CONCATENATE(Homework[[#This Row],[Patient Name]],\": \",Homework[[#This Row],[Chart]])","v":"0: 0"},{"$f":"IF(ISBLANK(Homework[[#This Row],[Date]]),\"\",UPPER(TEXT(Homework[[#This Row],[Date]],\"ddd\")))","v":"SAT"},{"$f":"IF(ISBLANK(Homework[[#This Row],[Date]]),\"\",UPPER(TEXT(Homework[[#This Row],[Date]],\"mmm\")))","v":"JAN"}]
[null,{"$f":"Ongoing!F51","v":"00:00:00"},{"$f":"Ongoing!A51","v":0},{"$f":"Ongoing!B51","v":0},{"$f":"CONCATENATE(Homework[[#This Row],[Patient Name]],\": \",Homework[[#This Row],[Chart]])","v":"0: 0"},{"$f":"IF(ISBLANK(Homework[[#This Row],[Date]]),\"\",UPPER(TEXT(Homework[[#This Row],[Date]],\"ddd\")))","v":"SAT"},{"$f":"IF(ISBLANK(Homework[[#This Row],[Date]]),\"\",UPPER(TEXT(Homework[[#This Row],[Date]],\"mmm\")))","v":"JAN"},"Last seen 3/9"]
[null,{"$f":"Ongoing!F52","v":"00:00:00"},{"$f":"Ongoing!A52","v":0},{"$f":"Ongoing!B52","v":0},{"$f":"CONCATENATE(Homework[[#This Row],[Patient Name]],\": \",Homework[[#This Row],[Chart]])","v":"0: 0"},{"$f":"IF(ISBLANK(Homework[[#This Row],[Date]]),\"\",UPPER(TEXT(Homework[[#This Row],[Date]],\"ddd\")))","v":"SAT"},{"$f":"IF(ISBLANK(Homework[[#This Row],[Date]]),\"\",UPPER(TEXT(Homework[[#This Row],[Date]],\"mmm\")))","v":"JAN"},"Last seen 3/15"]
[null,{"$f":"Ongoing!F53","v":"00:00:00"},{"$f":"Ongoing!A53","v":0},{"$f":"Ongoing!B53","v":0},{"$f":"CONCATENATE(Homework[[#This Row],[Patient Name]],\": \",Homework[[#This Row],[Chart]])","v":"0: 0"},{"$f":"IF(ISBLANK(Homework[[#This Row],[Date]]),\"\",UPPER(TEXT(Homework[[#This Row],[Date]],\"ddd\")))","v":"SAT"},{"$f":"IF(ISBLANK(Homework[[#This Row],[Date]]),\"\",UPPER(TEXT(Homework[[#This Row],[Date]],\"mmm\")))","v":"JAN"},"Last seen 3/10"]
[null,{"$f":"Ongoing!F54","v":"00:00:00"},{"$f":"Ongoing!A54","v":0},{"$f":"Ongoing!B54","v":0},{"$f":"CONCATENATE(Homework[[#This Row],[Patient Name]],\": \",Homework[[#This Row],[Chart]])","v":"0: 0"},{"$f":"IF(ISBLANK(Homework[[#This Row],[Date]]),\"\",UPPER(TEXT(Homework[[#This Row],[Date]],\"ddd\")))","v":"SAT"},{"$f":"IF(ISBLANK(Homework[[#This Row],[Date]]),\"\",UPPER(TEXT(Homework[[#This Row],[Date]],\"mmm\")))","v":"JAN"}]
[null,{"$f":"Ongoing!F55","v":"00:00:00"},{"$f":"Ongoing!A55","v":0},{"$f":"Ongoing!B55","v":0},{"$f":"CONCATENATE(Homework[[#This Row],[Patient Name]],\": \",Homework[[#This Row],[Chart]])","v":"0: 0"},{"$f":"IF(ISBLANK(Homework[[#This Row],[Date]]),\"\",UPPER(TEXT(Homework[[#This Row],[Date]],\"ddd\")))","v":"SAT"},{"$f":"IF(ISBLANK(Homework[[#This Row],[Date]]),\"\",UPPER(TEXT(Homework[[#This Row],[Date]],\"mmm\")))","v":"JAN"},"Last seen 3/9"]
[null,{"$f":"Ongoing!F56","v":"00:00:00"},{"$f":"Ongoing!A56","v":0},{"$f":"Ongoing!B56","v":0},{"$f":"CONCATENATE(Homework[[#This Row],[Patient Name]],\": \",Homework[[#This Row],[Chart]])","v":"0: 0"},{"$f":"IF(ISBLANK(Homework[[#This Row],[Date]]),\"\",UPPER(TEXT(Homework[[#This Row],[Date]],\"ddd\")))","v":"SAT"},{"$f":"IF(ISBLANK(Homework[[#This Row],[Date]]),\"\",UPPER(TEXT(Homework[[#This Row],[Date]],\"mmm\")))","v":"JAN"},"Last seen 3/13"]
[null,{"$f":"Ongoing!F57","v":"00:00:00"},{"$f":"Ongoing!A57","v":0},{"$f":"Ongoing!B57","v":0},{"$f":"CONCATENATE(Homework[[#This Row],[Patient Name]],\": \",Homework[[#This Row],[Chart]])","v":"0: 0"},{"$f":"IF(ISBLANK(Homework[[#This Row],[Date]]),\"\",UPPER(TEXT(Homework[[#This Row],[Date]],\"ddd\")))","v":"SAT"},{"$f":"IF(ISBLANK(Homework[[#This Row],[Date]]),\"\",UPPER(TEXT(Homework[[#This Row],[Date]],\"mmm\")))","v":"JAN"},"Last seen 2/15."]
[null,{"$f":"Ongoing!F58","v":"00:00:00"},{"$f":"Ongoing!A58","v":0},{"$f":"Ongoing!B58","v":0},{"$f":"CONCATENATE(Homework[[#This Row],[Patient Name]],\": \",Homework[[#This Row],[Chart]])","v":"0: 0"},{"$f":"IF(ISBLANK(Homework[[#This Row],[Date]]),\"\",UPPER(TEXT(Homework[[#This Row],[Date]],\"ddd\")))","v":"SAT"},{"$f":"IF(ISBLANK(Homework[[#This Row],[Date]]),\"\",UPPER(TEXT(Homework[[#This Row],[Date]],\"mmm\")))","v":"JAN"},"Last seen 1/5"]
[null,{"$f":"Ongoing!F59","v":"00:00:00"},{"$f":"Ongoing!A59","v":0},{"$f":"Ongoing!B59","v":0},{"$f":"CONCATENATE(Homework[[#This Row],[Patient Name]],\": \",Homework[[#This Row],[Chart]])","v":"0: 0"},{"$f":"IF(ISBLANK(Homework[[#This Row],[Date]]),\"\",UPPER(TEXT(Homework[[#This Row],[Date]],\"ddd\")))","v":"SAT"},{"$f":"IF(ISBLANK(Homework[[#This Row],[Date]]),\"\",UPPER(TEXT(Homework[[#This Row],[Date]],\"mmm\")))","v":"JAN"},"Last seen 3/10"]
[null,{"$f":"Ongoing!F60","v":"00:00:00"},{"$f":"Ongoing!A60","v":0},{"$f":"Ongoing!B60","v":0},{"$f":"CONCATENATE(Homework[[#This Row],[Patient Name]],\": \",Homework[[#This Row],[Chart]])","v":"0: 0"},{"$f":"IF(ISBLANK(Homework[[#This Row],[Date]]),\"\",UPPER(TEXT(Homework[[#This Row],[Date]],\"ddd\")))","v":"SAT"},{"$f":"IF(ISBLANK(Homework[[#This Row],[Date]]),\"\",UPPER(TEXT(Homework[[#This Row],[Date]],\"mmm\")))","v":"JAN"},"Last seen 3/6"]
[null,{"$f":"Ongoing!F61","v":"00:00:00"},{"$f":"Ongoing!A61","v":0},{"$f":"Ongoing!B61","v":0},{"$f":"CONCATENATE(Homework[[#This Row],[Patient Name]],\": \",Homework[[#This Row],[Chart]])","v":"0: 0"},{"$f":"IF(ISBLANK(Homework[[#This Row],[Date]]),\"\",UPPER(TEXT(Homework[[#This Row],[Date]],\"ddd\")))","v":"SAT"},{"$f":"IF(ISBLANK(Homework[[#This Row],[Date]]),\"\",UPPER(TEXT(Homework[[#This Row],[Date]],\"mmm\")))","v":"JAN"},"Last seen 3/8"]
[null,{"$f":"Ongoing!F62","v":"00:00:00"},{"$f":"Ongoing!A62","v":0},{"$f":"Ongoing!B62","v":0},{"$f":"CONCATENATE(Homework[[#This Row],[Patient Name]],\": \",Homework[[#This Row],[Chart]])","v":"0: 0"},{"$f":"IF(ISBLANK(Homework[[#This Row],[Date]]),\"\",UPPER(TEXT(Homework[[#This Row],[Date]],\"ddd\")))","v":"SAT"},{"$f":"IF(ISBLANK(Homework[[#This Row],[Date]]),\"\",UPPER(TEXT(Homework[[#This Row],[Date]],\"mmm\")))","v":"JAN"}]
[null,null,null,null,{"$f":"CONCATENATE(Homework[[#This Row],[Patient Name]],\": \",Homework[[#This Row],[Chart]])","v":": "},{"$f":"IF(ISBLANK(Homework[[#This Row],[Date]]),\"\",UPPER(TEXT(Homework[[#This Row],[Date]],\"ddd\")))","v":""},{"$f":"IF(ISBLANK(Homework[[#This Row],[Date]]),\"\",UPPER(TEXT(Homework[[#This Row],[Date]],\"mmm\")))","v":""}]
[null,null,null,null,{"$f":"CONCATENATE(Homework[[#This Row],[Patient Name]],\": \",Homework[[#This Row],[Chart]])","v":": "},{"$f":"IF(ISBLANK(Homework[[#This Row],[Date]]),\"\",UPPER(TEXT(Homework[[#This Row],[Date]],\"ddd\")))","v":""},{"$f":"IF(ISBLANK(Homework[[#This Row],[Date]]),\"\",UPPER(TEXT(Homework[[#This Row],[Date]],\"mmm\")))","v":""}]
[null,null,null,null,{"$f":"CONCATENATE(Homework[[#This Row],[Patient Name]],\": \",Homework[[#This Row],[Chart]])","v":": "},{"$f":"IF(ISBLANK(Homework[[#This Row],[Date]]),\"\",UPPER(TEXT(Homework[[#This Row],[Date]],\"ddd\")))","v":""},{"$f":"IF(ISBLANK(Homework[[#This Row],[Date]]),\"\",UPPER(TEXT(Homework[[#This Row],[Date]],\"mmm\")))","v":""}]
[null,null,null,null,{"$f":"CONCATENATE(Homework[[#This Row],[Patient Name]],\": \",Homework[[#This Row],[Chart]])","v":": "},{"$f":"IF(ISBLANK(Homework[[#This Row],[Date]]),\"\",UPPER(TEXT(Homework[[#This Row],[Date]],\"ddd\")))","v":""},{"$f":"IF(ISBLANK(Homework[[#This Row],[Date]]),\"\",UPPER(TEXT(Homework[[#This Row],[Date]],\"mmm\")))","v":""}]
[null,null,null,null,{"$f":"CONCATENATE(Homework[[#This Row],[Patient Name]],\": \",Homework[[#This Row],[Chart]])","v":": "},{"$f":"IF(ISBLANK(Homework[[#This Row],[Date]]),\"\",UPPER(TEXT(Homework[[#This Row],[Date]],\"ddd\")))","v":""},{"$f":"IF(ISBLANK(Homework[[#This Row],[Date]]),\"\",UPPER(TEXT(Homework[[#This Row],[Date]],\"mmm\")))","v":""}]
[null,null,null,null,{"$f":"CONCATENATE(Homework[[#This Row],[Patient Name]],\": \",Homework[[#This Row],[Chart]])","v":": "},{"$f":"IF(ISBLANK(Homework[[#This Row],[Date]]),\"\",UPPER(TEXT(Homework[[#This Row],[Date]],\"ddd\")))","v":""},{"$f":"IF(ISBLANK(Homework[[#This Row],[Date]]),\"\",UPPER(TEXT(Homework[[#This Row],[Date]],\"mmm\")))","v":""}]
[null,null,null,null,{"$f":"CONCATENATE(Homework[[#This Row],[Patient Name]],\": \",Homework[[#This Row],[Chart]])","v":": "},{"$f":"IF(ISBLANK(Homework[[#This Row],[Date]]),\"\",UPPER(TEXT(Homework[[#This Row],[Date]],\"ddd\")))","v":""},{"$f":"IF(ISBLANK(Homework[[#This Row],[Date]]),\"\",UPPER(TEXT(Homework[[#This Row],[Date]],\"mmm\")))","v":""}]
[null,null,null,null,{"$f":"CONCATENATE(Homework[[#This Row],[Patient Name]],\": \",Homework[[#This Row],[Chart]])","v":": "},{"$f":"IF(ISBLANK(Homework[[#This Row],[Date]]),\"\",UPPER(TEXT(Homework[[#This Row],[Date]],\"ddd\")))","v":""},{"$f":"IF(ISBLANK(Homework[[#This Row],[Date]]),\"\",UPPER(TEXT(Homework[[#This Row],[Date]],\"mmm\")))","v":""}]
[null,null,null,null,{"$f":"CONCATENATE(Homework[[#This Row],[Patient Name]],\": \",Homework[[#This Row],[Chart]])","v":": "},{"$f":"IF(ISBLANK(Homework[[#This Row],[Date]]),\"\",UPPER(TEXT(Homework[[#This Row],[Date]],\"ddd\")))","v":""},{"$f":"IF(ISBLANK(Homework[[#This Row],[Date]]),\"\",UPPER(TEXT(Homework[[#This Row],[Date]],\"mmm\")))","v":""}]
[null,null,null,null,{"$f":"CONCATENATE(Homework[[#This Row],[Patient Name]],\": \",Homework[[#This Row],[Chart]])","v":": "},{"$f":"IF(ISBLANK(Homework[[#This Row],[Date]]),\"\",UPPER(TEXT(Homework[[#This Row],[Date]],\"ddd\")))","v":""},{"$f":"IF(ISBLANK(Homework[[#This Row],[Date]]),\"\",UPPER(TEXT(Homework[[#This Row],[Date]],\"mmm\")))","v":""}]
[null,null,null,null,{"$f":"CONCATENATE(Homework[[#This Row],[Patient Name]],\": \",Homework[[#This Row],[Chart]])","v":": "},{"$f":"IF(ISBLANK(Homework[[#This Row],[Date]]),\"\",UPPER(TEXT(Homework[[#This Row],[Date]],\"ddd\")))","v":""},{"$f":"IF(ISBLANK(Homework[[#This Row],[Date]]),\"\",UPPER(TEXT(Homework[[#This Row],[Date]],\"mmm\")))","v":""}]
[null,null,null,null,{"$f":"CONCATENATE(Homework[[#This Row],[Patient Name]],\": \",Homework[[#This Row],[Chart]])","v":": "},{"$f":"IF(ISBLANK(Homework[[#This Row],[Date]]),\"\",UPPER(TEXT(Homework[[#This Row],[Date]],\"ddd\")))","v":""},{"$f":"IF(ISBLANK(Homework[[#This Row],[Date]]),\"\",UPPER(TEXT(Homework[[#This Row],[Date]],\"mmm\")))","v":""}]
[null,null,null,null,{"$f":"CONCATENATE(Homework[[#This Row],[Patient Name]],\": \",Homework[[#This Row],[Chart]])","v":": "},{"$f":"IF(ISBLANK(Homework[[#This Row],[Date]]),\"\",UPPER(TEXT(Homework[[#This Row],[Date]],\"ddd\")))","v":""},{"$f":"IF(ISBLANK(Homework[[#This Row],[Date]]),\"\",UPPER(TEXT(Homework[[#This Row],[Date]],\"mmm\")))","v":""}]
[null,null,null,null,{"$f":"CONCATENATE(Homework[[#This Row],[Patient Name]],\": \",Homework[[#This Row],[Chart]])","v":": "},{"$f":"IF(ISBLANK(Homework[[#This Row],[Date]]),\"\",UPPER(TEXT(Homework[[#This Row],[Date]],\"ddd\")))","v":""},{"$f":"IF(ISBLANK(Homework[[#This Row],[Date]]),\"\",UPPER(TEXT(Homework[[#This Row],[Date]],\"mmm\")))","v":""}]
[null,null,null,null,{"$f":"CONCATENATE(Homework[[#This Row],[Patient Name]],\": \",Homework[[#This Row],[Chart]])","v":": "},{"$f":"IF(ISBLANK(Homework[[#This Row],[Date]]),\"\",UPPER(TEXT(Homework[[#This Row],[Date]],\"ddd\")))","v":""},{"$f":"IF(ISBLANK(Homework[[#This Row],[Date]]),\"\",UPPER(TEXT(Homework[[#This Row],[Date]],\"mmm\")))","v":""}]
[null,null,null,null,{"$f":"CONCATENATE(Homework[[#This Row],[Patient Name]],\": \",Homework[[#This Row],[Chart]])","v":": "},{"$f":"IF(ISBLANK(Homework[[#This Row],[Date]]),\"\",UPPER(TEXT(Homework[[#This Row],[Date]],\"ddd\")))","v":""},{"$f":"IF(ISBLANK(Homework[[#This Row],[Date]]),\"\",UPPER(TEXT(Homework[[#This Row],[Date]],\"mmm\")))","v":""}]
[null,null,null,null,{"$f":"CONCATENATE(Homework[[#This Row],[Patient Name]],\": \",Homework[[#This Row],[Chart]])","v":": "},{"$f":"IF(ISBLANK(Homework[[#This Row],[Date]]),\"\",UPPER(TEXT(Homework[[#This Row],[Date]],\"ddd\")))","v":""},{"$f":"IF(ISBLANK(Homework[[#This Row],[Date]]),\"\",UPPER(TEXT(Homework[[#This Row],[Date]],\"mmm\")))","v":""}]
[null,null,null,null,{"$f":"CONCATENATE(Homework[[#This Row],[Patient Name]],\": \",Homework[[#This Row],[Chart]])","v":": "},{"$f":"IF(ISBLANK(Homework[[#This Row],[Date]]),\"\",UPPER(TEXT(Homework[[#This Row],[Date]],\"ddd\")))","v":""},{"$f":"IF(ISBLANK(Homework[[#This Row],[Date]]),\"\",UPPER(TEXT(Homework[[#This Row],[Date]],\"mmm\")))","v":""}]
[null,null,null,null,{"$f":"CONCATENATE(Homework[[#This Row],[Patient Name]],\": \",Homework[[#This Row],[Chart]])","v":": "},{"$f":"IF(ISBLANK(Homework[[#This Row],[Date]]),\"\",UPPER(TEXT(Homework[[#This Row],[Date]],\"ddd\")))","v":""},{"$f":"IF(ISBLANK(Homework[[#This Row],[Date]]),\"\",UPPER(TEXT(Homework[[#This Row],[Date]],\"mmm\")))","v":""}]
[null,null,null,null,{"$f":"CONCATENATE(Homework[[#This Row],[Patient Name]],\": \",Homework[[#This Row],[Chart]])","v":": "},{"$f":"IF(ISBLANK(Homework[[#This Row],[Date]]),\"\",UPPER(TEXT(Homework[[#This Row],[Date]],\"ddd\")))","v":""},{"$f":"IF(ISBLANK(Homework[[#This Row],[Date]]),\"\",UPPER(TEXT(Homework[[#This Row],[Date]],\"mmm\")))","v":""}]
[null,null,null,null,{"$f":"CONCATENATE(Homework[[#This Row],[Patient Name]],\": \",Homework[[#This Row],[Chart]])","v":": "},{"$f":"IF(ISBLANK(Homework[[#This Row],[Date]]),\"\",UPPER(TEXT(Homework[[#This Row],[Date]],\"ddd\")))","v":""},{"$f":"IF(ISBLANK(Homework[[#This Row],[Date]]),\"\",UPPER(TEXT(Homework[[#This Row],[Date]],\"mmm\")))","v":""}]
[null,null,null,null,{"$f":"CONCATENATE(Homework[[#This Row],[Patient Name]],\": \",Homework[[#This Row],[Chart]])","v":": "},{"$f":"IF(ISBLANK(Homework[[#This Row],[Date]]),\"\",UPPER(TEXT(Homework[[#This Row],[Date]],\"ddd\")))","v":""},{"$f":"IF(ISBLANK(Homework[[#This Row],[Date]]),\"\",UPPER(TEXT(Homework[[#This Row],[Date]],\"mmm\")))","v":""}]
[null,null,null,null,{"$f":"CONCATENATE(Homework[[#This Row],[Patient Name]],\": \",Homework[[#This Row],[Chart]])","v":": "},{"$f":"IF(ISBLANK(Homework[[#This Row],[Date]]),\"\",UPPER(TEXT(Homework[[#This Row],[Date]],\"ddd\")))","v":""},{"$f":"IF(ISBLANK(Homework[[#This Row],[Date]]),\"\",UPPER(TEXT(Homework[[#This Row],[Date]],\"mmm\")))","v":""}]
[null,null,null,null,{"$f":"CONCATENATE(Homework[[#This Row],[Patient Name]],\": \",Homework[[#This Row],[Chart]])","v":": "},{"$f":"IF(ISBLANK(Homework[[#This Row],[Date]]),\"\",UPPER(TEXT(Homework[[#This Row],[Date]],\"ddd\")))","v":""},{"$f":"IF(ISBLANK(Homework[[#This Row],[Date]]),\"\",UPPER(TEXT(Homework[[#This Row],[Date]],\"mmm\")))","v":""}]
[null,null,null,null,{"$f":"CONCATENATE(Homework[[#This Row],[Patient Name]],\": \",Homework[[#This Row],[Chart]])","v":": "},{"$f":"IF(ISBLANK(Homework[[#This Row],[Date]]),\"\",UPPER(TEXT(Homework[[#This Row],[Date]],\"ddd\")))","v":""},{"$f":"IF(ISBLANK(Homework[[#This Row],[Date]]),\"\",UPPER(TEXT(Homework[[#This Row],[Date]],\"mmm\")))","v":""}]
[null,null,null,null,{"$f":"CONCATENATE(Homework[[#This Row],[Patient Name]],\": \",Homework[[#This Row],[Chart]])","v":": "},{"$f":"IF(ISBLANK(Homework[[#This Row],[Date]]),\"\",UPPER(TEXT(Homework[[#This Row],[Date]],\"ddd\")))","v":""},{"$f":"IF(ISBLANK(Homework[[#This Row],[Date]]),\"\",UPPER(TEXT(Homework[[#This Row],[Date]],\"mmm\")))","v":""}]
[null,null,null,null,{"$f":"CONCATENATE(Homework[[#This Row],[Patient Name]],\": \",Homework[[#This Row],[Chart]])","v":": "},{"$f":"IF(ISBLANK(Homework[[#This Row],[Date]]),\"\",UPPER(TEXT(Homework[[#This Row],[Date]],\"ddd\")))","v":""},{"$f":"IF(ISBLANK(Homework[[#This Row],[Date]]),\"\",UPPER(TEXT(Homework[[#This Row],[Date]],\"mmm\")))","v":""}]
[null,null,null,null,{"$f":"CONCATENATE(Homework[[#This Row],[Patient Name]],\": \",Homework[[#This Row],[Chart]])","v":": "},{"$f":"IF(ISBLANK(Homework[[#This Row],[Date]]),\"\",UPPER(TEXT(Homework[[#This Row],[Date]],\"ddd\")))","v":""},{"$f":"IF(ISBLANK(Homework[[#This Row],[Date]]),\"\",UPPER(TEXT(Homework[[#This Row],[Date]],\"mmm\")))","v":""}]
[null,null,null,null,{"$f":"CONCATENATE(Homework[[#This Row],[Patient Name]],\": \",Homework[[#This Row],[Chart]])","v":": "},{"$f":"IF(ISBLANK(Homework[[#This Row],[Date]]),\"\",UPPER(TEXT(Homework[[#This Row],[Date]],\"ddd\")))","v":""},{"$f":"IF(ISBLANK(Homework[[#This Row],[Date]]),\"\",UPPER(TEXT(Homework[[#This Row],[Date]],\"mmm\")))","v":""}]
[null,null,null,null,{"$f":"CONCATENATE(Homework[[#This Row],[Patient Name]],\": \",Homework[[#This Row],[Chart]])","v":": "},{"$f":"IF(ISBLANK(Homework[[#This Row],[Date]]),\"\",UPPER(TEXT(Homework[[#This Row],[Date]],\"ddd\")))","v":""},{"$f":"IF(ISBLANK(Homework[[#This Row],[Date]]),\"\",UPPER(TEXT(Homework[[#This Row],[Date]],\"mmm\")))","v":""}]
[null,null,null,null,{"$f":"CONCATENATE(Homework[[#This Row],[Patient Name]],\": \",Homework[[#This Row],[Chart]])","v":": "},{"$f":"IF(ISBLANK(Homework[[#This Row],[Date]]),\"\",UPPER(TEXT(Homework[[#This Row],[Date]],\"ddd\")))","v":""},{"$f":"IF(ISBLANK(Homework[[#This Row],[Date]]),\"\",UPPER(TEXT(Homework[[#This Row],[Date]],\"mmm\")))","v":""}]
[null,null,null,null,{"$f":"CONCATENATE(Homework[[#This Row],[Patient Name]],\": \",Homework[[#This Row],[Chart]])","v":": "},{"$f":"IF(ISBLANK(Homework[[#This Row],[Date]]),\"\",UPPER(TEXT(Homework[[#This Row],[Date]],\"ddd\")))","v":""},{"$f":"IF(ISBLANK(Homework[[#This Row],[Date]]),\"\",UPPER(TEXT(Homework[[#This Row],[Date]],\"mmm\")))","v":""}]
[null,null,null,null,{"$f":"CONCATENATE(Homework[[#This Row],[Patient Name]],\": \",Homework[[#This Row],[Chart]])","v":": "},{"$f":"IF(ISBLANK(Homework[[#This Row],[Date]]),\"\",UPPER(TEXT(Homework[[#This Row],[Date]],\"ddd\")))","v":""},{"$f":"IF(ISBLANK(Homework[[#This Row],[Date]]),\"\",UPPER(TEXT(Homework[[#This Row],[Date]],\"mmm\")))","v":""}]
[null,null,null,null,{"$f":"CONCATENATE(Homework[[#This Row],[Patient Name]],\": \",Homework[[#This Row],[Chart]])","v":": "},{"$f":"IF(ISBLANK(Homework[[#This Row],[Date]]),\"\",UPPER(TEXT(Homework[[#This Row],[Date]],\"ddd\")))","v":""},{"$f":"IF(ISBLANK(Homework[[#This Row],[Date]]),\"\",UPPER(TEXT(Homework[[#This Row],[Date]],\"mmm\")))","v":""}]
[null,null,null,null,{"$f":"CONCATENATE(Homework[[#This Row],[Patient Name]],\": \",Homework[[#This Row],[Chart]])","v":": "},{"$f":"IF(ISBLANK(Homework[[#This Row],[Date]]),\"\",UPPER(TEXT(Homework[[#This Row],[Date]],\"ddd\")))","v":""},{"$f":"IF(ISBLANK(Homework[[#This Row],[Date]]),\"\",UPPER(TEXT(Homework[[#This Row],[Date]],\"mmm\")))","v":""}]
[null,null,null,null,{"$f":"CONCATENATE(Homework[[#This Row],[Patient Name]],\": \",Homework[[#This Row],[Chart]])","v":": "},{"$f":"IF(ISBLANK(Homework[[#This Row],[Date]]),\"\",UPPER(TEXT(Homework[[#This Row],[Date]],\"ddd\")))","v":""},{"$f":"IF(ISBLANK(Homework[[#This Row],[Date]]),\"\",UPPER(TEXT(Homework[[#This Row],[Date]],\"mmm\")))","v":""}]
[null,null,null,null,{"$f":"CONCATENATE(Homework[[#This Row],[Patient Name]],\": \",Homework[[#This Row],[Chart]])","v":": "},{"$f":"IF(ISBLANK(Homework[[#This Row],[Date]]),\"\",UPPER(TEXT(Homework[[#This Row],[Date]],\"ddd\")))","v":""},{"$f":"IF(ISBLANK(Homework[[#This Row],[Date]]),\"\",UPPER(TEXT(Homework[[#This Row],[Date]],\"mmm\")))","v":""}]
[null,null,null,null,{"$f":"CONCATENATE(Homework[[#This Row],[Patient Name]],\": \",Homework[[#This Row],[Chart]])","v":": "},{"$f":"IF(ISBLANK(Homework[[#This Row],[Date]]),\"\",UPPER(TEXT(Homework[[#This Row],[Date]],\"ddd\")))","v":""},{"$f":"IF(ISBLANK(Homework[[#This Row],[Date]]),\"\",UPPER(TEXT(Homework[[#This Row],[Date]],\"mmm\")))","v":""}]
[null,null,null,null,{"$f":"CONCATENATE(Homework[[#This Row],[Patient Name]],\": \",Homework[[#This Row],[Chart]])","v":": "},{"$f":"IF(ISBLANK(Homework[[#This Row],[Date]]),\"\",UPPER(TEXT(Homework[[#This Row],[Date]],\"ddd\")))","v":""},{"$f":"IF(ISBLANK(Homework[[#This Row],[Date]]),\"\",UPPER(TEXT(Homework[[#This Row],[Date]],\"mmm\")))","v":""}]
[null,null,null,null,{"$f":"CONCATENATE(Homework[[#This Row],[Patient Name]],\": \",Homework[[#This Row],[Chart]])","v":": "},{"$f":"IF(ISBLANK(Homework[[#This Row],[Date]]),\"\",UPPER(TEXT(Homework[[#This Row],[Date]],\"ddd\")))","v":""},{"$f":"IF(ISBLANK(Homework[[#This Row],[Date]]),\"\",UPPER(TEXT(Homework[[#This Row],[Date]],\"mmm\")))","v":""}]
[null,null,null,null,{"$f":"CONCATENATE(Homework[[#This Row],[Patient Name]],\": \",Homework[[#This Row],[Chart]])","v":": "},{"$f":"IF(ISBLANK(Homework[[#This Row],[Date]]),\"\",UPPER(TEXT(Homework[[#This Row],[Date]],\"ddd\")))","v":""},{"$f":"IF(ISBLANK(Homework[[#This Row],[Date]]),\"\",UPPER(TEXT(Homework[[#This Row],[Date]],\"mmm\")))","v":""}]
[null,null,null,null,{"$f":"CONCATENATE(Homework[[#This Row],[Patient Name]],\": \",Homework[[#This Row],[Chart]])","v":": "},{"$f":"IF(ISBLANK(Homework[[#This Row],[Date]]),\"\",UPPER(TEXT(Homework[[#This Row],[Date]],\"ddd\")))","v":""},{"$f":"IF(ISBLANK(Homework[[#This Row],[Date]]),\"\",UPPER(TEXT(Homework[[#This Row],[Date]],\"mmm\")))","v":""}]
[null,null,null,null,{"$f":"CONCATENATE(Homework[[#This Row],[Patient Name]],\": \",Homework[[#This Row],[Chart]])","v":": "},{"$f":"IF(ISBLANK(Homework[[#This Row],[Date]]),\"\",UPPER(TEXT(Homework[[#This Row],[Date]],\"ddd\")))","v":""},{"$f":"IF(ISBLANK(Homework[[#This Row],[Date]]),\"\",UPPER(TEXT(Homework[[#This Row],[Date]],\"mmm\")))","v":""}]
[null,null,null,null,{"$f":"CONCATENATE(Homework[[#This Row],[Patient Name]],\": \",Homework[[#This Row],[Chart]])","v":": "},{"$f":"IF(ISBLANK(Homework[[#This Row],[Date]]),\"\",UPPER(TEXT(Homework[[#This Row],[Date]],\"ddd\")))","v":""},{"$f":"IF(ISBLANK(Homework[[#This Row],[Date]]),\"\",UPPER(TEXT(Homework[[#This Row],[Date]],\"mmm\")))","v":""}]
[null,null,null,null,{"$f":"CONCATENATE(Homework[[#This Row],[Patient Name]],\": \",Homework[[#This Row],[Chart]])","v":": "},{"$f":"IF(ISBLANK(Homework[[#This Row],[Date]]),\"\",UPPER(TEXT(Homework[[#This Row],[Date]],\"ddd\")))","v":""},{"$f":"IF(ISBLANK(Homework[[#This Row],[Date]]),\"\",UPPER(TEXT(Homework[[#This Row],[Date]],\"mmm\")))","v":""}]
[null,null,null,null,{"$f":"CONCATENATE(Homework[[#This Row],[Patient Name]],\": \",Homework[[#This Row],[Chart]])","v":": "},{"$f":"IF(ISBLANK(Homework[[#This Row],[Date]]),\"\",UPPER(TEXT(Homework[[#This Row],[Date]],\"ddd\")))","v":""},{"$f":"IF(ISBLANK(Homework[[#This Row],[Date]]),\"\",UPPER(TEXT(Homework[[#This Row],[Date]],\"mmm\")))","v":""}]
[null,null,null,null,{"$f":"CONCATENATE(Homework[[#This Row],[Patient Name]],\": \",Homework[[#This Row],[Chart]])","v":": "},{"$f":"IF(ISBLANK(Homework[[#This Row],[Date]]),\"\",UPPER(TEXT(Homework[[#This Row],[Date]],\"ddd\")))","v":""},{"$f":"IF(ISBLANK(Homework[[#This Row],[Date]]),\"\",UPPER(TEXT(Homework[[#This Row],[Date]],\"mmm\")))","v":""}]
[null,null,null,null,{"$f":"CONCATENATE(Homework[[#This Row],[Patient Name]],\": \",Homework[[#This Row],[Chart]])","v":": "},{"$f":"IF(ISBLANK(Homework[[#This Row],[Date]]),\"\",UPPER(TEXT(Homework[[#This Row],[Date]],\"ddd\")))","v":""},{"$f":"IF(ISBLANK(Homework[[#This Row],[Date]]),\"\",UPPER(TEXT(Homework[[#This Row],[Date]],\"mmm\")))","v":""}]
[null,null,null,null,{"$f":"CONCATENATE(Homework[[#This Row],[Patient Name]],\": \",Homework[[#This Row],[Chart]])","v":": "},{"$f":"IF(ISBLANK(Homework[[#This Row],[Date]]),\"\",UPPER(TEXT(Homework[[#This Row],[Date]],\"ddd\")))","v":""},{"$f":"IF(ISBLANK(Homework[[#This Row],[Date]]),\"\",UPPER(TEXT(Homework[[#This Row],[Date]],\"mmm\")))","v":""}]
[null,null,null,null,{"$f":"CONCATENATE(Homework[[#This Row],[Patient Name]],\": \",Homework[[#This Row],[Chart]])","v":": "},{"$f":"IF(ISBLANK(Homework[[#This Row],[Date]]),\"\",UPPER(TEXT(Homework[[#This Row],[Date]],\"ddd\")))","v":""},{"$f":"IF(ISBLANK(Homework[[#This Row],[Date]]),\"\",UPPER(TEXT(Homework[[#This Row],[Date]],\"mmm\")))","v":""}]
[null,null,null,null,{"$f":"CONCATENATE(Homework[[#This Row],[Patient Name]],\": \",Homework[[#This Row],[Chart]])","v":": "},{"$f":"IF(ISBLANK(Homework[[#This Row],[Date]]),\"\",UPPER(TEXT(Homework[[#This Row],[Date]],\"ddd\")))","v":""},{"$f":"IF(ISBLANK(Homework[[#This Row],[Date]]),\"\",UPPER(TEXT(Homework[[#This Row],[Date]],\"mmm\")))","v":""}]
[null,null,null,null,{"$f":"CONCATENATE(Homework[[#This Row],[Patient Name]],\": \",Homework[[#This Row],[Chart]])","v":": "},{"$f":"IF(ISBLANK(Homework[[#This Row],[Date]]),\"\",UPPER(TEXT(Homework[[#This Row],[Date]],\"ddd\")))","v":""},{"$f":"IF(ISBLANK(Homework[[#This Row],[Date]]),\"\",UPPER(TEXT(Homework[[#This Row],[Date]],\"mmm\")))","v":""}]
[null,null,null,null,{"$f":"CONCATENATE(Homework[[#This Row],[Patient Name]],\": \",Homework[[#This Row],[Chart]])","v":": "},{"$f":"IF(ISBLANK(Homework[[#This Row],[Date]]),\"\",UPPER(TEXT(Homework[[#This Row],[Date]],\"ddd\")))","v":""},{"$f":"IF(ISBLANK(Homework[[#This Row],[Date]]),\"\",UPPER(TEXT(Homework[[#This Row],[Date]],\"mmm\")))","v":""}]
[null,null,null,null,{"$f":"CONCATENATE(Homework[[#This Row],[Patient Name]],\": \",Homework[[#This Row],[Chart]])","v":": "},{"$f":"IF(ISBLANK(Homework[[#This Row],[Date]]),\"\",UPPER(TEXT(Homework[[#This Row],[Date]],\"ddd\")))","v":""},{"$f":"IF(ISBLANK(Homework[[#This Row],[Date]]),\"\",UPPER(TEXT(Homework[[#This Row],[Date]],\"mmm\")))","v":""}]
[null,null,null,null,{"$f":"CONCATENATE(Homework[[#This Row],[Patient Name]],\": \",Homework[[#This Row],[Chart]])","v":": "},{"$f":"IF(ISBLANK(Homework[[#This Row],[Date]]),\"\",UPPER(TEXT(Homework[[#This Row],[Date]],\"ddd\")))","v":""},{"$f":"IF(ISBLANK(Homework[[#This Row],[Date]]),\"\",UPPER(TEXT(Homework[[#This Row],[Date]],\"mmm\")))","v":""}]
[null,null,null,null,{"$f":"CONCATENATE(Homework[[#This Row],[Patient Name]],\": \",Homework[[#This Row],[Chart]])","v":": "},{"$f":"IF(ISBLANK(Homework[[#This Row],[Date]]),\"\",UPPER(TEXT(Homework[[#This Row],[Date]],\"ddd\")))","v":""},{"$f":"IF(ISBLANK(Homework[[#This Row],[Date]]),\"\",UPPER(TEXT(Homework[[#This Row],[Date]],\"mmm\")))","v":""}]
[null,null,null,null,{"$f":"CONCATENATE(Homework[[#This Row],[Patient Name]],\": \",Homework[[#This Row],[Chart]])","v":": "},{"$f":"IF(ISBLANK(Homework[[#This Row],[Date]]),\"\",UPPER(TEXT(Homework[[#This Row],[Date]],\"ddd\")))","v":""},{"$f":"IF(ISBLANK(Homework[[#This Row],[Date]]),\"\",UPPER(TEXT(Homework[[#This Row],[Date]],\"mmm\")))","v":""}]
[null,null,null,null,{"$f":"CONCATENATE(Homework[[#This Row],[Patient Name]],\": \",Homework[[#This Row],[Chart]])","v":": "},{"$f":"IF(ISBLANK(Homework[[#This Row],[Date]]),\"\",UPPER(TEXT(Homework[[#This Row],[Date]],\"ddd\")))","v":""},{"$f":"IF(ISBLANK(Homework[[#This Row],[Date]]),\"\",UPPER(TEXT(Homework[[#This Row],[Date]],\"mmm\")))","v":""}]
[null,null,null,null,{"$f":"CONCATENATE(Homework[[#This Row],[Patient Name]],\": \",Homework[[#This Row],[Chart]])","v":": "},{"$f":"IF(ISBLANK(Homework[[#This Row],[Date]]),\"\",UPPER(TEXT(Homework[[#This Row],[Date]],\"ddd\")))","v":""},{"$f":"IF(ISBLANK(Homework[[#This Row],[Date]]),\"\",UPPER(TEXT(Homework[[#This Row],[Date]],\"mmm\")))","v":""}]
[null,null,null,null,{"$f":"CONCATENATE(Homework[[#This Row],[Patient Name]],\": \",Homework[[#This Row],[Chart]])","v":": "},{"$f":"IF(ISBLANK(Homework[[#This Row],[Date]]),\"\",UPPER(TEXT(Homework[[#This Row],[Date]],\"ddd\")))","v":""},{"$f":"IF(ISBLANK(Homework[[#This Row],[Date]]),\"\",UPPER(TEXT(Homework[[#This Row],[Date]],\"mmm\")))","v":""}]
[null,null,null,null,{"$f":"CONCATENATE(Homework[[#This Row],[Patient Name]],\": \",Homework[[#This Row],[Chart]])","v":": "},{"$f":"IF(ISBLANK(Homework[[#This Row],[Date]]),\"\",UPPER(TEXT(Homework[[#This Row],[Date]],\"ddd\")))","v":""},{"$f":"IF(ISBLANK(Homework[[#This Row],[Date]]),\"\",UPPER(TEXT(Homework[[#This Row],[Date]],\"mmm\")))","v":""}]
[null,null,null,null,{"$f":"CONCATENATE(Homework[[#This Row],[Patient Name]],\": \",Homework[[#This Row],[Chart]])","v":": "},{"$f":"IF(ISBLANK(Homework[[#This Row],[Date]]),\"\",UPPER(TEXT(Homework[[#This Row],[Date]],\"ddd\")))","v":""},{"$f":"IF(ISBLANK(Homework[[#This Row],[Date]]),\"\",UPPER(TEXT(Homework[[#This Row],[Date]],\"mmm\")))","v":""}]
[null,null,null,null,{"$f":"CONCATENATE(Homework[[#This Row],[Patient Name]],\": \",Homework[[#This Row],[Chart]])","v":": "},{"$f":"IF(ISBLANK(Homework[[#This Row],[Date]]),\"\",UPPER(TEXT(Homework[[#This Row],[Date]],\"ddd\")))","v":""},{"$f":"IF(ISBLANK(Homework[[#This Row],[Date]]),\"\",UPPER(TEXT(Homework[[#This Row],[Date]],\"mmm\")))","v":""}]
[null,null,null,null,{"$f":"CONCATENATE(Homework[[#This Row],[Patient Name]],\": \",Homework[[#This Row],[Chart]])","v":": "},{"$f":"IF(ISBLANK(Homework[[#This Row],[Date]]),\"\",UPPER(TEXT(Homework[[#This Row],[Date]],\"ddd\")))","v":""},{"$f":"IF(ISBLANK(Homework[[#This Row],[Date]]),\"\",UPPER(TEXT(Homework[[#This Row],[Date]],\"mmm\")))","v":""}]
[null,null,null,null,{"$f":"CONCATENATE(Homework[[#This Row],[Patient Name]],\": \",Homework[[#This Row],[Chart]])","v":": "},{"$f":"IF(ISBLANK(Homework[[#This Row],[Date]]),\"\",UPPER(TEXT(Homework[[#This Row],[Date]],\"ddd\")))","v":""},{"$f":"IF(ISBLANK(Homework[[#This Row],[Date]]),\"\",UPPER(TEXT(Homework[[#This Row],[Date]],\"mmm\")))","v":""}]
[null,null,null,null,{"$f":"CONCATENATE(Homework[[#This Row],[Patient Name]],\": \",Homework[[#This Row],[Chart]])","v":": "},{"$f":"IF(ISBLANK(Homework[[#This Row],[Date]]),\"\",UPPER(TEXT(Homework[[#This Row],[Date]],\"ddd\")))","v":""},{"$f":"IF(ISBLANK(Homework[[#This Row],[Date]]),\"\",UPPER(TEXT(Homework[[#This Row],[Date]],\"mmm\")))","v":""}]
[null,null,null,null,{"$f":"CONCATENATE(Homework[[#This Row],[Patient Name]],\": \",Homework[[#This Row],[Chart]])","v":": "},{"$f":"IF(ISBLANK(Homework[[#This Row],[Date]]),\"\",UPPER(TEXT(Homework[[#This Row],[Date]],\"ddd\")))","v":""},{"$f":"IF(ISBLANK(Homework[[#This Row],[Date]]),\"\",UPPER(TEXT(Homework[[#This Row],[Date]],\"mmm\")))","v":""}]
[null,null,null,null,{"$f":"CONCATENATE(Homework[[#This Row],[Patient Name]],\": \",Homework[[#This Row],[Chart]])","v":": "},{"$f":"IF(ISBLANK(Homework[[#This Row],[Date]]),\"\",UPPER(TEXT(Homework[[#This Row],[Date]],\"ddd\")))","v":""},{"$f":"IF(ISBLANK(Homework[[#This Row],[Date]]),\"\",UPPER(TEXT(Homework[[#This Row],[Date]],\"mmm\")))","v":""}]
[null,null,null,null,{"$f":"CONCATENATE(Homework[[#This Row],[Patient Name]],\": \",Homework[[#This Row],[Chart]])","v":": "},{"$f":"IF(ISBLANK(Homework[[#This Row],[Date]]),\"\",UPPER(TEXT(Homework[[#This Row],[Date]],\"ddd\")))","v":""},{"$f":"IF(ISBLANK(Homework[[#This Row],[Date]]),\"\",UPPER(TEXT(Homework[[#This Row],[Date]],\"mmm\")))","v":""}]
[null,null,null,null,{"$f":"CONCATENATE(Homework[[#This Row],[Patient Name]],\": \",Homework[[#This Row],[Chart]])","v":": "},{"$f":"IF(ISBLANK(Homework[[#This Row],[Date]]),\"\",UPPER(TEXT(Homework[[#This Row],[Date]],\"ddd\")))","v":""},{"$f":"IF(ISBLANK(Homework[[#This Row],[Date]]),\"\",UPPER(TEXT(Homework[[#This Row],[Date]],\"mmm\")))","v":""}]
[null,null,null,null,{"$f":"CONCATENATE(Homework[[#This Row],[Patient Name]],\": \",Homework[[#This Row],[Chart]])","v":": "},{"$f":"IF(ISBLANK(Homework[[#This Row],[Date]]),\"\",UPPER(TEXT(Homework[[#This Row],[Date]],\"ddd\")))","v":""},{"$f":"IF(ISBLANK(Homework[[#This Row],[Date]]),\"\",UPPER(TEXT(Homework[[#This Row],[Date]],\"mmm\")))","v":""}]
[null,null,null,null,{"$f":"CONCATENATE(Homework[[#This Row],[Patient Name]],\": \",Homework[[#This Row],[Chart]])","v":": "},{"$f":"IF(ISBLANK(Homework[[#This Row],[Date]]),\"\",UPPER(TEXT(Homework[[#This Row],[Date]],\"ddd\")))","v":""},{"$f":"IF(ISBLANK(Homework[[#This Row],[Date]]),\"\",UPPER(TEXT(Homework[[#This Row],[Date]],\"mmm\")))","v":""}]
[null,null,null,null,{"$f":"CONCATENATE(Homework[[#This Row],[Patient Name]],\": \",Homework[[#This Row],[Chart]])","v":": "},{"$f":"IF(ISBLANK(Homework[[#This Row],[Date]]),\"\",UPPER(TEXT(Homework[[#This Row],[Date]],\"ddd\")))","v":""},{"$f":"IF(ISBLANK(Homework[[#This Row],[Date]]),\"\",UPPER(TEXT(Homework[[#This Row],[Date]],\"mmm\")))","v":""}]
[null,null,null,null,{"$f":"CONCATENATE(Homework[[#This Row],[Patient Name]],\": \",Homework[[#This Row],[Chart]])","v":": "},{"$f":"IF(ISBLANK(Homework[[#This Row],[Date]]),\"\",UPPER(TEXT(Homework[[#This Row],[Date]],\"ddd\")))","v":""},{"$f":"IF(ISBLANK(Homework[[#This Row],[Date]]),\"\",UPPER(TEXT(Homework[[#This Row],[Date]],\"mmm\")))","v":""}]
[null,null,null,null,{"$f":"CONCATENATE(Homework[[#This Row],[Patient Name]],\": \",Homework[[#This Row],[Chart]])","v":": "},{"$f":"IF(ISBLANK(Homework[[#This Row],[Date]]),\"\",UPPER(TEXT(Homework[[#This Row],[Date]],\"ddd\")))","v":""},{"$f":"IF(ISBLANK(Homework[[#This Row],[Date]]),\"\",UPPER(TEXT(Homework[[#This Row],[Date]],\"mmm\")))","v":""}]
[null,null,null,null,{"$f":"CONCATENATE(Homework[[#This Row],[Patient Name]],\": \",Homework[[#This Row],[Chart]])","v":": "},{"$f":"IF(ISBLANK(Homework[[#This Row],[Date]]),\"\",UPPER(TEXT(Homework[[#This Row],[Date]],\"ddd\")))","v":""},{"$f":"IF(ISBLANK(Homework[[#This Row],[Date]]),\"\",UPPER(TEXT(Homework[[#This Row],[Date]],\"mmm\")))","v":""}]
[null,null,null,null,{"$f":"CONCATENATE(Homework[[#This Row],[Patient Name]],\": \",Homework[[#This Row],[Chart]])","v":": "},{"$f":"IF(ISBLANK(Homework[[#This Row],[Date]]),\"\",UPPER(TEXT(Homework[[#This Row],[Date]],\"ddd\")))","v":""},{"$f":"IF(ISBLANK(Homework[[#This Row],[Date]]),\"\",UPPER(TEXT(Homework[[#This Row],[Date]],\"mmm\")))","v":""}]
[null,null,null,null,{"$f":"CONCATENATE(Homework[[#This Row],[Patient Name]],\": \",Homework[[#This Row],[Chart]])","v":": "},{"$f":"IF(ISBLANK(Homework[[#This Row],[Date]]),\"\",UPPER(TEXT(Homework[[#This Row],[Date]],\"ddd\")))","v":""},{"$f":"IF(ISBLANK(Homework[[#This Row],[Date]]),\"\",UPPER(TEXT(Homework[[#This Row],[Date]],\"mmm\")))","v":""}]
[null,null,null,null,{"$f":"CONCATENATE(Homework[[#This Row],[Patient Name]],\": \",Homework[[#This Row],[Chart]])","v":": "},{"$f":"IF(ISBLANK(Homework[[#This Row],[Date]]),\"\",UPPER(TEXT(Homework[[#This Row],[Date]],\"ddd\")))","v":""},{"$f":"IF(ISBLANK(Homework[[#This Row],[Date]]),\"\",UPPER(TEXT(Homework[[#This Row],[Date]],\"mmm\")))","v":""}]
[null,null,null,null,{"$f":"CONCATENATE(Homework[[#This Row],[Patient Name]],\": \",Homework[[#This Row],[Chart]])","v":": "},{"$f":"IF(ISBLANK(Homework[[#This Row],[Date]]),\"\",UPPER(TEXT(Homework[[#This Row],[Date]],\"ddd\")))","v":""},{"$f":"IF(ISBLANK(Homework[[#This Row],[Date]]),\"\",UPPER(TEXT(Homework[[#This Row],[Date]],\"mmm\")))","v":""}]
[null,null,null,null,{"$f":"CONCATENATE(Homework[[#This Row],[Patient Name]],\": \",Homework[[#This Row],[Chart]])","v":": "},{"$f":"IF(ISBLANK(Homework[[#This Row],[Date]]),\"\",UPPER(TEXT(Homework[[#This Row],[Date]],\"ddd\")))","v":""},{"$f":"IF(ISBLANK(Homework[[#This Row],[Date]]),\"\",UPPER(TEXT(Homework[[#This Row],[Date]],\"mmm\")))","v":""}]
[null,null,null,null,{"$f":"CONCATENATE(Homework[[#This Row],[Patient Name]],\": \",Homework[[#This Row],[Chart]])","v":": "},{"$f":"IF(ISBLANK(Homework[[#This Row],[Date]]),\"\",UPPER(TEXT(Homework[[#This Row],[Date]],\"ddd\")))","v":""},{"$f":"IF(ISBLANK(Homework[[#This Row],[Date]]),\"\",UPPER(TEXT(Homework[[#This Row],[Date]],\"mmm\")))","v":""}]
[null,null,null,null,{"$f":"CONCATENATE(Homework[[#This Row],[Patient Name]],\": \",Homework[[#This Row],[Chart]])","v":": "},{"$f":"IF(ISBLANK(Homework[[#This Row],[Date]]),\"\",UPPER(TEXT(Homework[[#This Row],[Date]],\"ddd\")))","v":""},{"$f":"IF(ISBLANK(Homework[[#This Row],[Date]]),\"\",UPPER(TEXT(Homework[[#This Row],[Date]],\"mmm\")))","v":""}]
[null,null,null,null,{"$f":"CONCATENATE(Homework[[#This Row],[Patient Name]],\": \",Homework[[#This Row],[Chart]])","v":": "},{"$f":"IF(ISBLANK(Homework[[#This Row],[Date]]),\"\",UPPER(TEXT(Homework[[#This Row],[Date]],\"ddd\")))","v":""},{"$f":"IF(ISBLANK(Homework[[#This Row],[Date]]),\"\",UPPER(TEXT(Homework[[#This Row],[Date]],\"mmm\")))","v":""}]
[null,null,null,null,{"$f":"CONCATENATE(Homework[[#This Row],[Patient Name]],\": \",Homework[[#This Row],[Chart]])","v":": "},{"$f":"IF(ISBLANK(Homework[[#This Row],[Date]]),\"\",UPPER(TEXT(Homework[[#This Row],[Date]],\"ddd\")))","v":""},{"$f":"IF(ISBLANK(Homework[[#This Row],[Date]]),\"\",UPPER(TEXT(Homework[[#This Row],[Date]],\"mmm\")))","v":""}]
[null,null,null,null,{"$f":"CONCATENATE(Homework[[#This Row],[Patient Name]],\": \",Homework[[#This Row],[Chart]])","v":": "},{"$f":"IF(ISBLANK(Homework[[#This Row],[Date]]),\"\",UPPER(TEXT(Homework[[#This Row],[Date]],\"ddd\")))","v":""},{"$f":"IF(ISBLANK(Homework[[#This Row],[Date]]),\"\",UPPER(TEXT(Homework[[#This Row],[Date]],\"mmm\")))","v":""}]
[null,null,null,null,{"$f":"CONCATENATE(Homework[[#This Row],[Patient Name]],\": \",Homework[[#This Row],[Chart]])","v":": "},{"$f":"IF(ISBLANK(Homework[[#This Row],[Date]]),\"\",UPPER(TEXT(Homework[[#This Row],[Date]],\"ddd\")))","v":""},{"$f":"IF(ISBLANK(Homework[[#This Row],[Date]]),\"\",UPPER(TEXT(Homework[[#This Row],[Date]],\"mmm\")))","v":""}]
[null,null,null,null,{"$f":"CONCATENATE(Homework[[#This Row],[Patient Name]],\": \",Homework[[#This Row],[Chart]])","v":": "},{"$f":"IF(ISBLANK(Homework[[#This Row],[Date]]),\"\",UPPER(TEXT(Homework[[#This Row],[Date]],\"ddd\")))","v":""},{"$f":"IF(ISBLANK(Homework[[#This Row],[Date]]),\"\",UPPER(TEXT(Homework[[#This Row],[Date]],\"mmm\")))","v":""}]
[null,null,null,null,{"$f":"CONCATENATE(Homework[[#This Row],[Patient Name]],\": \",Homework[[#This Row],[Chart]])","v":": "},{"$f":"IF(ISBLANK(Homework[[#This Row],[Date]]),\"\",UPPER(TEXT(Homework[[#This Row],[Date]],\"ddd\")))","v":""},{"$f":"IF(ISBLANK(Homework[[#This Row],[Date]]),\"\",UPPER(TEXT(Homework[[#This Row],[Date]],\"mmm\")))","v":""}]
[null,null,null,null,{"$f":"CONCATENATE(Homework[[#This Row],[Patient Name]],\": \",Homework[[#This Row],[Chart]])","v":": "},{"$f":"IF(ISBLANK(Homework[[#This Row],[Date]]),\"\",UPPER(TEXT(Homework[[#This Row],[Date]],\"ddd\")))","v":""},{"$f":"IF(ISBLANK(Homework[[#This Row],[Date]]),\"\",UPPER(TEXT(Homework[[#This Row],[Date]],\"mmm\")))","v":""}]
[null,null,null,null,{"$f":"CONCATENATE(Homework[[#This Row],[Patient Name]],\": \",Homework[[#This Row],[Chart]])","v":": "},{"$f":"IF(ISBLANK(Homework[[#This Row],[Date]]),\"\",UPPER(TEXT(Homework[[#This Row],[Date]],\"ddd\")))","v":""},{"$f":"IF(ISBLANK(Homework[[#This Row],[Date]]),\"\",UPPER(TEXT(Homework[[#This Row],[Date]],\"mmm\")))","v":""}]
[null,null,null,null,{"$f":"CONCATENATE(Homework[[#This Row],[Patient Name]],\": \",Homework[[#This Row],[Chart]])","v":": "},{"$f":"IF(ISBLANK(Homework[[#This Row],[Date]]),\"\",UPPER(TEXT(Homework[[#This Row],[Date]],\"ddd\")))","v":""},{"$f":"IF(ISBLANK(Homework[[#This Row],[Date]]),\"\",UPPER(TEXT(Homework[[#This Row],[Date]],\"mmm\")))","v":""}]
[null,null,null,null,{"$f":"CONCATENATE(Homework[[#This Row],[Patient Name]],\": \",Homework[[#This Row],[Chart]])","v":": "},{"$f":"IF(ISBLANK(Homework[[#This Row],[Date]]),\"\",UPPER(TEXT(Homework[[#This Row],[Date]],\"ddd\")))","v":""},{"$f":"IF(ISBLANK(Homework[[#This Row],[Date]]),\"\",UPPER(TEXT(Homework[[#This Row],[Date]],\"mmm\")))","v":""}]
[null,null,null,null,{"$f":"CONCATENATE(Homework[[#This Row],[Patient Name]],\": \",Homework[[#This Row],[Chart]])","v":": "},{"$f":"IF(ISBLANK(Homework[[#This Row],[Date]]),\"\",UPPER(TEXT(Homework[[#This Row],[Date]],\"ddd\")))","v":""},{"$f":"IF(ISBLANK(Homework[[#This Row],[Date]]),\"\",UPPER(TEXT(Homework[[#This Row],[Date]],\"mmm\")))","v":""}]
[null,null,null,null,{"$f":"CONCATENATE(Homework[[#This Row],[Patient Name]],\": \",Homework[[#This Row],[Chart]])","v":": "},{"$f":"IF(ISBLANK(Homework[[#This Row],[Date]]),\"\",UPPER(TEXT(Homework[[#This Row],[Date]],\"ddd\")))","v":""},{"$f":"IF(ISBLANK(Homework[[#This Row],[Date]]),\"\",UPPER(TEXT(Homework[[#This Row],[Date]],\"mmm\")))","v":""}]
[null,null,null,null,{"$f":"CONCATENATE(Homework[[#This Row],[Patient Name]],\": \",Homework[[#This Row],[Chart]])","v":": "},{"$f":"IF(ISBLANK(Homework[[#This Row],[Date]]),\"\",UPPER(TEXT(Homework[[#This Row],[Date]],\"ddd\")))","v":""},{"$f":"IF(ISBLANK(Homework[[#This Row],[Date]]),\"\",UPPER(TEXT(Homework[[#This Row],[Date]],\"mmm\")))","v":""}]
[null,null,null,null,{"$f":"CONCATENATE(Homework[[#This Row],[Patient Name]],\": \",Homework[[#This Row],[Chart]])","v":": "},{"$f":"IF(ISBLANK(Homework[[#This Row],[Date]]),\"\",UPPER(TEXT(Homework[[#This Row],[Date]],\"ddd\")))","v":""},{"$f":"IF(ISBLANK(Homework[[#This Row],[Date]]),\"\",UPPER(TEXT(Homework[[#This Row],[Date]],\"mmm\")))","v":""}]
[null,null,null,null,{"$f":"CONCATENATE(Homework[[#This Row],[Patient Name]],\": \",Homework[[#This Row],[Chart]])","v":": "},{"$f":"IF(ISBLANK(Homework[[#This Row],[Date]]),\"\",UPPER(TEXT(Homework[[#This Row],[Date]],\"ddd\")))","v":""},{"$f":"IF(ISBLANK(Homework[[#This Row],[Date]]),\"\",UPPER(TEXT(Homework[[#This Row],[Date]],\"mmm\")))","v":""}]
[null,null,null,null,{"$f":"CONCATENATE(Homework[[#This Row],[Patient Name]],\": \",Homework[[#This Row],[Chart]])","v":": "},{"$f":"IF(ISBLANK(Homework[[#This Row],[Date]]),\"\",UPPER(TEXT(Homework[[#This Row],[Date]],\"ddd\")))","v":""},{"$f":"IF(ISBLANK(Homework[[#This Row],[Date]]),\"\",UPPER(TEXT(Homework[[#This Row],[Date]],\"mmm\")))","v":""}]
[null,null,null,null,{"$f":"CONCATENATE(Homework[[#This Row],[Patient Name]],\": \",Homework[[#This Row],[Chart]])","v":": "},{"$f":"IF(ISBLANK(Homework[[#This Row],[Date]]),\"\",UPPER(TEXT(Homework[[#This Row],[Date]],\"ddd\")))","v":""},{"$f":"IF(ISBLANK(Homework[[#This Row],[Date]]),\"\",UPPER(TEXT(Homework[[#This Row],[Date]],\"mmm\")))","v":""}]
[null,null,null,null,{"$f":"CONCATENATE(Homework[[#This Row],[Patient Name]],\": \",Homework[[#This Row],[Chart]])","v":": "},{"$f":"IF(ISBLANK(Homework[[#This Row],[Date]]),\"\",UPPER(TEXT(Homework[[#This Row],[Date]],\"ddd\")))","v":""},{"$f":"IF(ISBLANK(Homework[[#This Row],[Date]]),\"\",UPPER(TEXT(Homework[[#This Row],[Date]],\"mmm\")))","v":""}]
[null,null,null,null,{"$f":"CONCATENATE(Homework[[#This Row],[Patient Name]],\": \",Homework[[#This Row],[Chart]])","v":": "},{"$f":"IF(ISBLANK(Homework[[#This Row],[Date]]),\"\",UPPER(TEXT(Homework[[#This Row],[Date]],\"ddd\")))","v":""},{"$f":"IF(ISBLANK(Homework[[#This Row],[Date]]),\"\",UPPER(TEXT(Homework[[#This Row],[Date]],\"mmm\")))","v":""}]
[null,null,null,null,{"$f":"CONCATENATE(Homework[[#This Row],[Patient Name]],\": \",Homework[[#This Row],[Chart]])","v":": "},{"$f":"IF(ISBLANK(Homework[[#This Row],[Date]]),\"\",UPPER(TEXT(Homework[[#This Row],[Date]],\"ddd\")))","v":""},{"$f":"IF(ISBLANK(Homework[[#This Row],[Date]]),\"\",UPPER(TEXT(Homework[[#This Row],[Date]],\"mmm\")))","v":""}]
[null,null,null,null,{"$f":"CONCATENATE(Homework[[#This Row],[Patient Name]],\": \",Homework[[#This Row],[Chart]])","v":": "},{"$f":"IF(ISBLANK(Homework[[#This Row],[Date]]),\"\",UPPER(TEXT(Homework[[#This Row],[Date]],\"ddd\")))","v":""},{"$f":"IF(ISBLANK(Homework[[#This Row],[Date]]),\"\",UPPER(TEXT(Homework[[#This Row],[Date]],\"mmm\")))","v":""}]
[null,null,null,null,{"$f":"CONCATENATE(Homework[[#This Row],[Patient Name]],\": \",Homework[[#This Row],[Chart]])","v":": "},{"$f":"IF(ISBLANK(Homework[[#This Row],[Date]]),\"\",UPPER(TEXT(Homework[[#This Row],[Date]],\"ddd\")))","v":""},{"$f":"IF(ISBLANK(Homework[[#This Row],[Date]]),\"\",UPPER(TEXT(Homework[[#This Row],[Date]],\"mmm\")))","v":""}]
[null,null,null,null,{"$f":"CONCATENATE(Homework[[#This Row],[Patient Name]],\": \",Homework[[#This Row],[Chart]])","v":": "},{"$f":"IF(ISBLANK(Homework[[#This Row],[Date]]),\"\",UPPER(TEXT(Homework[[#This Row],[Date]],\"ddd\")))","v":""},{"$f":"IF(ISBLANK(Homework[[#This Row],[Date]]),\"\",UPPER(TEXT(Homework[[#This Row],[Date]],\"mmm\")))","v":""}]
[null,null,null,null,{"$f":"CONCATENATE(Homework[[#This Row],[Patient Name]],\": \",Homework[[#This Row],[Chart]])","v":": "},{"$f":"IF(ISBLANK(Homework[[#This Row],[Date]]),\"\",UPPER(TEXT(Homework[[#This Row],[Date]],\"ddd\")))","v":""},{"$f":"IF(ISBLANK(Homework[[#This Row],[Date]]),\"\",UPPER(TEXT(Homework[[#This Row],[Date]],\"mmm\")))","v":""}]
[null,null,null,null,{"$f":"CONCATENATE(Homework[[#This Row],[Patient Name]],\": \",Homework[[#This Row],[Chart]])","v":": "},{"$f":"IF(ISBLANK(Homework[[#This Row],[Date]]),\"\",UPPER(TEXT(Homework[[#This Row],[Date]],\"ddd\")))","v":""},{"$f":"IF(ISBLANK(Homework[[#This Row],[Date]]),\"\",UPPER(TEXT(Homework[[#This Row],[Date]],\"mmm\")))","v":""}]
[null,null,null,null,{"$f":"CONCATENATE(Homework[[#This Row],[Patient Name]],\": \",Homework[[#This Row],[Chart]])","v":": "},{"$f":"IF(ISBLANK(Homework[[#This Row],[Date]]),\"\",UPPER(TEXT(Homework[[#This Row],[Date]],\"ddd\")))","v":""},{"$f":"IF(ISBLANK(Homework[[#This Row],[Date]]),\"\",UPPER(TEXT(Homework[[#This Row],[Date]],\"mmm\")))","v":""}]
[null,null,null,null,{"$f":"CONCATENATE(Homework[[#This Row],[Patient Name]],\": \",Homework[[#This Row],[Chart]])","v":": "},{"$f":"IF(ISBLANK(Homework[[#This Row],[Date]]),\"\",UPPER(TEXT(Homework[[#This Row],[Date]],\"ddd\")))","v":""},{"$f":"IF(ISBLANK(Homework[[#This Row],[Date]]),\"\",UPPER(TEXT(Homework[[#This Row],[Date]],\"mmm\")))","v":""}]
[null,null,null,null,{"$f":"CONCATENATE(Homework[[#This Row],[Patient Name]],\": \",Homework[[#This Row],[Chart]])","v":": "},{"$f":"IF(ISBLANK(Homework[[#This Row],[Date]]),\"\",UPPER(TEXT(Homework[[#This Row],[Date]],\"ddd\")))","v":""},{"$f":"IF(ISBLANK(Homework[[#This Row],[Date]]),\"\",UPPER(TEXT(Homework[[#This Row],[Date]],\"mmm\")))","v":""}]
[null,null,null,null,{"$f":"CONCATENATE(Homework[[#This Row],[Patient Name]],\": \",Homework[[#This Row],[Chart]])","v":": "},{"$f":"IF(ISBLANK(Homework[[#This Row],[Date]]),\"\",UPPER(TEXT(Homework[[#This Row],[Date]],\"ddd\")))","v":""},{"$f":"IF(ISBLANK(Homework[[#This Row],[Date]]),\"\",UPPER(TEXT(Homework[[#This Row],[Date]],\"mmm\")))","v":""}]
[null,null,null,null,{"$f":"CONCATENATE(Homework[[#This Row],[Patient Name]],\": \",Homework[[#This Row],[Chart]])","v":": "},{"$f":"IF(ISBLANK(Homework[[#This Row],[Date]]),\"\",UPPER(TEXT(Homework[[#This Row],[Date]],\"ddd\")))","v":""},{"$f":"IF(ISBLANK(Homework[[#This Row],[Date]]),\"\",UPPER(TEXT(Homework[[#This Row],[Date]],\"mmm\")))","v":""}]
[null,null,null,null,{"$f":"CONCATENATE(Homework[[#This Row],[Patient Name]],\": \",Homework[[#This Row],[Chart]])","v":": "},{"$f":"IF(ISBLANK(Homework[[#This Row],[Date]]),\"\",UPPER(TEXT(Homework[[#This Row],[Date]],\"ddd\")))","v":""},{"$f":"IF(ISBLANK(Homework[[#This Row],[Date]]),\"\",UPPER(TEXT(Homework[[#This Row],[Date]],\"mmm\")))","v":""}]
[null,null,null,null,{"$f":"CONCATENATE(Homework[[#This Row],[Patient Name]],\": \",Homework[[#This Row],[Chart]])","v":": "},{"$f":"IF(ISBLANK(Homework[[#This Row],[Date]]),\"\",UPPER(TEXT(Homework[[#This Row],[Date]],\"ddd\")))","v":""},{"$f":"IF(ISBLANK(Homework[[#This Row],[Date]]),\"\",UPPER(TEXT(Homework[[#This Row],[Date]],\"mmm\")))","v":""}]
[null,null,null,null,{"$f":"CONCATENATE(Homework[[#This Row],[Patient Name]],\": \",Homework[[#This Row],[Chart]])","v":": "},{"$f":"IF(ISBLANK(Homework[[#This Row],[Date]]),\"\",UPPER(TEXT(Homework[[#This Row],[Date]],\"ddd\")))","v":""},{"$f":"IF(ISBLANK(Homework[[#This Row],[Date]]),\"\",UPPER(TEXT(Homework[[#This Row],[Date]],\"mmm\")))","v":""}]
[null,null,null,null,{"$f":"CONCATENATE(Homework[[#This Row],[Patient Name]],\": \",Homework[[#This Row],[Chart]])","v":": "},{"$f":"IF(ISBLANK(Homework[[#This Row],[Date]]),\"\",UPPER(TEXT(Homework[[#This Row],[Date]],\"ddd\")))","v":""},{"$f":"IF(ISBLANK(Homework[[#This Row],[Date]]),\"\",UPPER(TEXT(Homework[[#This Row],[Date]],\"mmm\")))","v":""}]
[null,null,null,null,{"$f":"CONCATENATE(Homework[[#This Row],[Patient Name]],\": \",Homework[[#This Row],[Chart]])","v":": "},{"$f":"IF(ISBLANK(Homework[[#This Row],[Date]]),\"\",UPPER(TEXT(Homework[[#This Row],[Date]],\"ddd\")))","v":""},{"$f":"IF(ISBLANK(Homework[[#This Row],[Date]]),\"\",UPPER(TEXT(Homework[[#This Row],[Date]],\"mmm\")))","v":""}]
[null,null,null,null,{"$f":"CONCATENATE(Homework[[#This Row],[Patient Name]],\": \",Homework[[#This Row],[Chart]])","v":": "},{"$f":"IF(ISBLANK(Homework[[#This Row],[Date]]),\"\",UPPER(TEXT(Homework[[#This Row],[Date]],\"ddd\")))","v":""},{"$f":"IF(ISBLANK(Homework[[#This Row],[Date]]),\"\",UPPER(TEXT(Homework[[#This Row],[Date]],\"mmm\")))","v":""}]
[null,null,null,null,{"$f":"CONCATENATE(Homework[[#This Row],[Patient Name]],\": \",Homework[[#This Row],[Chart]])","v":": "},{"$f":"IF(ISBLANK(Homework[[#This Row],[Date]]),\"\",UPPER(TEXT(Homework[[#This Row],[Date]],\"ddd\")))","v":""},{"$f":"IF(ISBLANK(Homework[[#This Row],[Date]]),\"\",UPPER(TEXT(Homework[[#This Row],[Date]],\"mmm\")))","v":""}]
[null,null,null,null,{"$f":"CONCATENATE(Homework[[#This Row],[Patient Name]],\": \",Homework[[#This Row],[Chart]])","v":": "},{"$f":"IF(ISBLANK(Homework[[#This Row],[Date]]),\"\",UPPER(TEXT(Homework[[#This Row],[Date]],\"ddd\")))","v":""},{"$f":"IF(ISBLANK(Homework[[#This Row],[Date]]),\"\",UPPER(TEXT(Homework[[#This Row],[Date]],\"mmm\")))","v":""}]
[null,null,null,null,{"$f":"CONCATENATE(Homework[[#This Row],[Patient Name]],\": \",Homework[[#This Row],[Chart]])","v":": "},{"$f":"IF(ISBLANK(Homework[[#This Row],[Date]]),\"\",UPPER(TEXT(Homework[[#This Row],[Date]],\"ddd\")))","v":""},{"$f":"IF(ISBLANK(Homework[[#This Row],[Date]]),\"\",UPPER(TEXT(Homework[[#This Row],[Date]],\"mmm\")))","v":""}]
[null,null,null,null,{"$f":"CONCATENATE(Homework[[#This Row],[Patient Name]],\": \",Homework[[#This Row],[Chart]])","v":": "},{"$f":"IF(ISBLANK(Homework[[#This Row],[Date]]),\"\",UPPER(TEXT(Homework[[#This Row],[Date]],\"ddd\")))","v":""},{"$f":"IF(ISBLANK(Homework[[#This Row],[Date]]),\"\",UPPER(TEXT(Homework[[#This Row],[Date]],\"mmm\")))","v":""}]
[null,null,null,null,{"$f":"CONCATENATE(Homework[[#This Row],[Patient Name]],\": \",Homework[[#This Row],[Chart]])","v":": "},{"$f":"IF(ISBLANK(Homework[[#This Row],[Date]]),\"\",UPPER(TEXT(Homework[[#This Row],[Date]],\"ddd\")))","v":""},{"$f":"IF(ISBLANK(Homework[[#This Row],[Date]]),\"\",UPPER(TEXT(Homework[[#This Row],[Date]],\"mmm\")))","v":""}]
[null,null,null,null,{"$f":"CONCATENATE(Homework[[#This Row],[Patient Name]],\": \",Homework[[#This Row],[Chart]])","v":": "},{"$f":"IF(ISBLANK(Homework[[#This Row],[Date]]),\"\",UPPER(TEXT(Homework[[#This Row],[Date]],\"ddd\")))","v":""},{"$f":"IF(ISBLANK(Homework[[#This Row],[Date]]),\"\",UPPER(TEXT(Homework[[#This Row],[Date]],\"mmm\")))","v":""}]
[null,null,null,null,{"$f":"CONCATENATE(Homework[[#This Row],[Patient Name]],\": \",Homework[[#This Row],[Chart]])","v":": "},{"$f":"IF(ISBLANK(Homework[[#This Row],[Date]]),\"\",UPPER(TEXT(Homework[[#This Row],[Date]],\"ddd\")))","v":""},{"$f":"IF(ISBLANK(Homework[[#This Row],[Date]]),\"\",UPPER(TEXT(Homework[[#This Row],[Date]],\"mmm\")))","v":""}]
[null,null,null,null,{"$f":"CONCATENATE(Homework[[#This Row],[Patient Name]],\": \",Homework[[#This Row],[Chart]])","v":": "},{"$f":"IF(ISBLANK(Homework[[#This Row],[Date]]),\"\",UPPER(TEXT(Homework[[#This Row],[Date]],\"ddd\")))","v":""},{"$f":"IF(ISBLANK(Homework[[#This Row],[Date]]),\"\",UPPER(TEXT(Homework[[#This Row],[Date]],\"mmm\")))","v":""}]
[null,null,null,null,{"$f":"CONCATENATE(Homework[[#This Row],[Patient Name]],\": \",Homework[[#This Row],[Chart]])","v":": "},{"$f":"IF(ISBLANK(Homework[[#This Row],[Date]]),\"\",UPPER(TEXT(Homework[[#This Row],[Date]],\"ddd\")))","v":""},{"$f":"IF(ISBLANK(Homework[[#This Row],[Date]]),\"\",UPPER(TEXT(Homework[[#This Row],[Date]],\"mmm\")))","v":""}]
[null,null,null,null,{"$f":"CONCATENATE(Homework[[#This Row],[Patient Name]],\": \",Homework[[#This Row],[Chart]])","v":": "},{"$f":"IF(ISBLANK(Homework[[#This Row],[Date]]),\"\",UPPER(TEXT(Homework[[#This Row],[Date]],\"ddd\")))","v":""},{"$f":"IF(ISBLANK(Homework[[#This Row],[Date]]),\"\",UPPER(TEXT(Homework[[#This Row],[Date]],\"mmm\")))","v":""}]
[null,null,null,null,{"$f":"CONCATENATE(Homework[[#This Row],[Patient Name]],\": \",Homework[[#This Row],[Chart]])","v":": "},{"$f":"IF(ISBLANK(Homework[[#This Row],[Date]]),\"\",UPPER(TEXT(Homework[[#This Row],[Date]],\"ddd\")))","v":""},{"$f":"IF(ISBLANK(Homework[[#This Row],[Date]]),\"\",UPPER(TEXT(Homework[[#This Row],[Date]],\"mmm\")))","v":""}]
[null,null,null,null,{"$f":"CONCATENATE(Homework[[#This Row],[Patient Name]],\": \",Homework[[#This Row],[Chart]])","v":": "},{"$f":"IF(ISBLANK(Homework[[#This Row],[Date]]),\"\",UPPER(TEXT(Homework[[#This Row],[Date]],\"ddd\")))","v":""},{"$f":"IF(ISBLANK(Homework[[#This Row],[Date]]),\"\",UPPER(TEXT(Homework[[#This Row],[Date]],\"mmm\")))","v":""}]
[null,null,null,null,{"$f":"CONCATENATE(Homework[[#This Row],[Patient Name]],\": \",Homework[[#This Row],[Chart]])","v":": "},{"$f":"IF(ISBLANK(Homework[[#This Row],[Date]]),\"\",UPPER(TEXT(Homework[[#This Row],[Date]],\"ddd\")))","v":""},{"$f":"IF(ISBLANK(Homework[[#This Row],[Date]]),\"\",UPPER(TEXT(Homework[[#This Row],[Date]],\"mmm\")))","v":""}]
[null,null,null,null,{"$f":"CONCATENATE(Homework[[#This Row],[Patient Name]],\": \",Homework[[#This Row],[Chart]])","v":": "},{"$f":"IF(ISBLANK(Homework[[#This Row],[Date]]),\"\",UPPER(TEXT(Homework[[#This Row],[Date]],\"ddd\")))","v":""},{"$f":"IF(ISBLANK(Homework[[#This Row],[Date]]),\"\",UPPER(TEXT(Homework[[#This Row],[Date]],\"mmm\")))","v":""}]
[null,null,null,null,{"$f":"CONCATENATE(Homework[[#This Row],[Patient Name]],\": \",Homework[[#This Row],[Chart]])","v":": "},{"$f":"IF(ISBLANK(Homework[[#This Row],[Date]]),\"\",UPPER(TEXT(Homework[[#This Row],[Date]],\"ddd\")))","v":""},{"$f":"IF(ISBLANK(Homework[[#This Row],[Date]]),\"\",UPPER(TEXT(Homework[[#This Row],[Date]],\"mmm\")))","v":""}]
[null,null,null,null,{"$f":"CONCATENATE(Homework[[#This Row],[Patient Name]],\": \",Homework[[#This Row],[Chart]])","v":": "},{"$f":"IF(ISBLANK(Homework[[#This Row],[Date]]),\"\",UPPER(TEXT(Homework[[#This Row],[Date]],\"ddd\")))","v":""},{"$f":"IF(ISBLANK(Homework[[#This Row],[Date]]),\"\",UPPER(TEXT(Homework[[#This Row],[Date]],\"mmm\")))","v":""}]
[null,null,null,null,{"$f":"CONCATENATE(Homework[[#This Row],[Patient Name]],\": \",Homework[[#This Row],[Chart]])","v":": "},{"$f":"IF(ISBLANK(Homework[[#This Row],[Date]]),\"\",UPPER(TEXT(Homework[[#This Row],[Date]],\"ddd\")))","v":""},{"$f":"IF(ISBLANK(Homework[[#This Row],[Date]]),\"\",UPPER(TEXT(Homework[[#This Row],[Date]],\"mmm\")))","v":""}]
[null,null,null,null,{"$f":"CONCATENATE(Homework[[#This Row],[Patient Name]],\": \",Homework[[#This Row],[Chart]])","v":": "},{"$f":"IF(ISBLANK(Homework[[#This Row],[Date]]),\"\",UPPER(TEXT(Homework[[#This Row],[Date]],\"ddd\")))","v":""},{"$f":"IF(ISBLANK(Homework[[#This Row],[Date]]),\"\",UPPER(TEXT(Homework[[#This Row],[Date]],\"mmm\")))","v":""}]
[null,null,null,null,{"$f":"CONCATENATE(Homework[[#This Row],[Patient Name]],\": \",Homework[[#This Row],[Chart]])","v":": "},{"$f":"IF(ISBLANK(Homework[[#This Row],[Date]]),\"\",UPPER(TEXT(Homework[[#This Row],[Date]],\"ddd\")))","v":""},{"$f":"IF(ISBLANK(Homework[[#This Row],[Date]]),\"\",UPPER(TEXT(Homework[[#This Row],[Date]],\"mmm\")))","v":""}]
[null,null,null,null,{"$f":"CONCATENATE(Homework[[#This Row],[Patient Name]],\": \",Homework[[#This Row],[Chart]])","v":": "},{"$f":"IF(ISBLANK(Homework[[#This Row],[Date]]),\"\",UPPER(TEXT(Homework[[#This Row],[Date]],\"ddd\")))","v":""},{"$f":"IF(ISBLANK(Homework[[#This Row],[Date]]),\"\",UPPER(TEXT(Homework[[#This Row],[Date]],\"mmm\")))","v":""}]
[null,null,null,null,{"$f":"CONCATENATE(Homework[[#This Row],[Patient Name]],\": \",Homework[[#This Row],[Chart]])","v":": "},{"$f":"IF(ISBLANK(Homework[[#This Row],[Date]]),\"\",UPPER(TEXT(Homework[[#This Row],[Date]],\"ddd\")))","v":""},{"$f":"IF(ISBLANK(Homework[[#This Row],[Date]]),\"\",UPPER(TEXT(Homework[[#This Row],[Date]],\"mmm\")))","v":""}]
[null,null,null,null,{"$f":"CONCATENATE(Homework[[#This Row],[Patient Name]],\": \",Homework[[#This Row],[Chart]])","v":": "},{"$f":"IF(ISBLANK(Homework[[#This Row],[Date]]),\"\",UPPER(TEXT(Homework[[#This Row],[Date]],\"ddd\")))","v":""},{"$f":"IF(ISBLANK(Homework[[#This Row],[Date]]),\"\",UPPER(TEXT(Homework[[#This Row],[Date]],\"mmm\")))","v":""}]
[null,null,null,null,{"$f":"CONCATENATE(Homework[[#This Row],[Patient Name]],\": \",Homework[[#This Row],[Chart]])","v":": "},{"$f":"IF(ISBLANK(Homework[[#This Row],[Date]]),\"\",UPPER(TEXT(Homework[[#This Row],[Date]],\"ddd\")))","v":""},{"$f":"IF(ISBLANK(Homework[[#This Row],[Date]]),\"\",UPPER(TEXT(Homework[[#This Row],[Date]],\"mmm\")))","v":""}]
[null,null,null,null,{"$f":"CONCATENATE(Homework[[#This Row],[Patient Name]],\": \",Homework[[#This Row],[Chart]])","v":": "},{"$f":"IF(ISBLANK(Homework[[#This Row],[Date]]),\"\",UPPER(TEXT(Homework[[#This Row],[Date]],\"ddd\")))","v":""},{"$f":"IF(ISBLANK(Homework[[#This Row],[Date]]),\"\",UPPER(TEXT(Homework[[#This Row],[Date]],\"mmm\")))","v":""}]
[null,null,null,null,{"$f":"CONCATENATE(Homework[[#This Row],[Patient Name]],\": \",Homework[[#This Row],[Chart]])","v":": "},{"$f":"IF(ISBLANK(Homework[[#This Row],[Date]]),\"\",UPPER(TEXT(Homework[[#This Row],[Date]],\"ddd\")))","v":""},{"$f":"IF(ISBLANK(Homework[[#This Row],[Date]]),\"\",UPPER(TEXT(Homework[[#This Row],[Date]],\"mmm\")))","v":""}]
[null,null,null,null,{"$f":"CONCATENATE(Homework[[#This Row],[Patient Name]],\": \",Homework[[#This Row],[Chart]])","v":": "},{"$f":"IF(ISBLANK(Homework[[#This Row],[Date]]),\"\",UPPER(TEXT(Homework[[#This Row],[Date]],\"ddd\")))","v":""},{"$f":"IF(ISBLANK(Homework[[#This Row],[Date]]),\"\",UPPER(TEXT(Homework[[#This Row],[Date]],\"mmm\")))","v":""}]
[null,null,null,null,{"$f":"CONCATENATE(Homework[[#This Row],[Patient Name]],\": \",Homework[[#This Row],[Chart]])","v":": "},{"$f":"IF(ISBLANK(Homework[[#This Row],[Date]]),\"\",UPPER(TEXT(Homework[[#This Row],[Date]],\"ddd\")))","v":""},{"$f":"IF(ISBLANK(Homework[[#This Row],[Date]]),\"\",UPPER(TEXT(Homework[[#This Row],[Date]],\"mmm\")))","v":""}]
[null,null,null,null,{"$f":"CONCATENATE(Homework[[#This Row],[Patient Name]],\": \",Homework[[#This Row],[Chart]])","v":": "},{"$f":"IF(ISBLANK(Homework[[#This Row],[Date]]),\"\",UPPER(TEXT(Homework[[#This Row],[Date]],\"ddd\")))","v":""},{"$f":"IF(ISBLANK(Homework[[#This Row],[Date]]),\"\",UPPER(TEXT(Homework[[#This Row],[Date]],\"mmm\")))","v":""}]
[null,null,null,null,{"$f":"CONCATENATE(Homework[[#This Row],[Patient Name]],\": \",Homework[[#This Row],[Chart]])","v":": "},{"$f":"IF(ISBLANK(Homework[[#This Row],[Date]]),\"\",UPPER(TEXT(Homework[[#This Row],[Date]],\"ddd\")))","v":""},{"$f":"IF(ISBLANK(Homework[[#This Row],[Date]]),\"\",UPPER(TEXT(Homework[[#This Row],[Date]],\"mmm\")))","v":""}]
[null,null,null,null,{"$f":"CONCATENATE(Homework[[#This Row],[Patient Name]],\": \",Homework[[#This Row],[Chart]])","v":": "},{"$f":"IF(ISBLANK(Homework[[#This Row],[Date]]),\"\",UPPER(TEXT(Homework[[#This Row],[Date]],\"ddd\")))","v":""},{"$f":"IF(ISBLANK(Homework[[#This Row],[Date]]),\"\",UPPER(TEXT(Homework[[#This Row],[Date]],\"mmm\")))","v":""}]
[null,null,null,null,{"$f":"CONCATENATE(Homework[[#This Row],[Patient Name]],\": \",Homework[[#This Row],[Chart]])","v":": "},{"$f":"IF(ISBLANK(Homework[[#This Row],[Date]]),\"\",UPPER(TEXT(Homework[[#This Row],[Date]],\"ddd\")))","v":""},{"$f":"IF(ISBLANK(Homework[[#This Row],[Date]]),\"\",UPPER(TEXT(Homework[[#This Row],[Date]],\"mmm\")))","v":""}]
[null,null,null,null,{"$f":"CONCATENATE(Homework[[#This Row],[Patient Name]],\": \",Homework[[#This Row],[Chart]])","v":": "},{"$f":"IF(ISBLANK(Homework[[#This Row],[Date]]),\"\",UPPER(TEXT(Homework[[#This Row],[Date]],\"ddd\")))","v":""},{"$f":"IF(ISBLANK(Homework[[#This Row],[Date]]),\"\",UPPER(TEXT(Homework[[#This Row],[Date]],\"mmm\")))","v":""}]
[null,null,null,null,{"$f":"CONCATENATE(Homework[[#This Row],[Patient Name]],\": \",Homework[[#This Row],[Chart]])","v":": "},{"$f":"IF(ISBLANK(Homework[[#This Row],[Date]]),\"\",UPPER(TEXT(Homework[[#This Row],[Date]],\"ddd\")))","v":""},{"$f":"IF(ISBLANK(Homework[[#This Row],[Date]]),\"\",UPPER(TEXT(Homework[[#This Row],[Date]],\"mmm\")))","v":""}]
[null,null,null,null,{"$f":"CONCATENATE(Homework[[#This Row],[Patient Name]],\": \",Homework[[#This Row],[Chart]])","v":": "},{"$f":"IF(ISBLANK(Homework[[#This Row],[Date]]),\"\",UPPER(TEXT(Homework[[#This Row],[Date]],\"ddd\")))","v":""},{"$f":"IF(ISBLANK(Homework[[#This Row],[Date]]),\"\",UPPER(TEXT(Homework[[#This Row],[Date]],\"mmm\")))","v":""}]
[null,null,null,null,{"$f":"CONCATENATE(Homework[[#This Row],[Patient Name]],\": \",Homework[[#This Row],[Chart]])","v":": "},{"$f":"IF(ISBLANK(Homework[[#This Row],[Date]]),\"\",UPPER(TEXT(Homework[[#This Row],[Date]],\"ddd\")))","v":""},{"$f":"IF(ISBLANK(Homework[[#This Row],[Date]]),\"\",UPPER(TEXT(Homework[[#This Row],[Date]],\"mmm\")))","v":""}]
[null,null,null,null,{"$f":"CONCATENATE(Homework[[#This Row],[Patient Name]],\": \",Homework[[#This Row],[Chart]])","v":": "},{"$f":"IF(ISBLANK(Homework[[#This Row],[Date]]),\"\",UPPER(TEXT(Homework[[#This Row],[Date]],\"ddd\")))","v":""},{"$f":"IF(ISBLANK(Homework[[#This Row],[Date]]),\"\",UPPER(TEXT(Homework[[#This Row],[Date]],\"mmm\")))","v":""}]
[null,null,null,null,{"$f":"CONCATENATE(Homework[[#This Row],[Patient Name]],\": \",Homework[[#This Row],[Chart]])","v":": "},{"$f":"IF(ISBLANK(Homework[[#This Row],[Date]]),\"\",UPPER(TEXT(Homework[[#This Row],[Date]],\"ddd\")))","v":""},{"$f":"IF(ISBLANK(Homework[[#This Row],[Date]]),\"\",UPPER(TEXT(Homework[[#This Row],[Date]],\"mmm\")))","v":""}]
[null,null,null,null,{"$f":"CONCATENATE(Homework[[#This Row],[Patient Name]],\": \",Homework[[#This Row],[Chart]])","v":": "},{"$f":"IF(ISBLANK(Homework[[#This Row],[Date]]),\"\",UPPER(TEXT(Homework[[#This Row],[Date]],\"ddd\")))","v":""},{"$f":"IF(ISBLANK(Homework[[#This Row],[Date]]),\"\",UPPER(TEXT(Homework[[#This Row],[Date]],\"mmm\")))","v":""}]
[null,null,null,null,{"$f":"CONCATENATE(Homework[[#This Row],[Patient Name]],\": \",Homework[[#This Row],[Chart]])","v":": "},{"$f":"IF(ISBLANK(Homework[[#This Row],[Date]]),\"\",UPPER(TEXT(Homework[[#This Row],[Date]],\"ddd\")))","v":""},{"$f":"IF(ISBLANK(Homework[[#This Row],[Date]]),\"\",UPPER(TEXT(Homework[[#This Row],[Date]],\"mmm\")))","v":""}]
[null,null,null,null,{"$f":"CONCATENATE(Homework[[#This Row],[Patient Name]],\": \",Homework[[#This Row],[Chart]])","v":": "},{"$f":"IF(ISBLANK(Homework[[#This Row],[Date]]),\"\",UPPER(TEXT(Homework[[#This Row],[Date]],\"ddd\")))","v":""},{"$f":"IF(ISBLANK(Homework[[#This Row],[Date]]),\"\",UPPER(TEXT(Homework[[#This Row],[Date]],\"mmm\")))","v":""}]
[null,null,null,null,{"$f":"CONCATENATE(Homework[[#This Row],[Patient Name]],\": \",Homework[[#This Row],[Chart]])","v":": "},{"$f":"IF(ISBLANK(Homework[[#This Row],[Date]]),\"\",UPPER(TEXT(Homework[[#This Row],[Date]],\"ddd\")))","v":""},{"$f":"IF(ISBLANK(Homework[[#This Row],[Date]]),\"\",UPPER(TEXT(Homework[[#This Row],[Date]],\"mmm\")))","v":""}]
[null,null,null,null,{"$f":"CONCATENATE(Homework[[#This Row],[Patient Name]],\": \",Homework[[#This Row],[Chart]])","v":": "},{"$f":"IF(ISBLANK(Homework[[#This Row],[Date]]),\"\",UPPER(TEXT(Homework[[#This Row],[Date]],\"ddd\")))","v":""},{"$f":"IF(ISBLANK(Homework[[#This Row],[Date]]),\"\",UPPER(TEXT(Homework[[#This Row],[Date]],\"mmm\")))","v":""}]
[null,null,null,null,{"$f":"CONCATENATE(Homework[[#This Row],[Patient Name]],\": \",Homework[[#This Row],[Chart]])","v":": "},{"$f":"IF(ISBLANK(Homework[[#This Row],[Date]]),\"\",UPPER(TEXT(Homework[[#This Row],[Date]],\"ddd\")))","v":""},{"$f":"IF(ISBLANK(Homework[[#This Row],[Date]]),\"\",UPPER(TEXT(Homework[[#This Row],[Date]],\"mmm\")))","v":""}]
[null,null,null,null,{"$f":"CONCATENATE(Homework[[#This Row],[Patient Name]],\": \",Homework[[#This Row],[Chart]])","v":": "},{"$f":"IF(ISBLANK(Homework[[#This Row],[Date]]),\"\",UPPER(TEXT(Homework[[#This Row],[Date]],\"ddd\")))","v":""},{"$f":"IF(ISBLANK(Homework[[#This Row],[Date]]),\"\",UPPER(TEXT(Homework[[#This Row],[Date]],\"mmm\")))","v":""}]
[null,null,null,null,{"$f":"CONCATENATE(Homework[[#This Row],[Patient Name]],\": \",Homework[[#This Row],[Chart]])","v":": "},{"$f":"IF(ISBLANK(Homework[[#This Row],[Date]]),\"\",UPPER(TEXT(Homework[[#This Row],[Date]],\"ddd\")))","v":""},{"$f":"IF(ISBLANK(Homework[[#This Row],[Date]]),\"\",UPPER(TEXT(Homework[[#This Row],[Date]],\"mmm\")))","v":""}]
[null,null,null,null,{"$f":"CONCATENATE(Homework[[#This Row],[Patient Name]],\": \",Homework[[#This Row],[Chart]])","v":": "},{"$f":"IF(ISBLANK(Homework[[#This Row],[Date]]),\"\",UPPER(TEXT(Homework[[#This Row],[Date]],\"ddd\")))","v":""},{"$f":"IF(ISBLANK(Homework[[#This Row],[Date]]),\"\",UPPER(TEXT(Homework[[#This Row],[Date]],\"mmm\")))","v":""}]
[null,null,null,null,{"$f":"CONCATENATE(Homework[[#This Row],[Patient Name]],\": \",Homework[[#This Row],[Chart]])","v":": "},{"$f":"IF(ISBLANK(Homework[[#This Row],[Date]]),\"\",UPPER(TEXT(Homework[[#This Row],[Date]],\"ddd\")))","v":""},{"$f":"IF(ISBLANK(Homework[[#This Row],[Date]]),\"\",UPPER(TEXT(Homework[[#This Row],[Date]],\"mmm\")))","v":""}]
[null,null,null,null,{"$f":"CONCATENATE(Homework[[#This Row],[Patient Name]],\": \",Homework[[#This Row],[Chart]])","v":": "},{"$f":"IF(ISBLANK(Homework[[#This Row],[Date]]),\"\",UPPER(TEXT(Homework[[#This Row],[Date]],\"ddd\")))","v":""},{"$f":"IF(ISBLANK(Homework[[#This Row],[Date]]),\"\",UPPER(TEXT(Homework[[#This Row],[Date]],\"mmm\")))","v":""}]
[null,null,null,null,{"$f":"CONCATENATE(Homework[[#This Row],[Patient Name]],\": \",Homework[[#This Row],[Chart]])","v":": "},{"$f":"IF(ISBLANK(Homework[[#This Row],[Date]]),\"\",UPPER(TEXT(Homework[[#This Row],[Date]],\"ddd\")))","v":""},{"$f":"IF(ISBLANK(Homework[[#This Row],[Date]]),\"\",UPPER(TEXT(Homework[[#This Row],[Date]],\"mmm\")))","v":""}]
[null,null,null,null,{"$f":"CONCATENATE(Homework[[#This Row],[Patient Name]],\": \",Homework[[#This Row],[Chart]])","v":": "},{"$f":"IF(ISBLANK(Homework[[#This Row],[Date]]),\"\",UPPER(TEXT(Homework[[#This Row],[Date]],\"ddd\")))","v":""},{"$f":"IF(ISBLANK(Homework[[#This Row],[Date]]),\"\",UPPER(TEXT(Homework[[#This Row],[Date]],\"mmm\")))","v":""}]
[null,null,null,null,{"$f":"CONCATENATE(Homework[[#This Row],[Patient Name]],\": \",Homework[[#This Row],[Chart]])","v":": "},{"$f":"IF(ISBLANK(Homework[[#This Row],[Date]]),\"\",UPPER(TEXT(Homework[[#This Row],[Date]],\"ddd\")))","v":""},{"$f":"IF(ISBLANK(Homework[[#This Row],[Date]]),\"\",UPPER(TEXT(Homework[[#This Row],[Date]],\"mmm\")))","v":""}]
[null,null,null,null,{"$f":"CONCATENATE(Homework[[#This Row],[Patient Name]],\": \",Homework[[#This Row],[Chart]])","v":": "},{"$f":"IF(ISBLANK(Homework[[#This Row],[Date]]),\"\",UPPER(TEXT(Homework[[#This Row],[Date]],\"ddd\")))","v":""},{"$f":"IF(ISBLANK(Homework[[#This Row],[Date]]),\"\",UPPER(TEXT(Homework[[#This Row],[Date]],\"mmm\")))","v":""}]
[null,null,null,null,{"$f":"CONCATENATE(Homework[[#This Row],[Patient Name]],\": \",Homework[[#This Row],[Chart]])","v":": "},{"$f":"IF(ISBLANK(Homework[[#This Row],[Date]]),\"\",UPPER(TEXT(Homework[[#This Row],[Date]],\"ddd\")))","v":""},{"$f":"IF(ISBLANK(Homework[[#This Row],[Date]]),\"\",UPPER(TEXT(Homework[[#This Row],[Date]],\"mmm\")))","v":""}]
[null,null,null,null,{"$f":"CONCATENATE(Homework[[#This Row],[Patient Name]],\": \",Homework[[#This Row],[Chart]])","v":": "},{"$f":"IF(ISBLANK(Homework[[#This Row],[Date]]),\"\",UPPER(TEXT(Homework[[#This Row],[Date]],\"ddd\")))","v":""},{"$f":"IF(ISBLANK(Homework[[#This Row],[Date]]),\"\",UPPER(TEXT(Homework[[#This Row],[Date]],\"mmm\")))","v":""}]
[null,null,null,null,{"$f":"CONCATENATE(Homework[[#This Row],[Patient Name]],\": \",Homework[[#This Row],[Chart]])","v":": "},{"$f":"IF(ISBLANK(Homework[[#This Row],[Date]]),\"\",UPPER(TEXT(Homework[[#This Row],[Date]],\"ddd\")))","v":""},{"$f":"IF(ISBLANK(Homework[[#This Row],[Date]]),\"\",UPPER(TEXT(Homework[[#This Row],[Date]],\"mmm\")))","v":""}]
[null,null,null,null,{"$f":"CONCATENATE(Homework[[#This Row],[Patient Name]],\": \",Homework[[#This Row],[Chart]])","v":": "},{"$f":"IF(ISBLANK(Homework[[#This Row],[Date]]),\"\",UPPER(TEXT(Homework[[#This Row],[Date]],\"ddd\")))","v":""},{"$f":"IF(ISBLANK(Homework[[#This Row],[Date]]),\"\",UPPER(TEXT(Homework[[#This Row],[Date]],\"mmm\")))","v":""}]
[null,null,null,null,{"$f":"CONCATENATE(Homework[[#This Row],[Patient Name]],\": \",Homework[[#This Row],[Chart]])","v":": "},{"$f":"IF(ISBLANK(Homework[[#This Row],[Date]]),\"\",UPPER(TEXT(Homework[[#This Row],[Date]],\"ddd\")))","v":""},{"$f":"IF(ISBLANK(Homework[[#This Row],[Date]]),\"\",UPPER(TEXT(Homework[[#This Row],[Date]],\"mmm\")))","v":""}]
[null,null,null,null,{"$f":"CONCATENATE(Homework[[#This Row],[Patient Name]],\": \",Homework[[#This Row],[Chart]])","v":": "},{"$f":"IF(ISBLANK(Homework[[#This Row],[Date]]),\"\",UPPER(TEXT(Homework[[#This Row],[Date]],\"ddd\")))","v":""},{"$f":"IF(ISBLANK(Homework[[#This Row],[Date]]),\"\",UPPER(TEXT(Homework[[#This Row],[Date]],\"mmm\")))","v":""}]
[null,null,null,null,{"$f":"CONCATENATE(Homework[[#This Row],[Patient Name]],\": \",Homework[[#This Row],[Chart]])","v":": "},{"$f":"IF(ISBLANK(Homework[[#This Row],[Date]]),\"\",UPPER(TEXT(Homework[[#This Row],[Date]],\"ddd\")))","v":""},{"$f":"IF(ISBLANK(Homework[[#This Row],[Date]]),\"\",UPPER(TEXT(Homework[[#This Row],[Date]],\"mmm\")))","v":""}]
[null,null,null,null,{"$f":"CONCATENATE(Homework[[#This Row],[Patient Name]],\": \",Homework[[#This Row],[Chart]])","v":": "},{"$f":"IF(ISBLANK(Homework[[#This Row],[Date]]),\"\",UPPER(TEXT(Homework[[#This Row],[Date]],\"ddd\")))","v":""},{"$f":"IF(ISBLANK(Homework[[#This Row],[Date]]),\"\",UPPER(TEXT(Homework[[#This Row],[Date]],\"mmm\")))","v":""}]
[null,null,null,null,{"$f":"CONCATENATE(Homework[[#This Row],[Patient Name]],\": \",Homework[[#This Row],[Chart]])","v":": "},{"$f":"IF(ISBLANK(Homework[[#This Row],[Date]]),\"\",UPPER(TEXT(Homework[[#This Row],[Date]],\"ddd\")))","v":""},{"$f":"IF(ISBLANK(Homework[[#This Row],[Date]]),\"\",UPPER(TEXT(Homework[[#This Row],[Date]],\"mmm\")))","v":""}]
[null,null,null,null,{"$f":"CONCATENATE(Homework[[#This Row],[Patient Name]],\": \",Homework[[#This Row],[Chart]])","v":": "},{"$f":"IF(ISBLANK(Homework[[#This Row],[Date]]),\"\",UPPER(TEXT(Homework[[#This Row],[Date]],\"ddd\")))","v":""},{"$f":"IF(ISBLANK(Homework[[#This Row],[Date]]),\"\",UPPER(TEXT(Homework[[#This Row],[Date]],\"mmm\")))","v":""}]
[null,null,null,null,{"$f":"CONCATENATE(Homework[[#This Row],[Patient Name]],\": \",Homework[[#This Row],[Chart]])","v":": "},{"$f":"IF(ISBLANK(Homework[[#This Row],[Date]]),\"\",UPPER(TEXT(Homework[[#This Row],[Date]],\"ddd\")))","v":""},{"$f":"IF(ISBLANK(Homework[[#This Row],[Date]]),\"\",UPPER(TEXT(Homework[[#This Row],[Date]],\"mmm\")))","v":""}]
[null,null,null,null,{"$f":"CONCATENATE(Homework[[#This Row],[Patient Name]],\": \",Homework[[#This Row],[Chart]])","v":": "},{"$f":"IF(ISBLANK(Homework[[#This Row],[Date]]),\"\",UPPER(TEXT(Homework[[#This Row],[Date]],\"ddd\")))","v":""},{"$f":"IF(ISBLANK(Homework[[#This Row],[Date]]),\"\",UPPER(TEXT(Homework[[#This Row],[Date]],\"mmm\")))","v":""}]
[null,null,null,null,{"$f":"CONCATENATE(Homework[[#This Row],[Patient Name]],\": \",Homework[[#This Row],[Chart]])","v":": "},{"$f":"IF(ISBLANK(Homework[[#This Row],[Date]]),\"\",UPPER(TEXT(Homework[[#This Row],[Date]],\"ddd\")))","v":""},{"$f":"IF(ISBLANK(Homework[[#This Row],[Date]]),\"\",UPPER(TEXT(Homework[[#This Row],[Date]],\"mmm\")))","v":""}]
[null,null,null,null,{"$f":"CONCATENATE(Homework[[#This Row],[Patient Name]],\": \",Homework[[#This Row],[Chart]])","v":": "},{"$f":"IF(ISBLANK(Homework[[#This Row],[Date]]),\"\",UPPER(TEXT(Homework[[#This Row],[Date]],\"ddd\")))","v":""},{"$f":"IF(ISBLANK(Homework[[#This Row],[Date]]),\"\",UPPER(TEXT(Homework[[#This Row],[Date]],\"mmm\")))","v":""}]
[null,null,null,null,{"$f":"CONCATENATE(Homework[[#This Row],[Patient Name]],\": \",Homework[[#This Row],[Chart]])","v":": "},{"$f":"IF(ISBLANK(Homework[[#This Row],[Date]]),\"\",UPPER(TEXT(Homework[[#This Row],[Date]],\"ddd\")))","v":""},{"$f":"IF(ISBLANK(Homework[[#This Row],[Date]]),\"\",UPPER(TEXT(Homework[[#This Row],[Date]],\"mmm\")))","v":""}]
[null,null,null,null,{"$f":"CONCATENATE(Homework[[#This Row],[Patient Name]],\": \",Homework[[#This Row],[Chart]])","v":": "},{"$f":"IF(ISBLANK(Homework[[#This Row],[Date]]),\"\",UPPER(TEXT(Homework[[#This Row],[Date]],\"ddd\")))","v":""},{"$f":"IF(ISBLANK(Homework[[#This Row],[Date]]),\"\",UPPER(TEXT(Homework[[#This Row],[Date]],\"mmm\")))","v":""}]
[null,null,null,null,{"$f":"CONCATENATE(Homework[[#This Row],[Patient Name]],\": \",Homework[[#This Row],[Chart]])","v":": "},{"$f":"IF(ISBLANK(Homework[[#This Row],[Date]]),\"\",UPPER(TEXT(Homework[[#This Row],[Date]],\"ddd\")))","v":""},{"$f":"IF(ISBLANK(Homework[[#This Row],[Date]]),\"\",UPPER(TEXT(Homework[[#This Row],[Date]],\"mmm\")))","v":""}]
[null,null,null,null,{"$f":"CONCATENATE(Homework[[#This Row],[Patient Name]],\": \",Homework[[#This Row],[Chart]])","v":": "},{"$f":"IF(ISBLANK(Homework[[#This Row],[Date]]),\"\",UPPER(TEXT(Homework[[#This Row],[Date]],\"ddd\")))","v":""},{"$f":"IF(ISBLANK(Homework[[#This Row],[Date]]),\"\",UPPER(TEXT(Homework[[#This Row],[Date]],\"mmm\")))","v":""}]
[null,null,null,null,{"$f":"CONCATENATE(Homework[[#This Row],[Patient Name]],\": \",Homework[[#This Row],[Chart]])","v":": "},{"$f":"IF(ISBLANK(Homework[[#This Row],[Date]]),\"\",UPPER(TEXT(Homework[[#This Row],[Date]],\"ddd\")))","v":""},{"$f":"IF(ISBLANK(Homework[[#This Row],[Date]]),\"\",UPPER(TEXT(Homework[[#This Row],[Date]],\"mmm\")))","v":""}]
[null,null,null,null,{"$f":"CONCATENATE(Homework[[#This Row],[Patient Name]],\": \",Homework[[#This Row],[Chart]])","v":": "},{"$f":"IF(ISBLANK(Homework[[#This Row],[Date]]),\"\",UPPER(TEXT(Homework[[#This Row],[Date]],\"ddd\")))","v":""},{"$f":"IF(ISBLANK(Homework[[#This Row],[Date]]),\"\",UPPER(TEXT(Homework[[#This Row],[Date]],\"mmm\")))","v":""}]
[null,null,null,null,{"$f":"CONCATENATE(Homework[[#This Row],[Patient Name]],\": \",Homework[[#This Row],[Chart]])","v":": "},{"$f":"IF(ISBLANK(Homework[[#This Row],[Date]]),\"\",UPPER(TEXT(Homework[[#This Row],[Date]],\"ddd\")))","v":""},{"$f":"IF(ISBLANK(Homework[[#This Row],[Date]]),\"\",UPPER(TEXT(Homework[[#This Row],[Date]],\"mmm\")))","v":""}]
[null,null,null,null,{"$f":"CONCATENATE(Homework[[#This Row],[Patient Name]],\": \",Homework[[#This Row],[Chart]])","v":": "},{"$f":"IF(ISBLANK(Homework[[#This Row],[Date]]),\"\",UPPER(TEXT(Homework[[#This Row],[Date]],\"ddd\")))","v":""},{"$f":"IF(ISBLANK(Homework[[#This Row],[Date]]),\"\",UPPER(TEXT(Homework[[#This Row],[Date]],\"mmm\")))","v":""}]
[null,null,null,null,{"$f":"CONCATENATE(Homework[[#This Row],[Patient Name]],\": \",Homework[[#This Row],[Chart]])","v":": "},{"$f":"IF(ISBLANK(Homework[[#This Row],[Date]]),\"\",UPPER(TEXT(Homework[[#This Row],[Date]],\"ddd\")))","v":""},{"$f":"IF(ISBLANK(Homework[[#This Row],[Date]]),\"\",UPPER(TEXT(Homework[[#This Row],[Date]],\"mmm\")))","v":""}]
[null,null,null,null,{"$f":"CONCATENATE(Homework[[#This Row],[Patient Name]],\": \",Homework[[#This Row],[Chart]])","v":": "},{"$f":"IF(ISBLANK(Homework[[#This Row],[Date]]),\"\",UPPER(TEXT(Homework[[#This Row],[Date]],\"ddd\")))","v":""},{"$f":"IF(ISBLANK(Homework[[#This Row],[Date]]),\"\",UPPER(TEXT(Homework[[#This Row],[Date]],\"mmm\")))","v":""}]
[null,null,null,null,{"$f":"CONCATENATE(Homework[[#This Row],[Patient Name]],\": \",Homework[[#This Row],[Chart]])","v":": "},{"$f":"IF(ISBLANK(Homework[[#This Row],[Date]]),\"\",UPPER(TEXT(Homework[[#This Row],[Date]],\"ddd\")))","v":""},{"$f":"IF(ISBLANK(Homework[[#This Row],[Date]]),\"\",UPPER(TEXT(Homework[[#This Row],[Date]],\"mmm\")))","v":""}]
[null,null,null,null,{"$f":"CONCATENATE(Homework[[#This Row],[Patient Name]],\": \",Homework[[#This Row],[Chart]])","v":": "},{"$f":"IF(ISBLANK(Homework[[#This Row],[Date]]),\"\",UPPER(TEXT(Homework[[#This Row],[Date]],\"ddd\")))","v":""},{"$f":"IF(ISBLANK(Homework[[#This Row],[Date]]),\"\",UPPER(TEXT(Homework[[#This Row],[Date]],\"mmm\")))","v":""}]
[null,null,null,null,{"$f":"CONCATENATE(Homework[[#This Row],[Patient Name]],\": \",Homework[[#This Row],[Chart]])","v":": "},{"$f":"IF(ISBLANK(Homework[[#This Row],[Date]]),\"\",UPPER(TEXT(Homework[[#This Row],[Date]],\"ddd\")))","v":""},{"$f":"IF(ISBLANK(Homework[[#This Row],[Date]]),\"\",UPPER(TEXT(Homework[[#This Row],[Date]],\"mmm\")))","v":""}]
[null,null,null,null,{"$f":"CONCATENATE(Homework[[#This Row],[Patient Name]],\": \",Homework[[#This Row],[Chart]])","v":": "},{"$f":"IF(ISBLANK(Homework[[#This Row],[Date]]),\"\",UPPER(TEXT(Homework[[#This Row],[Date]],\"ddd\")))","v":""},{"$f":"IF(ISBLANK(Homework[[#This Row],[Date]]),\"\",UPPER(TEXT(Homework[[#This Row],[Date]],\"mmm\")))","v":""}]
[null,null,null,null,{"$f":"CONCATENATE(Homework[[#This Row],[Patient Name]],\": \",Homework[[#This Row],[Chart]])","v":": "},{"$f":"IF(ISBLANK(Homework[[#This Row],[Date]]),\"\",UPPER(TEXT(Homework[[#This Row],[Date]],\"ddd\")))","v":""},{"$f":"IF(ISBLANK(Homework[[#This Row],[Date]]),\"\",UPPER(TEXT(Homework[[#This Row],[Date]],\"mmm\")))","v":""}]
[null,null,null,null,{"$f":"CONCATENATE(Homework[[#This Row],[Patient Name]],\": \",Homework[[#This Row],[Chart]])","v":": "},{"$f":"IF(ISBLANK(Homework[[#This Row],[Date]]),\"\",UPPER(TEXT(Homework[[#This Row],[Date]],\"ddd\")))","v":""},{"$f":"IF(ISBLANK(Homework[[#This Row],[Date]]),\"\",UPPER(TEXT(Homework[[#This Row],[Date]],\"mmm\")))","v":""}]
[null,null,null,null,{"$f":"CONCATENATE(Homework[[#This Row],[Patient Name]],\": \",Homework[[#This Row],[Chart]])","v":": "},{"$f":"IF(ISBLANK(Homework[[#This Row],[Date]]),\"\",UPPER(TEXT(Homework[[#This Row],[Date]],\"ddd\")))","v":""},{"$f":"IF(ISBLANK(Homework[[#This Row],[Date]]),\"\",UPPER(TEXT(Homework[[#This Row],[Date]],\"mmm\")))","v":""}]
[null,null,null,null,{"$f":"CONCATENATE(Homework[[#This Row],[Patient Name]],\": \",Homework[[#This Row],[Chart]])","v":": "},{"$f":"IF(ISBLANK(Homework[[#This Row],[Date]]),\"\",UPPER(TEXT(Homework[[#This Row],[Date]],\"ddd\")))","v":""},{"$f":"IF(ISBLANK(Homework[[#This Row],[Date]]),\"\",UPPER(TEXT(Homework[[#This Row],[Date]],\"mmm\")))","v":""}]
[null,null,null,null,{"$f":"CONCATENATE(Homework[[#This Row],[Patient Name]],\": \",Homework[[#This Row],[Chart]])","v":": "},{"$f":"IF(ISBLANK(Homework[[#This Row],[Date]]),\"\",UPPER(TEXT(Homework[[#This Row],[Date]],\"ddd\")))","v":""},{"$f":"IF(ISBLANK(Homework[[#This Row],[Date]]),\"\",UPPER(TEXT(Homework[[#This Row],[Date]],\"mmm\")))","v":""}]
[null,null,null,null,{"$f":"CONCATENATE(Homework[[#This Row],[Patient Name]],\": \",Homework[[#This Row],[Chart]])","v":": "},{"$f":"IF(ISBLANK(Homework[[#This Row],[Date]]),\"\",UPPER(TEXT(Homework[[#This Row],[Date]],\"ddd\")))","v":""},{"$f":"IF(ISBLANK(Homework[[#This Row],[Date]]),\"\",UPPER(TEXT(Homework[[#This Row],[Date]],\"mmm\")))","v":""}]
[null,null,null,null,{"$f":"CONCATENATE(Homework[[#This Row],[Patient Name]],\": \",Homework[[#This Row],[Chart]])","v":": "},{"$f":"IF(ISBLANK(Homework[[#This Row],[Date]]),\"\",UPPER(TEXT(Homework[[#This Row],[Date]],\"ddd\")))","v":""},{"$f":"IF(ISBLANK(Homework[[#This Row],[Date]]),\"\",UPPER(TEXT(Homework[[#This Row],[Date]],\"mmm\")))","v":""}]
[null,null,null,null,{"$f":"CONCATENATE(Homework[[#This Row],[Patient Name]],\": \",Homework[[#This Row],[Chart]])","v":": "},{"$f":"IF(ISBLANK(Homework[[#This Row],[Date]]),\"\",UPPER(TEXT(Homework[[#This Row],[Date]],\"ddd\")))","v":""},{"$f":"IF(ISBLANK(Homework[[#This Row],[Date]]),\"\",UPPER(TEXT(Homework[[#This Row],[Date]],\"mmm\")))","v":""}]
[null,null,null,null,{"$f":"CONCATENATE(Homework[[#This Row],[Patient Name]],\": \",Homework[[#This Row],[Chart]])","v":": "},{"$f":"IF(ISBLANK(Homework[[#This Row],[Date]]),\"\",UPPER(TEXT(Homework[[#This Row],[Date]],\"ddd\")))","v":""},{"$f":"IF(ISBLANK(Homework[[#This Row],[Date]]),\"\",UPPER(TEXT(Homework[[#This Row],[Date]],\"mmm\")))","v":""}]
[null,null,null,null,{"$f":"CONCATENATE(Homework[[#This Row],[Patient Name]],\": \",Homework[[#This Row],[Chart]])","v":": "},{"$f":"IF(ISBLANK(Homework[[#This Row],[Date]]),\"\",UPPER(TEXT(Homework[[#This Row],[Date]],\"ddd\")))","v":""},{"$f":"IF(ISBLANK(Homework[[#This Row],[Date]]),\"\",UPPER(TEXT(Homework[[#This Row],[Date]],\"mmm\")))","v":""}]
[null,null,null,null,{"$f":"CONCATENATE(Homework[[#This Row],[Patient Name]],\": \",Homework[[#This Row],[Chart]])","v":": "},{"$f":"IF(ISBLANK(Homework[[#This Row],[Date]]),\"\",UPPER(TEXT(Homework[[#This Row],[Date]],\"ddd\")))","v":""},{"$f":"IF(ISBLANK(Homework[[#This Row],[Date]]),\"\",UPPER(TEXT(Homework[[#This Row],[Date]],\"mmm\")))","v":""}]
[null,null,null,null,{"$f":"CONCATENATE(Homework[[#This Row],[Patient Name]],\": \",Homework[[#This Row],[Chart]])","v":": "},{"$f":"IF(ISBLANK(Homework[[#This Row],[Date]]),\"\",UPPER(TEXT(Homework[[#This Row],[Date]],\"ddd\")))","v":""},{"$f":"IF(ISBLANK(Homework[[#This Row],[Date]]),\"\",UPPER(TEXT(Homework[[#This Row],[Date]],\"mmm\")))","v":""}]
[null,null,null,null,{"$f":"CONCATENATE(Homework[[#This Row],[Patient Name]],\": \",Homework[[#This Row],[Chart]])","v":": "},{"$f":"IF(ISBLANK(Homework[[#This Row],[Date]]),\"\",UPPER(TEXT(Homework[[#This Row],[Date]],\"ddd\")))","v":""},{"$f":"IF(ISBLANK(Homework[[#This Row],[Date]]),\"\",UPPER(TEXT(Homework[[#This Row],[Date]],\"mmm\")))","v":""}]
[null,null,null,null,{"$f":"CONCATENATE(Homework[[#This Row],[Patient Name]],\": \",Homework[[#This Row],[Chart]])","v":": "},{"$f":"IF(ISBLANK(Homework[[#This Row],[Date]]),\"\",UPPER(TEXT(Homework[[#This Row],[Date]],\"ddd\")))","v":""},{"$f":"IF(ISBLANK(Homework[[#This Row],[Date]]),\"\",UPPER(TEXT(Homework[[#This Row],[Date]],\"mmm\")))","v":""}]
[null,null,null,null,{"$f":"CONCATENATE(Homework[[#This Row],[Patient Name]],\": \",Homework[[#This Row],[Chart]])","v":": "},{"$f":"IF(ISBLANK(Homework[[#This Row],[Date]]),\"\",UPPER(TEXT(Homework[[#This Row],[Date]],\"ddd\")))","v":""},{"$f":"IF(ISBLANK(Homework[[#This Row],[Date]]),\"\",UPPER(TEXT(Homework[[#This Row],[Date]],\"mmm\")))","v":""}]
[null,null,null,null,{"$f":"CONCATENATE(Homework[[#This Row],[Patient Name]],\": \",Homework[[#This Row],[Chart]])","v":": "},{"$f":"IF(ISBLANK(Homework[[#This Row],[Date]]),\"\",UPPER(TEXT(Homework[[#This Row],[Date]],\"ddd\")))","v":""},{"$f":"IF(ISBLANK(Homework[[#This Row],[Date]]),\"\",UPPER(TEXT(Homework[[#This Row],[Date]],\"mmm\")))","v":""}]
[null,null,null,null,{"$f":"CONCATENATE(Homework[[#This Row],[Patient Name]],\": \",Homework[[#This Row],[Chart]])","v":": "},{"$f":"IF(ISBLANK(Homework[[#This Row],[Date]]),\"\",UPPER(TEXT(Homework[[#This Row],[Date]],\"ddd\")))","v":""},{"$f":"IF(ISBLANK(Homework[[#This Row],[Date]]),\"\",UPPER(TEXT(Homework[[#This Row],[Date]],\"mmm\")))","v":""}]
[null,null,null,null,{"$f":"CONCATENATE(Homework[[#This Row],[Patient Name]],\": \",Homework[[#This Row],[Chart]])","v":": "},{"$f":"IF(ISBLANK(Homework[[#This Row],[Date]]),\"\",UPPER(TEXT(Homework[[#This Row],[Date]],\"ddd\")))","v":""},{"$f":"IF(ISBLANK(Homework[[#This Row],[Date]]),\"\",UPPER(TEXT(Homework[[#This Row],[Date]],\"mmm\")))","v":""}]
[null,null,null,null,{"$f":"CONCATENATE(Homework[[#This Row],[Patient Name]],\": \",Homework[[#This Row],[Chart]])","v":": "},{"$f":"IF(ISBLANK(Homework[[#This Row],[Date]]),\"\",UPPER(TEXT(Homework[[#This Row],[Date]],\"ddd\")))","v":""},{"$f":"IF(ISBLANK(Homework[[#This Row],[Date]]),\"\",UPPER(TEXT(Homework[[#This Row],[Date]],\"mmm\")))","v":""}]
[null,null,null,null,{"$f":"CONCATENATE(Homework[[#This Row],[Patient Name]],\": \",Homework[[#This Row],[Chart]])","v":": "},{"$f":"IF(ISBLANK(Homework[[#This Row],[Date]]),\"\",UPPER(TEXT(Homework[[#This Row],[Date]],\"ddd\")))","v":""},{"$f":"IF(ISBLANK(Homework[[#This Row],[Date]]),\"\",UPPER(TEXT(Homework[[#This Row],[Date]],\"mmm\")))","v":""}]
[null,null,null,null,{"$f":"CONCATENATE(Homework[[#This Row],[Patient Name]],\": \",Homework[[#This Row],[Chart]])","v":": "},{"$f":"IF(ISBLANK(Homework[[#This Row],[Date]]),\"\",UPPER(TEXT(Homework[[#This Row],[Date]],\"ddd\")))","v":""},{"$f":"IF(ISBLANK(Homework[[#This Row],[Date]]),\"\",UPPER(TEXT(Homework[[#This Row],[Date]],\"mmm\")))","v":""}]
[null,null,null,null,{"$f":"CONCATENATE(Homework[[#This Row],[Patient Name]],\": \",Homework[[#This Row],[Chart]])","v":": "},{"$f":"IF(ISBLANK(Homework[[#This Row],[Date]]),\"\",UPPER(TEXT(Homework[[#This Row],[Date]],\"ddd\")))","v":""},{"$f":"IF(ISBLANK(Homework[[#This Row],[Date]]),\"\",UPPER(TEXT(Homework[[#This Row],[Date]],\"mmm\")))","v":""}]
[null,null,null,null,{"$f":"CONCATENATE(Homework[[#This Row],[Patient Name]],\": \",Homework[[#This Row],[Chart]])","v":": "},{"$f":"IF(ISBLANK(Homework[[#This Row],[Date]]),\"\",UPPER(TEXT(Homework[[#This Row],[Date]],\"ddd\")))","v":""},{"$f":"IF(ISBLANK(Homework[[#This Row],[Date]]),\"\",UPPER(TEXT(Homework[[#This Row],[Date]],\"mmm\")))","v":""}]
[null,null,null,null,{"$f":"CONCATENATE(Homework[[#This Row],[Patient Name]],\": \",Homework[[#This Row],[Chart]])","v":": "},{"$f":"IF(ISBLANK(Homework[[#This Row],[Date]]),\"\",UPPER(TEXT(Homework[[#This Row],[Date]],\"ddd\")))","v":""},{"$f":"IF(ISBLANK(Homework[[#This Row],[Date]]),\"\",UPPER(TEXT(Homework[[#This Row],[Date]],\"mmm\")))","v":""}]
[null,null,null,null,{"$f":"CONCATENATE(Homework[[#This Row],[Patient Name]],\": \",Homework[[#This Row],[Chart]])","v":": "},{"$f":"IF(ISBLANK(Homework[[#This Row],[Date]]),\"\",UPPER(TEXT(Homework[[#This Row],[Date]],\"ddd\")))","v":""},{"$f":"IF(ISBLANK(Homework[[#This Row],[Date]]),\"\",UPPER(TEXT(Homework[[#This Row],[Date]],\"mmm\")))","v":""}]
[null,null,null,null,{"$f":"CONCATENATE(Homework[[#This Row],[Patient Name]],\": \",Homework[[#This Row],[Chart]])","v":": "},{"$f":"IF(ISBLANK(Homework[[#This Row],[Date]]),\"\",UPPER(TEXT(Homework[[#This Row],[Date]],\"ddd\")))","v":""},{"$f":"IF(ISBLANK(Homework[[#This Row],[Date]]),\"\",UPPER(TEXT(Homework[[#This Row],[Date]],\"mmm\")))","v":""}]
[null,null,null,null,{"$f":"CONCATENATE(Homework[[#This Row],[Patient Name]],\": \",Homework[[#This Row],[Chart]])","v":": "},{"$f":"IF(ISBLANK(Homework[[#This Row],[Date]]),\"\",UPPER(TEXT(Homework[[#This Row],[Date]],\"ddd\")))","v":""},{"$f":"IF(ISBLANK(Homework[[#This Row],[Date]]),\"\",UPPER(TEXT(Homework[[#This Row],[Date]],\"mmm\")))","v":""}]
[null,null,null,null,{"$f":"CONCATENATE(Homework[[#This Row],[Patient Name]],\": \",Homework[[#This Row],[Chart]])","v":": "},{"$f":"IF(ISBLANK(Homework[[#This Row],[Date]]),\"\",UPPER(TEXT(Homework[[#This Row],[Date]],\"ddd\")))","v":""},{"$f":"IF(ISBLANK(Homework[[#This Row],[Date]]),\"\",UPPER(TEXT(Homework[[#This Row],[Date]],\"mmm\")))","v":""}]
[null,null,null,null,{"$f":"CONCATENATE(Homework[[#This Row],[Patient Name]],\": \",Homework[[#This Row],[Chart]])","v":": "},{"$f":"IF(ISBLANK(Homework[[#This Row],[Date]]),\"\",UPPER(TEXT(Homework[[#This Row],[Date]],\"ddd\")))","v":""},{"$f":"IF(ISBLANK(Homework[[#This Row],[Date]]),\"\",UPPER(TEXT(Homework[[#This Row],[Date]],\"mmm\")))","v":""}]
[null,null,null,null,{"$f":"CONCATENATE(Homework[[#This Row],[Patient Name]],\": \",Homework[[#This Row],[Chart]])","v":": "},{"$f":"IF(ISBLANK(Homework[[#This Row],[Date]]),\"\",UPPER(TEXT(Homework[[#This Row],[Date]],\"ddd\")))","v":""},{"$f":"IF(ISBLANK(Homework[[#This Row],[Date]]),\"\",UPPER(TEXT(Homework[[#This Row],[Date]],\"mmm\")))","v":""}]
[null,null,null,null,{"$f":"CONCATENATE(Homework[[#This Row],[Patient Name]],\": \",Homework[[#This Row],[Chart]])","v":": "},{"$f":"IF(ISBLANK(Homework[[#This Row],[Date]]),\"\",UPPER(TEXT(Homework[[#This Row],[Date]],\"ddd\")))","v":""},{"$f":"IF(ISBLANK(Homework[[#This Row],[Date]]),\"\",UPPER(TEXT(Homework[[#This Row],[Date]],\"mmm\")))","v":""}]
[null,null,null,null,{"$f":"CONCATENATE(Homework[[#This Row],[Patient Name]],\": \",Homework[[#This Row],[Chart]])","v":": "},{"$f":"IF(ISBLANK(Homework[[#This Row],[Date]]),\"\",UPPER(TEXT(Homework[[#This Row],[Date]],\"ddd\")))","v":""},{"$f":"IF(ISBLANK(Homework[[#This Row],[Date]]),\"\",UPPER(TEXT(Homework[[#This Row],[Date]],\"mmm\")))","v":""}]
[null,null,null,null,{"$f":"CONCATENATE(Homework[[#This Row],[Patient Name]],\": \",Homework[[#This Row],[Chart]])","v":": "},{"$f":"IF(ISBLANK(Homework[[#This Row],[Date]]),\"\",UPPER(TEXT(Homework[[#This Row],[Date]],\"ddd\")))","v":""},{"$f":"IF(ISBLANK(Homework[[#This Row],[Date]]),\"\",UPPER(TEXT(Homework[[#This Row],[Date]],\"mmm\")))","v":""}]
[null,null,null,null,{"$f":"CONCATENATE(Homework[[#This Row],[Patient Name]],\": \",Homework[[#This Row],[Chart]])","v":": "},{"$f":"IF(ISBLANK(Homework[[#This Row],[Date]]),\"\",UPPER(TEXT(Homework[[#This Row],[Date]],\"ddd\")))","v":""},{"$f":"IF(ISBLANK(Homework[[#This Row],[Date]]),\"\",UPPER(TEXT(Homework[[#This Row],[Date]],\"mmm\")))","v":""}]
[null,null,null,null,{"$f":"CONCATENATE(Homework[[#This Row],[Patient Name]],\": \",Homework[[#This Row],[Chart]])","v":": "},{"$f":"IF(ISBLANK(Homework[[#This Row],[Date]]),\"\",UPPER(TEXT(Homework[[#This Row],[Date]],\"ddd\")))","v":""},{"$f":"IF(ISBLANK(Homework[[#This Row],[Date]]),\"\",UPPER(TEXT(Homework[[#This Row],[Date]],\"mmm\")))","v":""}]
[null,null,null,null,{"$f":"CONCATENATE(Homework[[#This Row],[Patient Name]],\": \",Homework[[#This Row],[Chart]])","v":": "},{"$f":"IF(ISBLANK(Homework[[#This Row],[Date]]),\"\",UPPER(TEXT(Homework[[#This Row],[Date]],\"ddd\")))","v":""},{"$f":"IF(ISBLANK(Homework[[#This Row],[Date]]),\"\",UPPER(TEXT(Homework[[#This Row],[Date]],\"mmm\")))","v":""}]
[null,null,null,null,{"$f":"CONCATENATE(Homework[[#This Row],[Patient Name]],\": \",Homework[[#This Row],[Chart]])","v":": "},{"$f":"IF(ISBLANK(Homework[[#This Row],[Date]]),\"\",UPPER(TEXT(Homework[[#This Row],[Date]],\"ddd\")))","v":""},{"$f":"IF(ISBLANK(Homework[[#This Row],[Date]]),\"\",UPPER(TEXT(Homework[[#This Row],[Date]],\"mmm\")))","v":""}]
[null,null,null,null,{"$f":"CONCATENATE(Homework[[#This Row],[Patient Name]],\": \",Homework[[#This Row],[Chart]])","v":": "},{"$f":"IF(ISBLANK(Homework[[#This Row],[Date]]),\"\",UPPER(TEXT(Homework[[#This Row],[Date]],\"ddd\")))","v":""},{"$f":"IF(ISBLANK(Homework[[#This Row],[Date]]),\"\",UPPER(TEXT(Homework[[#This Row],[Date]],\"mmm\")))","v":""}]
[null,null,null,null,{"$f":"CONCATENATE(Homework[[#This Row],[Patient Name]],\": \",Homework[[#This Row],[Chart]])","v":": "},{"$f":"IF(ISBLANK(Homework[[#This Row],[Date]]),\"\",UPPER(TEXT(Homework[[#This Row],[Date]],\"ddd\")))","v":""},{"$f":"IF(ISBLANK(Homework[[#This Row],[Date]]),\"\",UPPER(TEXT(Homework[[#This Row],[Date]],\"mmm\")))","v":""}]
[null,null,null,null,{"$f":"CONCATENATE(Homework[[#This Row],[Patient Name]],\": \",Homework[[#This Row],[Chart]])","v":": "},{"$f":"IF(ISBLANK(Homework[[#This Row],[Date]]),\"\",UPPER(TEXT(Homework[[#This Row],[Date]],\"ddd\")))","v":""},{"$f":"IF(ISBLANK(Homework[[#This Row],[Date]]),\"\",UPPER(TEXT(Homework[[#This Row],[Date]],\"mmm\")))","v":""}]
[null,null,null,null,{"$f":"CONCATENATE(Homework[[#This Row],[Patient Name]],\": \",Homework[[#This Row],[Chart]])","v":": "},{"$f":"IF(ISBLANK(Homework[[#This Row],[Date]]),\"\",UPPER(TEXT(Homework[[#This Row],[Date]],\"ddd\")))","v":""},{"$f":"IF(ISBLANK(Homework[[#This Row],[Date]]),\"\",UPPER(TEXT(Homework[[#This Row],[Date]],\"mmm\")))","v":""}]
[null,null,null,null,{"$f":"CONCATENATE(Homework[[#This Row],[Patient Name]],\": \",Homework[[#This Row],[Chart]])","v":": "},{"$f":"IF(ISBLANK(Homework[[#This Row],[Date]]),\"\",UPPER(TEXT(Homework[[#This Row],[Date]],\"ddd\")))","v":""},{"$f":"IF(ISBLANK(Homework[[#This Row],[Date]]),\"\",UPPER(TEXT(Homework[[#This Row],[Date]],\"mmm\")))","v":""}]
[null,null,null,null,{"$f":"CONCATENATE(Homework[[#This Row],[Patient Name]],\": \",Homework[[#This Row],[Chart]])","v":": "},{"$f":"IF(ISBLANK(Homework[[#This Row],[Date]]),\"\",UPPER(TEXT(Homework[[#This Row],[Date]],\"ddd\")))","v":""},{"$f":"IF(ISBLANK(Homework[[#This Row],[Date]]),\"\",UPPER(TEXT(Homework[[#This Row],[Date]],\"mmm\")))","v":""}]
[null,null,null,null,{"$f":"CONCATENATE(Homework[[#This Row],[Patient Name]],\": \",Homework[[#This Row],[Chart]])","v":": "},{"$f":"IF(ISBLANK(Homework[[#This Row],[Date]]),\"\",UPPER(TEXT(Homework[[#This Row],[Date]],\"ddd\")))","v":""},{"$f":"IF(ISBLANK(Homework[[#This Row],[Date]]),\"\",UPPER(TEXT(Homework[[#This Row],[Date]],\"mmm\")))","v":""}]
[null,null,null,null,{"$f":"CONCATENATE(Homework[[#This Row],[Patient Name]],\": \",Homework[[#This Row],[Chart]])","v":": "},{"$f":"IF(ISBLANK(Homework[[#This Row],[Date]]),\"\",UPPER(TEXT(Homework[[#This Row],[Date]],\"ddd\")))","v":""},{"$f":"IF(ISBLANK(Homework[[#This Row],[Date]]),\"\",UPPER(TEXT(Homework[[#This Row],[Date]],\"mmm\")))","v":""}]

{"sheet":"Color Key","index":3,"n_rows":29,"n_cols":13,"rows_kept":29,"cut":false,"hidden":false,"merged":[]}
["COLOR KEY (may move me around)"]
["White: Cannot contact"]
["Green Ready to present to ECHO"]
["Blue Already started treatment"]
["Yellow Pending Appt need labs"]
["Red May need Beh Health Consult"]
["Purple Medication Approval Pending"]
["Orange Completed treatment, pending SVR labs"]
["Grey CURED"]
["Cannot contact"]
["Ready to present to ECHO"]
["Already started treatment"]
["Pending Appt need labs"]
["May need Beh Health Consult"]
["Medication Approval Pending"]
["Completed treatment, pending SVR labs"]
["CURED"]
["Ab Key",null,"Other Key",null,"HCV RNA Results",null,"SVR Key",null,"Pregnancy",null,"HIV",null,"UDS"]
["Negative",null,"Negative",null,"Detectable",null,"Cured",null,"Positive",null,"Positive",null,"Positive"]
["Positive",null,"Positive",null,"Undetectable",null,"Re-assess",null,"Negative",null,"Negative",null,"Negative"]
[]
[]
["Date Reminders"]
["Past Due",null,"1 a/b","Ledipasvir/Sofosbuvir (Harvoni)",null,null,null,"8 weeks",null,"PAP"]
["Today",null,2,"Velpatasvir/Sofosbuvir (Epclusa)",null,null,null,"12 weeks",null,"Medicaid"]
[null,null,3,"Glecaprevir/Pibrentasvir(Mavyret)",null,null,null,"24 weeks",null,"Expansion"]
[null,null,4,"Velpatasvir/Sofosbuvir/Voxileprevir (Vosevi)",null,null,null,null,null,"Medicare Part D"]
[null,null,5,"Elbasvir/Grazoprevir (Zepatier)",null,null,null,null,null,"In-house Pharmacy"]
[null,null,6,"Dasabuvir/Ombitasvir/Paritaprevir/Ritonavir (Viekira Pak)"]

{"sheet":"Template 12 wk","index":4,"n_rows":39,"n_cols":15,"rows_kept":39,"cut":false,"hidden":false,"merged":[[0,5,0,6],[9,6,11,6]],"read":"row_number_cap"}
[null,"Labs to Order","Date Ordered",null,"Date Ordered","Select from Menu",null,"Date Hep A Shot 1st","Date Hep A 2nd Shot 6 months","Date Hep B 0 week","Date 2nd Shot 1 month","Date 3rd Shot 6 months","Date Twinrix Shot","Date Twinrix 2nd shot","Date Twinrix 3rd shot"]
[null,"HCV Screen",false,{"$f":"IF(C2,\"TRUE\",\"\")","v":""},{"$f":"IF(D2<>\"\",IF(E2=\"\",NOW(),E2),\"\")","v":""},null,null,null,{"$f":"H2+180","v":"1900-06-28"},null,{"$f":"J2+28","v":"1900-01-28"},{"$f":"J2+180","v":"1900-06-28"},null,{"$f":"M2+28","v":"1900-01-28"},{"$f":"N2+120","v":"1900-05-27"}]
[null,"HCV Viral Load",false,{"$f":"IF(C3,\"TRUE\",\"\")","v":""},{"$f":"IF(D3<>\"\",IF(E3=\"\",NOW(),E3),\"\")","v":""},"Pick from drop down "]
[null,"HCV GT",false,"",""]
[null,"NS5A Resistance",false,"","",null,null,"Enter Date",null,"Enter Date",null,null,"Enter Date"]
[null,"Pregnancy Test",false,"","",null,null,"MM/DD/YYYY",null,"MM/DD/YYYY",null,null,"MM/DD/YYYY"]
[null,"HIV Screen",false,"","",null,"<-- Pick from drop down"]
[null,"Chem 14",false,"",""]
[null,"CBC",false,"",""]
[null,"PT/INR",false,"","",null,"Hep B Ab/Shot , If no please give shot and f/u for series"]
[null,"Anemia Panel",false,"","","Hep A serology/shot"]
[null,"Vit D",false,"","","Pick from drop down "]
[null,"AFP Marker",false,"","",null,"Pick from drop down "]
[null,"Fibrotest",false,"",""]
[null,"Hep A Ab",false,"",""]
[null,"Hep B s Ab",false,"",""]
[null,"Hep B s Ag",false,"",""]
[null,"Hep B core Ab",false,"",""]
[null,"UDS",false,"","",null,"<-- Pick from drop down"]
[null,null,null,null,"Enter Date --> MM/DD/YYYY",null,"Treatment Start Date","HCV RNA Results",null,"Link to Ongoing Patients"]
[null,"At 4 week",null,null,null,{"$f":"F20+28","v":"1900-01-28"},"At 4 week",null,"<-- Pick from drop down"]
[null,"HCV Viral Load",false,"",{"$f":"IF(D22<>\"\",IF(E22=\"\",NOW(),E22),\"\")","v":""}]
[null,"Chem 14",false,"",{"$f":"IF(D23<>\"\",IF(E23=\"\",NOW(),E23),\"\")","v":""}]
[null,"CBC",false,"",""]
[null,null,null,null,""]
[null,"At 8 weeks",null,null,"",{"$f":"F21+28","v":"1900-02-25"},"At 8 weeks",null,"<-- Pick from drop down"]
[null,"HCV Viral Load",false,"",""]
[null,"Chem 14",false,"",""]
[null,"CBC",false,"",""]
[null,null,null,null,""]
[null,"At ETR",null,null,"",{"$f":"F26+28","v":"1900-03-24"},"At ETR",null,"<-- Pick from drop down"]
[null,"HCV Viral Load",false,"",""]
[null,"Chem 14",false,"",""]
[null,"CBC",false,"",""]
[null,null,null,null,""]
[null,"At SVR",null,null,"",{"$f":"F31+84","v":"1900-06-16"},"At SVR",null,"<-- Pick from drop down"]
[null,"HCV Viral Load",false,"",""]
[null,"Chem 14",false,"",""]
[null,"CBC",false,"",""]

{"sheet":"Template 8 wk","index":5,"n_rows":34,"n_cols":15,"rows_kept":34,"cut":false,"hidden":false,"merged":[[0,5,0,6],[9,6,11,6]],"read":"row_number_cap"}
[null,"Labs to Order","Date Ordered",null,"Date Ordered","Select from Menu",null,"Date Hep A Shot 1st","Date Hep A 2nd Shot 6 months","Date Hep B 0 week","Date 2nd Shot 1 month","Date 3rd Shot 6 months","Date Twinrix Shot","Date Twinrix 2nd shot","Date Twinrix 3rd shot"]
[null,"HCV Screen",false,{"$f":"IF(C2,\"True\",\"\")","v":""},{"$f":"IF(C2=TRUE, NOW(), \" \")","v":" "},null,null,null,{"$f":"H2+180","v":"1900-06-28"},null,{"$f":"J2+28","v":"1900-01-28"},{"$f":"J2+180","v":"1900-06-28"},null,{"$f":"M2+28","v":"1900-01-28"},{"$f":"N2+120","v":"1900-05-27"}]
[null,"HCV Viral Load",false,{"$f":"IF(C3,\"True\",\"\")","v":""},{"$f":"IF(D3<>\"\",IF(E3=\"\",NOW(),E3),\"\")","v":""},"Pick from drop down "]
[null,"HCV GT",false,"",{"$f":"IF(D4<>\"\",IF(E4=\"\",NOW(),E4),\"\")","v":""}]
[null,"NS5A Resistance",false,"",{"$f":"IF(D5<>\"\",IF(E5=\"\",NOW(),E5),\"\")","v":""},null,null,"Enter Date",null,"Enter Date",null,null,"Enter Date"]
[null,"Pregnancy Test",false,"","",null,null,"MM/DD/YYYY",null,"MM/DD/YYYY",null,null,"MM/DD/YYYY"]
[null,"HIV Screen",false,"","",null,"<-- Pick from drop down"]
[null,"Chem 14",false,"",""]
[null,"CBC",false,"",""]
[null,"PT/INR",false,"","",null,"Hep B Ab/Shot , If no please give shot and f/u for series"]
[null,"Anemia Panel",false,"","","Hep A serology/shot"]
[null,"Vit D",false,"","","Pick from drop down "]
[null,"AFP Marker",false,"","",null,"Pick from drop down "]
[null,"Fibrotest",false,"",""]
[null,"Hep A Ab",false,"",""]
[null,"Hep B s Ab",false,"",""]
[null,"Hep B s Ag",false,"",""]
[null,"Hep B core Ab",false,"",""]
[null,"UDS",false,"","",null,"<-- Pick from drop down"]
[null,null,null,null,"Enter Date --> MM/DD/YYYY",null,"Treatment Start Date","HCV RNA Results",null,"Link to Ongoing Patients"]
[null,"At 4 week",null,null,null,{"$f":"F20+28","v":"1900-01-28"},"At 4 week",null,"<-- Pick from drop down"]
[null,"HCV Viral Load",false,{"$f":"IF(C22,\"TRUE\",\"\")","v":""},{"$f":"IF(D22<>\"\",IF(E22=\"\",NOW(),E22),\"\")","v":""}]
[null,"Chem 14",false,{"$f":"IF(C23,\"TRUE\",\"\")","v":""},{"$f":"IF(D23<>\"\",IF(E23=\"\",NOW(),E23),\"\")","v":""}]
[null,"CBC",false,"",""]
[null,null,null,"",""]
[null,"At 8 weeks/ETR",null,"","",{"$f":"F21+28","v":"1900-02-25"},"At 8 weeks/ETR",null,"<-- Pick from drop down"]
[null,"HCV Viral Load",false,"",""]
[null,"Chem 14",false,"",""]
[null,"CBC",false,"",""]
[null,null,null,"",""]
[null,"At SVR",null,"","",{"$f":"F26+84","v":"1900-05-19"},"At SVR",null,"<-- Pick from drop down"]
[null,"HCV Viral Load",false,"",""]
[null,"Chem 14",false,"",""]
[null,"CBC",false,"",""]

{"sheet":"Sheet1","index":6,"n_rows":39,"n_cols":15,"rows_kept":39,"cut":false,"hidden":false,"merged":[[0,5,0,6],[9,6,11,6]]}
[null,"Labs to Order","Date Ordered",null,"Date Ordered","Select from Menu",null,"Date Hep A Shot 1st","Date Hep A 2nd Shot 6 months","Date Hep B 0 week","Date 2nd Shot 1 month","Date 3rd Shot 6 months","Date Twinrix Shot","Date Twinrix 2nd shot","Date Twinrix 3rd shot"]
[null,"HCV Screen",false,{"$f":"IF(C2,\"TRUE\",\"\")","v":""},{"$f":"IF(D2<>\"\",IF(E2=\"\",NOW(),E2),\"\")","v":""},null,null,null,{"$f":"H2+180","v":"1900-06-28"},null,{"$f":"J2+28","v":"1900-01-28"},{"$f":"J2+180","v":"1900-06-28"},null,{"$f":"M2+28","v":"1900-01-28"},{"$f":"N2+120","v":"1900-05-27"}]
[null,"HCV Viral Load",false,{"$f":"IF(C3,\"TRUE\",\"\")","v":""},{"$f":"IF(D3<>\"\",IF(E3=\"\",NOW(),E3),\"\")","v":""},"Pick from drop down "]
[null,"HCV GT",false,"",""]
[null,"NS5A Resistance",false,"","",null,null,"Enter Date",null,"Enter Date",null,null,"Enter Date"]
[null,"Pregnancy Test",false,"","",null,null,"MM/DD/YYYY",null,"MM/DD/YYYY",null,null,"MM/DD/YYYY"]
[null,"HIV Screen",false,"","",null,"<-- Pick from drop down"]
[null,"Chem 14",false,"",""]
[null,"CBC",false,"",""]
[null,"PT/INR",false,"","",null,"Hep B Ab/Shot , If no please give shot and f/u for series"]
[null,"Anemia Panel",false,"","","Hep A serology/shot"]
[null,"Vit D",false,"","","Pick from drop down "]
[null,"AFP Marker",false,"","",null,"Pick from drop down "]
[null,"Fibrotest",false,"",""]
[null,"Hep A Ab",false,"",""]
[null,"Hep B s Ab",false,"",""]
[null,"Hep B s Ag",false,"",""]
[null,"Hep B core Ab",false,"",""]
[null,"UDS",false,"","",null,"<-- Pick from drop down"]
[null,null,null,null,"Enter Date --> MM/DD/YYYY",null,"Treatment Start Date","HCV RNA Results",null,"Link to Ongoing Patients"]
[null,"At 4 week",null,null,null,{"$f":"F20+28","v":"1900-01-28"},"At 4 week",null,"<-- Pick from drop down"]
[null,"HCV Viral Load",false,"",{"$f":"IF(D22<>\"\",IF(E22=\"\",NOW(),E22),\"\")","v":""}]
[null,"Chem 14",false,"",{"$f":"IF(D23<>\"\",IF(E23=\"\",NOW(),E23),\"\")","v":""}]
[null,"CBC",false,"",""]
[null,null,null,null,""]
[null,"At 8 weeks",null,null,"",{"$f":"F20+56","v":"1900-02-25"},"At 8 weeks",null,"<-- Pick from drop down"]
[null,"HCV Viral Load",false,"",""]
[null,"Chem 14",false,"",""]
[null,"CBC",false,"",""]
[null,null,null,null,""]
[null,"At ETR",null,null,"",{"$f":"F20+84","v":"1900-03-24"},"At ETR",null,"<-- Pick from drop down"]
[null,"HCV Viral Load",false,"",""]
[null,"Chem 14",false,"",""]
[null,"CBC",false,"",""]
[null,null,null,null,""]
[null,"At SVR",null,null,"",{"$f":"F31+84","v":"1900-06-16"},"At SVR",null,"<-- Pick from drop down"]
[null,"HCV Viral Load",false,"",""]
[null,"Chem 14",false,"",""]
[null,"CBC",false,"",""]

{"sheet":"Sheet2","index":7,"n_rows":0,"n_cols":0,"rows_kept":0,"cut":false,"hidden":false,"merged":[]}

{"sheet":"Sheet3","index":8,"n_rows":0,"n_cols":0,"rows_kept":0,"cut":false,"hidden":false,"merged":[]}

{"sheet":"Sheet4","index":9,"n_rows":0,"n_cols":0,"rows_kept":0,"cut":false,"hidden":false,"merged":[]}

{"sheet":"Sheet5","index":10,"n_rows":0,"n_cols":0,"rows_kept":0,"cut":false,"hidden":false,"merged":[]}

{"sheet":"Sheet6","index":11,"n_rows":0,"n_cols":0,"rows_kept":0,"cut":false,"hidden":false,"merged":[]}

{"sheet":"Sheet7","index":12,"n_rows":0,"n_cols":0,"rows_kept":0,"cut":false,"hidden":false,"merged":[]}

{"sheet":"Sheet8","index":13,"n_rows":0,"n_cols":0,"rows_kept":0,"cut":false,"hidden":false,"merged":[]}

{"sheet":"Sheet9","index":14,"n_rows":0,"n_cols":0,"rows_kept":0,"cut":false,"hidden":false,"merged":[]}

{"sheet":"Sheet10","index":15,"n_rows":0,"n_cols":0,"rows_kept":0,"cut":false,"hidden":false,"merged":[]}

{"sheet":"Sheet11","index":16,"n_rows":0,"n_cols":0,"rows_kept":0,"cut":false,"hidden":false,"merged":[]}

{"sheet":"Sheet12","index":17,"n_rows":0,"n_cols":0,"rows_kept":0,"cut":false,"hidden":false,"merged":[]}

{"sheet":"Sheet13","index":18,"n_rows":0,"n_cols":0,"rows_kept":0,"cut":false,"hidden":false,"merged":[]}

{"sheet":"Sheet14","index":19,"n_rows":0,"n_cols":0,"rows_kept":0,"cut":false,"hidden":false,"merged":[]}

{"sheet":"Sheet15","index":20,"n_rows":0,"n_cols":0,"rows_kept":0,"cut":false,"hidden":false,"merged":[]}

{"sheet":"Sheet16","index":21,"n_rows":0,"n_cols":0,"rows_kept":0,"cut":false,"hidden":false,"merged":[]}

{"sheet":"Sheet17","index":22,"n_rows":0,"n_cols":0,"rows_kept":0,"cut":false,"hidden":false,"merged":[]}

{"sheet":"Sheet18","index":23,"n_rows":0,"n_cols":0,"rows_kept":0,"cut":false,"hidden":false,"merged":[]}

{"sheet":"Sheet19","index":24,"n_rows":0,"n_cols":0,"rows_kept":0,"cut":false,"hidden":false,"merged":[]}

{"sheet":"Sheet20","index":25,"n_rows":0,"n_cols":0,"rows_kept":0,"cut":false,"hidden":false,"merged":[]}

{"sheet":"Sheet21","index":26,"n_rows":0,"n_cols":0,"rows_kept":0,"cut":false,"hidden":false,"merged":[]}

{"sheet":"Sheet22","index":27,"n_rows":0,"n_cols":0,"rows_kept":0,"cut":false,"hidden":false,"merged":[]}

{"sheet":"Sheet23","index":28,"n_rows":0,"n_cols":0,"rows_kept":0,"cut":false,"hidden":false,"merged":[]}

{"sheet":"Sheet24","index":29,"n_rows":0,"n_cols":0,"rows_kept":0,"cut":false,"hidden":false,"merged":[]}

{"sheet":"Sheet25","index":30,"n_rows":0,"n_cols":0,"rows_kept":0,"cut":false,"hidden":false,"merged":[]}

{"sheet":"Sheet26","index":31,"n_rows":0,"n_cols":0,"rows_kept":0,"cut":false,"hidden":false,"merged":[]}

{"sheet":"Sheet27","index":32,"n_rows":0,"n_cols":0,"rows_kept":0,"cut":false,"hidden":false,"merged":[]}

{"sheet":"Sheet28","index":33,"n_rows":0,"n_cols":0,"rows_kept":0,"cut":false,"hidden":false,"merged":[]}

{"sheet":"Sheet29","index":34,"n_rows":0,"n_cols":0,"rows_kept":0,"cut":false,"hidden":false,"merged":[]}

{"sheet":"Sheet30","index":35,"n_rows":0,"n_cols":0,"rows_kept":0,"cut":false,"hidden":false,"merged":[]}

{"sheet":"Sheet31","index":36,"n_rows":0,"n_cols":0,"rows_kept":0,"cut":false,"hidden":false,"merged":[]}

{"sheet":"Sheet32","index":37,"n_rows":0,"n_cols":0,"rows_kept":0,"cut":false,"hidden":false,"merged":[]}

{"sheet":"Sheet33","index":38,"n_rows":0,"n_cols":0,"rows_kept":0,"cut":false,"hidden":false,"merged":[]}

{"sheet":"Sheet34","index":39,"n_rows":0,"n_cols":0,"rows_kept":0,"cut":false,"hidden":false,"merged":[]}

{"sheet":"Sheet35","index":40,"n_rows":0,"n_cols":0,"rows_kept":0,"cut":false,"hidden":false,"merged":[]}

{"sheet":"Sheet36","index":41,"n_rows":0,"n_cols":0,"rows_kept":0,"cut":false,"hidden":false,"merged":[]}

{"sheet":"Sheet37","index":42,"n_rows":0,"n_cols":0,"rows_kept":0,"cut":false,"hidden":false,"merged":[]}

{"sheet":"Sheet38","index":43,"n_rows":0,"n_cols":0,"rows_kept":0,"cut":false,"hidden":false,"merged":[]}

{"sheet":"Sheet39","index":44,"n_rows":0,"n_cols":0,"rows_kept":0,"cut":false,"hidden":false,"merged":[]}

{"sheet":"Sheet40","index":45,"n_rows":0,"n_cols":0,"rows_kept":0,"cut":false,"hidden":false,"merged":[]}

{"sheet":"Sheet41","index":46,"n_rows":0,"n_cols":0,"rows_kept":0,"cut":false,"hidden":false,"merged":[]}

{"sheet":"Sheet42","index":47,"n_rows":0,"n_cols":0,"rows_kept":0,"cut":false,"hidden":false,"merged":[]}

{"sheet":"Sheet43","index":48,"n_rows":0,"n_cols":0,"rows_kept":0,"cut":false,"hidden":false,"merged":[]}

{"sheet":"Sheet44","index":49,"n_rows":0,"n_cols":0,"rows_kept":0,"cut":false,"hidden":false,"merged":[]}

{"sheet":"Sheet45","index":50,"n_rows":0,"n_cols":0,"rows_kept":0,"cut":false,"hidden":false,"merged":[]}

{"sheet":"Sheet46","index":51,"n_rows":0,"n_cols":0,"rows_kept":0,"cut":false,"hidden":false,"merged":[]}

{"sheet":"Sheet47","index":52,"n_rows":0,"n_cols":0,"rows_kept":0,"cut":false,"hidden":false,"merged":[]}

{"sheet":"Sheet48","index":53,"n_rows":0,"n_cols":0,"rows_kept":0,"cut":false,"hidden":false,"merged":[]}

{"sheet":"Sheet49","index":54,"n_rows":0,"n_cols":0,"rows_kept":0,"cut":false,"hidden":false,"merged":[]}

{"sheet":"Sheet50","index":55,"n_rows":0,"n_cols":0,"rows_kept":0,"cut":false,"hidden":false,"merged":[]}

{"sheet":"Sheet51","index":56,"n_rows":0,"n_cols":0,"rows_kept":0,"cut":false,"hidden":false,"merged":[]}

{"sheet":"Sheet52","index":57,"n_rows":0,"n_cols":0,"rows_kept":0,"cut":false,"hidden":false,"merged":[]}

{"sheet":"Sheet53","index":58,"n_rows":0,"n_cols":0,"rows_kept":0,"cut":false,"hidden":false,"merged":[]}

{"sheet":"Sheet54","index":59,"n_rows":0,"n_cols":0,"rows_kept":0,"cut":false,"hidden":false,"merged":[]}

{"sheet":"Sheet55","index":60,"n_rows":0,"n_cols":0,"rows_kept":0,"cut":false,"hidden":false,"merged":[]}

{"sheet":"Sheet56","index":61,"n_rows":0,"n_cols":0,"rows_kept":0,"cut":false,"hidden":false,"merged":[]}

{"sheet":"Sheet57","index":62,"n_rows":0,"n_cols":0,"rows_kept":0,"cut":false,"hidden":false,"merged":[]}

{"sheet":"Sheet58","index":63,"n_rows":0,"n_cols":0,"rows_kept":0,"cut":false,"hidden":false,"merged":[]}

{"sheet":"Sheet59","index":64,"n_rows":0,"n_cols":0,"rows_kept":0,"cut":false,"hidden":false,"merged":[]}

{"sheet":"Sheet60","index":65,"n_rows":0,"n_cols":0,"rows_kept":0,"cut":false,"hidden":false,"merged":[]}

{"sheet":"Sheet61","index":66,"n_rows":0,"n_cols":0,"rows_kept":0,"cut":false,"hidden":false,"merged":[]}

{"sheet":"Sheet62","index":67,"n_rows":0,"n_cols":0,"rows_kept":0,"cut":false,"hidden":false,"merged":[]}

{"sheet":"Sheet63","index":68,"n_rows":0,"n_cols":0,"rows_kept":0,"cut":false,"hidden":false,"merged":[]}

{"sheet":"Sheet64","index":69,"n_rows":0,"n_cols":0,"rows_kept":0,"cut":false,"hidden":false,"merged":[]}

{"sheet":"Sheet65","index":70,"n_rows":0,"n_cols":0,"rows_kept":0,"cut":false,"hidden":false,"merged":[]}

{"sheet":"Sheet66","index":71,"n_rows":0,"n_cols":0,"rows_kept":0,"cut":false,"hidden":false,"merged":[]}

{"sheet":"Sheet67","index":72,"n_rows":0,"n_cols":0,"rows_kept":0,"cut":false,"hidden":false,"merged":[]}

{"sheet":"Sheet68","index":73,"n_rows":0,"n_cols":0,"rows_kept":0,"cut":false,"hidden":false,"merged":[]}

{"sheet":"Sheet69","index":74,"n_rows":0,"n_cols":0,"rows_kept":0,"cut":false,"hidden":false,"merged":[]}

{"sheet":"Sheet70","index":75,"n_rows":0,"n_cols":0,"rows_kept":0,"cut":false,"hidden":false,"merged":[]}

{"sheet":"Sheet71","index":76,"n_rows":0,"n_cols":0,"rows_kept":0,"cut":false,"hidden":false,"merged":[]}

{"sheet":"Sheet72","index":77,"n_rows":0,"n_cols":0,"rows_kept":0,"cut":false,"hidden":false,"merged":[]}

{"sheet":"Sheet73","index":78,"n_rows":0,"n_cols":0,"rows_kept":0,"cut":false,"hidden":false,"merged":[]}

{"sheet":"Sheet74","index":79,"n_rows":0,"n_cols":0,"rows_kept":0,"cut":false,"hidden":false,"merged":[]}

{"sheet":"Sheet75","index":80,"n_rows":0,"n_cols":0,"rows_kept":0,"cut":false,"hidden":false,"merged":[]}

{"sheet":"Sheet76","index":81,"n_rows":0,"n_cols":0,"rows_kept":0,"cut":false,"hidden":false,"merged":[]}

{"sheet":"Sheet77","index":82,"n_rows":0,"n_cols":0,"rows_kept":0,"cut":false,"hidden":false,"merged":[]}

{"sheet":"Sheet78","index":83,"n_rows":0,"n_cols":0,"rows_kept":0,"cut":false,"hidden":false,"merged":[]}

{"sheet":"Sheet79","index":84,"n_rows":0,"n_cols":0,"rows_kept":0,"cut":false,"hidden":false,"merged":[]}

{"sheet":"Sheet80","index":85,"n_rows":0,"n_cols":0,"rows_kept":0,"cut":false,"hidden":false,"merged":[]}

{"sheet":"Sheet81","index":86,"n_rows":0,"n_cols":0,"rows_kept":0,"cut":false,"hidden":false,"merged":[]}

{"sheet":"Sheet82","index":87,"n_rows":0,"n_cols":0,"rows_kept":0,"cut":false,"hidden":false,"merged":[]}

{"sheet":"Sheet83","index":88,"n_rows":0,"n_cols":0,"rows_kept":0,"cut":false,"hidden":false,"merged":[]}

{"sheet":"Sheet84","index":89,"n_rows":0,"n_cols":0,"rows_kept":0,"cut":false,"hidden":false,"merged":[]}

{"sheet":"Sheet85","index":90,"n_rows":0,"n_cols":0,"rows_kept":0,"cut":false,"hidden":false,"merged":[]}

{"sheet":"Sheet86","index":91,"n_rows":0,"n_cols":0,"rows_kept":0,"cut":false,"hidden":false,"merged":[]}

{"sheet":"Sheet87","index":92,"n_rows":0,"n_cols":0,"rows_kept":0,"cut":false,"hidden":false,"merged":[]}

{"sheet":"Sheet88","index":93,"n_rows":0,"n_cols":0,"rows_kept":0,"cut":false,"hidden":false,"merged":[]}

{"sheet":"Sheet89","index":94,"n_rows":0,"n_cols":0,"rows_kept":0,"cut":false,"hidden":false,"merged":[]}

{"sheet":"Sheet90","index":95,"n_rows":0,"n_cols":0,"rows_kept":0,"cut":false,"hidden":false,"merged":[]}

{"sheet":"Sheet91","index":96,"n_rows":0,"n_cols":0,"rows_kept":0,"cut":false,"hidden":false,"merged":[]}

{"sheet":"Sheet92","index":97,"n_rows":0,"n_cols":0,"rows_kept":0,"cut":false,"hidden":false,"merged":[]}

{"sheet":"Sheet93","index":98,"n_rows":0,"n_cols":0,"rows_kept":0,"cut":false,"hidden":false,"merged":[]}

{"sheet":"Sheet94","index":99,"n_rows":0,"n_cols":0,"rows_kept":0,"cut":false,"hidden":false,"merged":[]}

{"sheet":"Sheet95","index":100,"n_rows":0,"n_cols":0,"rows_kept":0,"cut":false,"hidden":false,"merged":[]}

{"sheet":"Sheet96","index":101,"n_rows":0,"n_cols":0,"rows_kept":0,"cut":false,"hidden":false,"merged":[]}

{"sheet":"Sheet97","index":102,"n_rows":0,"n_cols":0,"rows_kept":0,"cut":false,"hidden":false,"merged":[]}

{"sheet":"Sheet98","index":103,"n_rows":0,"n_cols":0,"rows_kept":0,"cut":false,"hidden":false,"merged":[]}

{"sheet":"Sheet99","index":104,"n_rows":0,"n_cols":0,"rows_kept":0,"cut":false,"hidden":false,"merged":[]}

{"sheet":"Sheet100","index":105,"n_rows":0,"n_cols":0,"rows_kept":0,"cut":false,"hidden":false,"merged":[]}